Workbook

Sheet Euro CPI Data
A1: HICP (2015 = 100) - monthly data (index) [prc_hicp_midx]
A3: Last update | B3: 2016-03-31T09:20:46
A4: Extracted on | B4: 2016-04-09T17:12:27.691
A5: Source of data | B5: Eurostat
A7: UNIT | B7: Index, 2015=100 | C7: Note that the index base is different from the book (2005=100)
A8: Get the data: | B8: http://goo.gl/0MB5SK
A10: Region | B10: item_Desc | C10: item_Code | D10: item_Level | E10: Date | F10: Value
A11: Austria | B11: All-items HICP | C11: CP00 | D11: 1 | E11: 1998-01-15 | F11: 73.06
A12: Austria | B12: All-items HICP | C12: CP00 | D12: 1 | E12: 1998-02-15 | F12: 73.27
A13: Austria | B13: All-items HICP | C13: CP00 | D13: 1 | E13: 1998-03-15 | F13: 73.35
A14: Austria | B14: All-items HICP | C14: CP00 | D14: 1 | E14: 1998-04-15 | F14: 73.42
A15: Austria | B15: All-items HICP | C15: CP00 | D15: 1 | E15: 1998-05-15 | F15: 73.27
A16: Austria | B16: All-items HICP | C16: CP00 | D16: 1 | E16: 1998-06-15 | F16: 73.13
A17: Austria | B17: All-items HICP | C17: CP00 | D17: 1 | E17: 1998-07-15 | F17: 73.13
A18: Austria | B18: All-items HICP | C18: CP00 | D18: 1 | E18: 1998-08-15 | F18: 73.13
A19: Austria | B19: All-items HICP | C19: CP00 | D19: 1 | E19: 1998-09-15 | F19: 72.99
A20: Austria | B20: All-items HICP | C20: CP00 | D20: 1 | E20: 1998-10-15 | F20: 73.13
A21: Austria | B21: All-items HICP | C21: CP00 | D21: 1 | E21: 1998-11-15 | F21: 73.2
A22: Austria | B22: All-items HICP | C22: CP00 | D22: 1 | E22: 1998-12-15 | F22: 73.35
A23: Austria | B23: All-items HICP | C23: CP00 | D23: 1 | E23: 1999-01-15 | F23: 73.27
A24: Austria | B24: All-items HICP | C24: CP00 | D24: 1 | E24: 1999-02-15 | F24: 73.42
A25: Austria | B25: All-items HICP | C25: CP00 | D25: 1 | E25: 1999-03-15 | F25: 73.49
A26: Austria | B26: All-items HICP | C26: CP00 | D26: 1 | E26: 1999-04-15 | F26: 73.49
A27: Austria | B27: All-items HICP | C27: CP00 | D27: 1 | E27: 1999-05-15 | F27: 73.56
A28: Austria | B28: All-items HICP | C28: CP00 | D28: 1 | E28: 1999-06-15 | F28: 73.27
A29: Austria | B29: All-items HICP | C29: CP00 | D29: 1 | E29: 1999-07-15 | F29: 73.35
A30: Austria | B30: All-items HICP | C30: CP00 | D30: 1 | E30: 1999-08-15 | F30: 73.49
A31: Austria | B31: All-items HICP | C31: CP00 | D31: 1 | E31: 1999-09-15 | F31: 73.42
A32: Austria | B32: All-items HICP | C32: CP00 | D32: 1 | E32: 1999-10-15 | F32: 73.7
A33: Austria | B33: All-items HICP | C33: CP00 | D33: 1 | E33: 1999-11-15 | F33: 73.92
A34: Austria | B34: All-items HICP | C34: CP00 | D34: 1 | E34: 1999-12-15 | F34: 74.57
A35: Austria | B35: All-items HICP | C35: CP00 | D35: 1 | E35: 2000-01-15 | F35: 74.28
A36: Austria | B36: All-items HICP | C36: CP00 | D36: 1 | E36: 2000-02-15 | F36: 74.85
A37: Austria | B37: All-items HICP | C37: CP00 | D37: 1 | E37: 2000-03-15 | F37: 74.92
A38: Austria | B38: All-items HICP | C38: CP00 | D38: 1 | E38: 2000-04-15 | F38: 74.78
A39: Austria | B39: All-items HICP | C39: CP00 | D39: 1 | E39: 2000-05-15 | F39: 74.71
A40: Austria | B40: All-items HICP | C40: CP00 | D40: 1 | E40: 2000-06-15 | F40: 75
A41: Austria | B41: All-items HICP | C41: CP00 | D41: 1 | E41: 2000-07-15 | F41: 74.78
A42: Austria | B42: All-items HICP | C42: CP00 | D42: 1 | E42: 2000-08-15 | F42: 74.85
A43: Austria | B43: All-items HICP | C43: CP00 | D43: 1 | E43: 2000-09-15 | F43: 75.14
A44: Austria | B44: All-items HICP | C44: CP00 | D44: 1 | E44: 2000-10-15 | F44: 75.35
A45: Austria | B45: All-items HICP | C45: CP00 | D45: 1 | E45: 2000-11-15 | F45: 75.64
A46: Austria | B46: All-items HICP | C46: CP00 | D46: 1 | E46: 2000-12-15 | F46: 75.93
A47: Austria | B47: All-items HICP | C47: CP00 | D47: 1 | E47: 2001-01-15 | F47: 75.96
A48: Austria | B48: All-items HICP | C48: CP00 | D48: 1 | E48: 2001-02-15 | F48: 76.21
A49: Austria | B49: All-items HICP | C49: CP00 | D49: 1 | E49: 2001-03-15 | F49: 76.33
A50: Austria | B50: All-items HICP | C50: CP00 | D50: 1 | E50: 2001-04-15 | F50: 76.71
A51: Austria | B51: All-items HICP | C51: CP00 | D51: 1 | E51: 2001-05-15 | F51: 76.86
A52: Austria | B52: All-items HICP | C52: CP00 | D52: 1 | E52: 2001-06-15 | F52: 76.96
A53: Austria | B53: All-items HICP | C53: CP00 | D53: 1 | E53: 2001-07-15 | F53: 76.85
A54: Austria | B54: All-items HICP | C54: CP00 | D54: 1 | E54: 2001-08-15 | F54: 76.66
A55: Austria | B55: All-items HICP | C55: CP00 | D55: 1 | E55: 2001-09-15 | F55: 76.95
A56: Austria | B56: All-items HICP | C56: CP00 | D56: 1 | E56: 2001-10-15 | F56: 77.1
A57: Austria | B57: All-items HICP | C57: CP00 | D57: 1 | E57: 2001-11-15 | F57: 77.07
A58: Austria | B58: All-items HICP | C58: CP00 | D58: 1 | E58: 2001-12-15 | F58: 77.27
A59: Austria | B59: All-items HICP | C59: CP00 | D59: 1 | E59: 2002-01-15 | F59: 77.4
A60: Austria | B60: All-items HICP | C60: CP00 | D60: 1 | E60: 2002-02-15 | F60: 77.53
A61: Austria | B61: All-items HICP | C61: CP00 | D61: 1 | E61: 2002-03-15 | F61: 77.63
A62: Austria | B62: All-items HICP | C62: CP00 | D62: 1 | E62: 2002-04-15 | F62: 77.98
A63: Austria | B63: All-items HICP | C63: CP00 | D63: 1 | E63: 2002-05-15 | F63: 78.12
A64: Austria | B64: All-items HICP | C64: CP00 | D64: 1 | E64: 2002-06-15 | F64: 78.11
A65: Austria | B65: All-items HICP | C65: CP00 | D65: 1 | E65: 2002-07-15 | F65: 77.98
A66: Austria | B66: All-items HICP | C66: CP00 | D66: 1 | E66: 2002-08-15 | F66: 78.19
A67: Austria | B67: All-items HICP | C67: CP00 | D67: 1 | E67: 2002-09-15 | F67: 78.19
A68: Austria | B68: All-items HICP | C68: CP00 | D68: 1 | E68: 2002-10-15 | F68: 78.36
A69: Austria | B69: All-items HICP | C69: CP00 | D69: 1 | E69: 2002-11-15 | F69: 78.36
A70: Austria | B70: All-items HICP | C70: CP00 | D70: 1 | E70: 2002-12-15 | F70: 78.57
A71: Austria | B71: All-items HICP | C71: CP00 | D71: 1 | E71: 2003-01-15 | F71: 78.71
A72: Austria | B72: All-items HICP | C72: CP00 | D72: 1 | E72: 2003-02-15 | F72: 78.85
A73: Austria | B73: All-items HICP | C73: CP00 | D73: 1 | E73: 2003-03-15 | F73: 79.06
A74: Austria | B74: All-items HICP | C74: CP00 | D74: 1 | E74: 2003-04-15 | F74: 78.98
A75: Austria | B75: All-items HICP | C75: CP00 | D75: 1 | E75: 2003-05-15 | F75: 78.88
A76: Austria | B76: All-items HICP | C76: CP00 | D76: 1 | E76: 2003-06-15 | F76: 78.89
A77: Austria | B77: All-items HICP | C77: CP00 | D77: 1 | E77: 2003-07-15 | F77: 78.79
A78: Austria | B78: All-items HICP | C78: CP00 | D78: 1 | E78: 2003-08-15 | F78: 79.01
A79: Austria | B79: All-items HICP | C79: CP00 | D79: 1 | E79: 2003-09-15 | F79: 79.22
A80: Austria | B80: All-items HICP | C80: CP00 | D80: 1 | E80: 2003-10-15 | F80: 79.2
A81: Austria | B81: All-items HICP | C81: CP00 | D81: 1 | E81: 2003-11-15 | F81: 79.4
A82: Austria | B82: All-items HICP | C82: CP00 | D82: 1 | E82: 2003-12-15 | F82: 79.62
A83: Austria | B83: All-items HICP | C83: CP00 | D83: 1 | E83: 2004-01-15 | F83: 79.67
A84: Austria | B84: All-items HICP | C84: CP00 | D84: 1 | E84: 2004-02-15 | F84: 80.02
A85: Austria | B85: All-items HICP | C85: CP00 | D85: 1 | E85: 2004-03-15 | F85: 80.34
A86: Austria | B86: All-items HICP | C86: CP00 | D86: 1 | E86: 2004-04-15 | F86: 80.24
A87: Austria | B87: All-items HICP | C87: CP00 | D87: 1 | E87: 2004-05-15 | F87: 80.53
A88: Austria | B88: All-items HICP | C88: CP00 | D88: 1 | E88: 2004-06-15 | F88: 80.68
A89: Austria | B89: All-items HICP | C89: CP00 | D89: 1 | E89: 2004-07-15 | F89: 80.44
A90: Austria | B90: All-items HICP | C90: CP00 | D90: 1 | E90: 2004-08-15 | F90: 80.75
A91: Austria | B91: All-items HICP | C91: CP00 | D91: 1 | E91: 2004-09-15 | F91: 80.68
A92: Austria | B92: All-items HICP | C92: CP00 | D92: 1 | E92: 2004-10-15 | F92: 81.06
A93: Austria | B93: All-items HICP | C93: CP00 | D93: 1 | E93: 2004-11-15 | F93: 81.22
A94: Austria | B94: All-items HICP | C94: CP00 | D94: 1 | E94: 2004-12-15 | F94: 81.62
A95: Austria | B95: All-items HICP | C95: CP00 | D95: 1 | E95: 2005-01-15 | F95: 81.6
A96: Austria | B96: All-items HICP | C96: CP00 | D96: 1 | E96: 2005-02-15 | F96: 81.87
A97: Austria | B97: All-items HICP | C97: CP00 | D97: 1 | E97: 2005-03-15 | F97: 82.26
A98: Austria | B98: All-items HICP | C98: CP00 | D98: 1 | E98: 2005-04-15 | F98: 82.08
A99: Austria | B99: All-items HICP | C99: CP00 | D99: 1 | E99: 2005-05-15 | F99: 82.09
A100: Austria | B100: All-items HICP | C100: CP00 | D100: 1 | E100: 2005-06-15 | F100: 82.3
A101: Austria | B101: All-items HICP | C101: CP00 | D101: 1 | E101: 2005-07-15 | F101: 82.13
A102: Austria | B102: All-items HICP | C102: CP00 | D102: 1 | E102: 2005-08-15 | F102: 82.26
A103: Austria | B103: All-items HICP | C103: CP00 | D103: 1 | E103: 2005-09-15 | F103: 82.73
A104: Austria | B104: All-items HICP | C104: CP00 | D104: 1 | E104: 2005-10-15 | F104: 82.77
A105: Austria | B105: All-items HICP | C105: CP00 | D105: 1 | E105: 2005-11-15 | F105: 82.63
A106: Austria | B106: All-items HICP | C106: CP00 | D106: 1 | E106: 2005-12-15 | F106: 82.87
A107: Austria | B107: All-items HICP | C107: CP00 | D107: 1 | E107: 2006-01-15 | F107: 82.84
A108: Austria | B108: All-items HICP | C108: CP00 | D108: 1 | E108: 2006-02-15 | F108: 83.12
A109: Austria | B109: All-items HICP | C109: CP00 | D109: 1 | E109: 2006-03-15 | F109: 83.34
A110: Austria | B110: All-items HICP | C110: CP00 | D110: 1 | E110: 2006-04-15 | F110: 83.82
A111: Austria | B111: All-items HICP | C111: CP00 | D111: 1 | E111: 2006-05-15 | F111: 83.83
A112: Austria | B112: All-items HICP | C112: CP00 | D112: 1 | E112: 2006-06-15 | F112: 83.84
A113: Austria | B113: All-items HICP | C113: CP00 | D113: 1 | E113: 2006-07-15 | F113: 83.71
A114: Austria | B114: All-items HICP | C114: CP00 | D114: 1 | E114: 2006-08-15 | F114: 83.97
A115: Austria | B115: All-items HICP | C115: CP00 | D115: 1 | E115: 2006-09-15 | F115: 83.85
A116: Austria | B116: All-items HICP | C116: CP00 | D116: 1 | E116: 2006-10-15 | F116: 83.8
A117: Austria | B117: All-items HICP | C117: CP00 | D117: 1 | E117: 2006-11-15 | F117: 83.91
A118: Austria | B118: All-items HICP | C118: CP00 | D118: 1 | E118: 2006-12-15 | F118: 84.22
A119: Austria | B119: All-items HICP | C119: CP00 | D119: 1 | E119: 2007-01-15 | F119: 84.28
A120: Austria | B120: All-items HICP | C120: CP00 | D120: 1 | E120: 2007-02-15 | F120: 84.54
A121: Austria | B121: All-items HICP | C121: CP00 | D121: 1 | E121: 2007-03-15 | F121: 84.94
A122: Austria | B122: All-items HICP | C122: CP00 | D122: 1 | E122: 2007-04-15 | F122: 85.3
A123: Austria | B123: All-items HICP | C123: CP00 | D123: 1 | E123: 2007-05-15 | F123: 85.45
A124: Austria | B124: All-items HICP | C124: CP00 | D124: 1 | E124: 2007-06-15 | F124: 85.45
A125: Austria | B125: All-items HICP | C125: CP00 | D125: 1 | E125: 2007-07-15 | F125: 85.39
A126: Austria | B126: All-items HICP | C126: CP00 | D126: 1 | E126: 2007-08-15 | F126: 85.42
A127: Austria | B127: All-items HICP | C127: CP00 | D127: 1 | E127: 2007-09-15 | F127: 85.63
A128: Austria | B128: All-items HICP | C128: CP00 | D128: 1 | E128: 2007-10-15 | F128: 86.2
A129: Austria | B129: All-items HICP | C129: CP00 | D129: 1 | E129: 2007-11-15 | F129: 86.61
A130: Austria | B130: All-items HICP | C130: CP00 | D130: 1 | E130: 2007-12-15 | F130: 87.14
A131: Austria | B131: All-items HICP | C131: CP00 | D131: 1 | E131: 2008-01-15 | F131: 86.89
A132: Austria | B132: All-items HICP | C132: CP00 | D132: 1 | E132: 2008-02-15 | F132: 87.16
A133: Austria | B133: All-items HICP | C133: CP00 | D133: 1 | E133: 2008-03-15 | F133: 87.95
A134: Austria | B134: All-items HICP | C134: CP00 | D134: 1 | E134: 2008-04-15 | F134: 88.18
A135: Austria | B135: All-items HICP | C135: CP00 | D135: 1 | E135: 2008-05-15 | F135: 88.66
A136: Austria | B136: All-items HICP | C136: CP00 | D136: 1 | E136: 2008-06-15 | F136: 88.9
A137: Austria | B137: All-items HICP | C137: CP00 | D137: 1 | E137: 2008-07-15 | F137: 88.64
A138: Austria | B138: All-items HICP | C138: CP00 | D138: 1 | E138: 2008-08-15 | F138: 88.48
A139: Austria | B139: All-items HICP | C139: CP00 | D139: 1 | E139: 2008-09-15 | F139: 88.82
A140: Austria | B140: All-items HICP | C140: CP00 | D140: 1 | E140: 2008-10-15 | F140: 88.79
A141: Austria | B141: All-items HICP | C141: CP00 | D141: 1 | E141: 2008-11-15 | F141: 88.56
A142: Austria | B142: All-items HICP | C142: CP00 | D142: 1 | E142: 2008-12-15 | F142: 88.42
A143: Austria | B143: All-items HICP | C143: CP00 | D143: 1 | E143: 2009-01-15 | F143: 87.9
A144: Austria | B144: All-items HICP | C144: CP00 | D144: 1 | E144: 2009-02-15 | F144: 88.33
A145: Austria | B145: All-items HICP | C145: CP00 | D145: 1 | E145: 2009-03-15 | F145: 88.49
A146: Austria | B146: All-items HICP | C146: CP00 | D146: 1 | E146: 2009-04-15 | F146: 88.65
A147: Austria | B147: All-items HICP | C147: CP00 | D147: 1 | E147: 2009-05-15 | F147: 88.71
A148: Austria | B148: All-items HICP | C148: CP00 | D148: 1 | E148: 2009-06-15 | F148: 88.62
A149: Austria | B149: All-items HICP | C149: CP00 | D149: 1 | E149: 2009-07-15 | F149: 88.26
A150: Austria | B150: All-items HICP | C150: CP00 | D150: 1 | E150: 2009-08-15 | F150: 88.62
A151: Austria | B151: All-items HICP | C151: CP00 | D151: 1 | E151: 2009-09-15 | F151: 88.8
A152: Austria | B152: All-items HICP | C152: CP00 | D152: 1 | E152: 2009-10-15 | F152: 88.9
A153: Austria | B153: All-items HICP | C153: CP00 | D153: 1 | E153: 2009-11-15 | F153: 89.08
A154: Austria | B154: All-items HICP | C154: CP00 | D154: 1 | E154: 2009-12-15 | F154: 89.35
A155: Austria | B155: All-items HICP | C155: CP00 | D155: 1 | E155: 2010-01-15 | F155: 88.98
A156: Austria | B156: All-items HICP | C156: CP00 | D156: 1 | E156: 2010-02-15 | F156: 89.16
A157: Austria | B157: All-items HICP | C157: CP00 | D157: 1 | E157: 2010-03-15 | F157: 90.09
A158: Austria | B158: All-items HICP | C158: CP00 | D158: 1 | E158: 2010-04-15 | F158: 90.28
A159: Austria | B159: All-items HICP | C159: CP00 | D159: 1 | E159: 2010-05-15 | F159: 90.23
A160: Austria | B160: All-items HICP | C160: CP00 | D160: 1 | E160: 2010-06-15 | F160: 90.22
A161: Austria | B161: All-items HICP | C161: CP00 | D161: 1 | E161: 2010-07-15 | F161: 89.76
A162: Austria | B162: All-items HICP | C162: CP00 | D162: 1 | E162: 2010-08-15 | F162: 90
A163: Austria | B163: All-items HICP | C163: CP00 | D163: 1 | E163: 2010-09-15 | F163: 90.35
A164: Austria | B164: All-items HICP | C164: CP00 | D164: 1 | E164: 2010-10-15 | F164: 90.68
A165: Austria | B165: All-items HICP | C165: CP00 | D165: 1 | E165: 2010-11-15 | F165: 90.68
A166: Austria | B166: All-items HICP | C166: CP00 | D166: 1 | E166: 2010-12-15 | F166: 91.3
A167: Austria | B167: All-items HICP | C167: CP00 | D167: 1 | E167: 2011-01-15 | F167: 91.24
A168: Austria | B168: All-items HICP | C168: CP00 | D168: 1 | E168: 2011-02-15 | F168: 91.97
A169: Austria | B169: All-items HICP | C169: CP00 | D169: 1 | E169: 2011-03-15 | F169: 93.09
A170: Austria | B170: All-items HICP | C170: CP00 | D170: 1 | E170: 2011-04-15 | F170: 93.64
A171: Austria | B171: All-items HICP | C171: CP00 | D171: 1 | E171: 2011-05-15 | F171: 93.56
A172: Austria | B172: All-items HICP | C172: CP00 | D172: 1 | E172: 2011-06-15 | F172: 93.53
A173: Austria | B173: All-items HICP | C173: CP00 | D173: 1 | E173: 2011-07-15 | F173: 93.19
A174: Austria | B174: All-items HICP | C174: CP00 | D174: 1 | E174: 2011-08-15 | F174: 93.34
A175: Austria | B175: All-items HICP | C175: CP00 | D175: 1 | E175: 2011-09-15 | F175: 93.9
A176: Austria | B176: All-items HICP | C176: CP00 | D176: 1 | E176: 2011-10-15 | F176: 94.11
A177: Austria | B177: All-items HICP | C177: CP00 | D177: 1 | E177: 2011-11-15 | F177: 94.17
A178: Austria | B178: All-items HICP | C178: CP00 | D178: 1 | E178: 2011-12-15 | F178: 94.4
A179: Austria | B179: All-items HICP | C179: CP00 | D179: 1 | E179: 2012-01-15 | F179: 93.88
A180: Austria | B180: All-items HICP | C180: CP00 | D180: 1 | E180: 2012-02-15 | F180: 94.38
A181: Austria | B181: All-items HICP | C181: CP00 | D181: 1 | E181: 2012-03-15 | F181: 95.55
A182: Austria | B182: All-items HICP | C182: CP00 | D182: 1 | E182: 2012-04-15 | F182: 95.82
A183: Austria | B183: All-items HICP | C183: CP00 | D183: 1 | E183: 2012-05-15 | F183: 95.63
A184: Austria | B184: All-items HICP | C184: CP00 | D184: 1 | E184: 2012-06-15 | F184: 95.62
A185: Austria | B185: All-items HICP | C185: CP00 | D185: 1 | E185: 2012-07-15 | F185: 95.13
A186: Austria | B186: All-items HICP | C186: CP00 | D186: 1 | E186: 2012-08-15 | F186: 95.47
A187: Austria | B187: All-items HICP | C187: CP00 | D187: 1 | E187: 2012-09-15 | F187: 96.55
A188: Austria | B188: All-items HICP | C188: CP00 | D188: 1 | E188: 2012-10-15 | F188: 96.85
A189: Austria | B189: All-items HICP | C189: CP00 | D189: 1 | E189: 2012-11-15 | F189: 96.92
A190: Austria | B190: All-items HICP | C190: CP00 | D190: 1 | E190: 2012-12-15 | F190: 97.15
A191: Austria | B191: All-items HICP | C191: CP00 | D191: 1 | E191: 2013-01-15 | F191: 96.53
A192: Austria | B192: All-items HICP | C192: CP00 | D192: 1 | E192: 2013-02-15 | F192: 96.87
A193: Austria | B193: All-items HICP | C193: CP00 | D193: 1 | E193: 2013-03-15 | F193: 97.8
A194: Austria | B194: All-items HICP | C194: CP00 | D194: 1 | E194: 2013-04-15 | F194: 97.82
A195: Austria | B195: All-items HICP | C195: CP00 | D195: 1 | E195: 2013-05-15 | F195: 97.94
A196: Austria | B196: All-items HICP | C196: CP00 | D196: 1 | E196: 2013-06-15 | F196: 97.77
A197: Austria | B197: All-items HICP | C197: CP00 | D197: 1 | E197: 2013-07-15 | F197: 97.15
A198: Austria | B198: All-items HICP | C198: CP00 | D198: 1 | E198: 2013-08-15 | F198: 97.37
A199: Austria | B199: All-items HICP | C199: CP00 | D199: 1 | E199: 2013-09-15 | F199: 98.31
A200: Austria | B200: All-items HICP | C200: CP00 | D200: 1 | E200: 2013-10-15 | F200: 98.3
A201: Austria | B201: All-items HICP | C201: CP00 | D201: 1 | E201: 2013-11-15 | F201: 98.33
A202: Austria | B202: All-items HICP | C202: CP00 | D202: 1 | E202: 2013-12-15 | F202: 99.08
A203: Austria | B203: All-items HICP | C203: CP00 | D203: 1 | E203: 2014-01-15 | F203: 98.01
... 4297 more rows

Sheet 5.2-5.4
B1: Events | BR1: 140 | EY1: 140 | FX1: 140 | GO1: 140
A4: Sum of Value | C4: Date
A5: Region | B5: item_Desc | C5: 1996-01-15 | D5: 1996-02-15 | E5: 1996-03-15 | F5: 1996-04-15 | G5: 1996-05-15 | H5: 1996-06-15 | I5: 1996-07-15 | J5: 1996-08-15 | K5: 1996-09-15 | L5: 1996-10-15 | M5: 1996-11-15 | N5: 1996-12-15 | O5: 1997-01-15 | P5: 1997-02-15 | Q5: 1997-03-15 | R5: 1997-04-15 | S5: 1997-05-15 | T5: 1997-06-15 | U5: 1997-07-15 | V5: 1997-08-15 | W5: 1997-09-15 | X5: 1997-10-15 | Y5: 1997-11-15 | Z5: 1997-12-15 | AA5: 1998-01-15 | AB5: 1998-02-15 | AC5: 1998-03-15 | AD5: 1998-04-15 | AE5: 1998-05-15 | AF5: 1998-06-15 | AG5: 1998-07-15 | AH5: 1998-08-15 | AI5: 1998-09-15 | AJ5: 1998-10-15 | AK5: 1998-11-15 | AL5: 1998-12-15 | AM5: 1999-01-15 | AN5: 1999-02-15 | AO5: 1999-03-15 | AP5: 1999-04-15 | AQ5: 1999-05-15 | AR5: 1999-06-15 | AS5: 1999-07-15 | AT5: 1999-08-15 | AU5: 1999-09-15 | AV5: 1999-10-15 | AW5: 1999-11-15 | AX5: 1999-12-15 | AY5: 2000-01-15 | AZ5: 2000-02-15 | BA5: 2000-03-15 | BB5: 2000-04-15 | BC5: 2000-05-15 | BD5: 2000-06-15 | BE5: 2000-07-15 | BF5: 2000-08-15 | BG5: 2000-09-15 | BH5: 2000-10-15 | BI5: 2000-11-15 | BJ5: 2000-12-15 | BK5: 2001-01-15 | BL5: 2001-02-15 | BM5: 2001-03-15 | BN5: 2001-04-15 | BO5: 2001-05-15 | BP5: 2001-06-15 | BQ5: 2001-07-15 | BR5: 2001-08-15 | BS5: 2001-09-15 | BT5: 2001-10-15 | BU5: 2001-11-15 | BV5: 2001-12-15 | BW5: 2002-01-15 | BX5: 2002-02-15 | BY5: 2002-03-15 | BZ5: 2002-04-15 | CA5: 2002-05-15 | CB5: 2002-06-15 | CC5: 2002-07-15 | CD5: 2002-08-15 | CE5: 2002-09-15 | CF5: 2002-10-15 | CG5: 2002-11-15 | CH5: 2002-12-15 | CI5: 2003-01-15 | CJ5: 2003-02-15 | CK5: 2003-03-15 | CL5: 2003-04-15 | CM5: 2003-05-15 | CN5: 2003-06-15 | CO5: 2003-07-15 | CP5: 2003-08-15 | CQ5: 2003-09-15 | CR5: 2003-10-15 | CS5: 2003-11-15 | CT5: 2003-12-15 | CU5: 2004-01-15 | CV5: 2004-02-15 | CW5: 2004-03-15 | CX5: 2004-04-15 | CY5: 2004-05-15 | CZ5: 2004-06-15 | DA5: 2004-07-15 | DB5: 2004-08-15 | DC5: 2004-09-15 | DD5: 2004-10-15 | DE5: 2004-11-15 | DF5: 2004-12-15 | DG5: 2005-01-15 | DH5: 2005-02-15 | DI5: 2005-03-15 | DJ5: 2005-04-15 | DK5: 2005-05-15 | DL5: 2005-06-15 | DM5: 2005-07-15 | DN5: 2005-08-15 | DO5: 2005-09-15 | DP5: 2005-10-15 | DQ5: 2005-11-15 | DR5: 2005-12-15 | DS5: 2006-01-15 | DT5: 2006-02-15 | DU5: 2006-03-15 | DV5: 2006-04-15 | DW5: 2006-05-15 | DX5: 2006-06-15 | DY5: 2006-07-15 | DZ5: 2006-08-15 | EA5: 2006-09-15 | EB5: 2006-10-15 | EC5: 2006-11-15 | ED5: 2006-12-15 | EE5: 2007-01-15 | EF5: 2007-02-15 | EG5: 2007-03-15 | EH5: 2007-04-15 | EI5: 2007-05-15 | EJ5: 2007-06-15 | EK5: 2007-07-15 | EL5: 2007-08-15 | EM5: 2007-09-15 | EN5: 2007-10-15 | EO5: 2007-11-15 | EP5: 2007-12-15 | EQ5: 2008-01-15 | ER5: 2008-02-15 | ES5: 2008-03-15 | ET5: 2008-04-15 | EU5: 2008-05-15 | EV5: 2008-06-15 | EW5: 2008-07-15 | EX5: 2008-08-15 | EY5: 2008-09-15 | EZ5: 2008-10-15 | FA5: 2008-11-15 | FB5: 2008-12-15 | FC5: 2009-01-15 | FD5: 2009-02-15 | FE5: 2009-03-15 | FF5: 2009-04-15 | FG5: 2009-05-15 | FH5: 2009-06-15 | FI5: 2009-07-15 | FJ5: 2009-08-15 | FK5: 2009-09-15 | FL5: 2009-10-15 | FM5: 2009-11-15 | FN5: 2009-12-15 | FO5: 2010-01-15 | FP5: 2010-02-15 | FQ5: 2010-03-15 | FR5: 2010-04-15 | FS5: 2010-05-15 | FT5: 2010-06-15 | FU5: 2010-07-15 | FV5: 2010-08-15 | FW5: 2010-09-15 | FX5: 2010-10-15 | FY5: 2010-11-15 | FZ5: 2010-12-15 | GA5: 2011-01-15 | GB5: 2011-02-15 | GC5: 2011-03-15 | GD5: 2011-04-15 | GE5: 2011-05-15 | GF5: 2011-06-15 | GG5: 2011-07-15 | GH5: 2011-08-15 | GI5: 2011-09-15 | GJ5: 2011-10-15 | GK5: 2011-11-15 | GL5: 2011-12-15 | GM5: 2012-01-15 | GN5: 2012-02-15 | GO5: 2012-03-15 | GP5: 2012-04-15 | GQ5: 2012-05-15 | GR5: 2012-06-15 | GS5: 2012-07-15 | GT5: 2012-08-15 | GU5: 2012-09-15 | GV5: 2012-10-15 | GW5: 2012-11-15 | GX5: 2012-12-15 | GY5: 2013-01-15 | GZ5: 2013-02-15 | HA5: 2013-03-15 | HB5: 2013-04-15 | HC5: 2013-05-15 | HD5: 2013-06-15 | HE5: 2013-07-15 | HF5: 2013-08-15 | HG5: 2013-09-15 | HH5: 2013-10-15 | HI5: 2013-11-15 | HJ5: 2013-12-15 | HK5: 2014-01-15 | HL5: 2014-02-15 | HM5: 2014-03-15 | HN5: 2014-04-15 | HO5: 2014-05-15 | HP5: 2014-06-15 | HQ5: 2014-07-15 | HR5: 2014-08-15 | HS5: 2014-09-15 | HT5: 2014-10-15 | HU5: 2014-11-15 | HV5: 2014-12-15 | HW5: 2015-01-15 | HX5: 2015-02-15 | HY5: 2015-03-15 | HZ5: 2015-04-15 | IA5: 2015-05-15 | IB5: 2015-06-15 | IC5: 2015-07-15 | ID5: 2015-08-15 | IE5: 2015-09-15 | IF5: 2015-10-15 | IG5: 2015-11-15 | IH5: 2015-12-15 | II5: 2016-01-15 | IJ5: 2016-02-15
A6: Greece | B6: All-items HICP | C6: 59.04 | D6: 58.92 | E6: 60.64 | F6: 61.25 | G6: 61.74 | H6: 61.86 | I6: 60.76 | J6: 60.7 | K6: 62.11 | L6: 62.6 | M6: 62.66 | N6: 63.4 | O6: 62.97 | P6: 62.72 | Q6: 64.19 | R6: 64.74 | S6: 65.05 | T6: 65.3 | U6: 63.95 | V6: 64.07 | W6: 65.17 | X6: 65.48 | Y6: 65.79 | Z6: 66.28 | AA6: 65.66 | AB6: 65.3 | AC6: 66.95 | AD6: 68.05 | AE6: 68.3 | AF6: 68.48 | AG6: 67.01 | AH6: 67.07 | AI6: 68.42 | AJ6: 68.42 | AK6: 68.36 | AL6: 68.73 | AM6: 67.81 | AN6: 67.32 | AO6: 68.97 | AP6: 69.83 | AQ6: 69.65 | AR6: 69.53 | AS6: 68.05 | AT6: 67.99 | AU6: 69.34 | AV6: 69.59 | AW6: 69.71 | AX6: 70.32 | AY6: 69.4 | AZ6: 69.1 | BA6: 70.88 | BB6: 71.3 | BC6: 71.49 | BD6: 71.06 | BE6: 69.83 | BF6: 69.96 | BG6: 71.43 | BH6: 72.22 | BI6: 72.53 | BJ6: 72.9 | BK6: 71.61 | BL6: 71.46 | BM6: 73.13 | BN6: 73.94 | BO6: 74.31 | BP6: 74.24 | BQ6: 72.75 | BR6: 72.76 | BS6: 74.3 | BT6: 74.53 | BU6: 74.63 | BV6: 75.47 | BW6: 75.03 | BX6: 74.16 | BY6: 76.31 | BZ6: 76.96 | CA6: 77.13 | CB6: 76.92 | CC6: 75.4 | CD6: 75.55 | CE6: 77.12 | CF6: 77.53 | CG6: 77.54 | CH6: 78.11 | CI6: 77.51 | CJ6: 77.32 | CK6: 79.29 | CL6: 79.47 | CM6: 79.82 | CN6: 79.73 | CO6: 78.03 | CP6: 78.03 | CQ6: 79.65 | CR6: 79.95 | CS6: 80.09 | CT6: 80.53 | CU6: 79.86 | CV6: 79.36 | CW6: 81.62 | CX6: 81.91 | CY6: 82.26 | CZ6: 82.09 | DA6: 80.49 | DB6: 80.25 | DC6: 81.99 | DD6: 82.59 | DE6: 82.62 | DF6: 83.05 | DG6: 83.25 | DH6: 81.85 | DI6: 83.94 | DJ6: 84.6 | DK6: 84.89 | DL6: 84.72 | DM6: 83.6 | DN6: 83.13 | DO6: 85.12 | DP6: 85.66 | DQ6: 85.47 | DR6: 85.96 | DS6: 85.76 | DT6: 84.41 | DU6: 86.73 | DV6: 87.59 | DW6: 87.69 | DX6: 87.64 | DY6: 86.9 | DZ6: 86 | EA6: 87.76 | EB6: 88.34 | EC6: 88.2 | ED6: 88.71 | EE6: 88.36 | EF6: 86.97 | EG6: 89.13 | EH6: 89.83 | EI6: 89.99 | EJ6: 89.95 | EK6: 89.27 | EL6: 88.36 | EM6: 90.35 | EN6: 90.98 | EO6: 91.67 | EP6: 92.13 | EQ6: 91.82 | ER6: 90.93 | ES6: 93.03 | ET6: 93.8 | EU6: 94.44 | EV6: 94.39 | EW6: 93.68 | EX6: 92.63 | EY6: 94.61 | EZ6: 94.64 | FA6: 94.43 | FB6: 94.15 | FC6: 93.64 | FD6: 92.59 | FE6: 94.45 | FF6: 94.87 | FG6: 95.11 | FH6: 95.04 | FI6: 94.34 | FJ6: 93.54 | FK6: 95.31 | FL6: 95.81 | FM6: 96.42 | FN6: 96.55 | FO6: 95.82 | FP6: 95.24 | FQ6: 98.16 | FR6: 99.38 | FS6: 100.15 | FT6: 99.98 | FU6: 99.55 | FV6: 98.81 | FW6: 100.7 | FX6: 100.83 | FY6: 101.04 | FZ6: 101.53 | GA6: 100.53 | GB6: 99.19 | GC6: 102.38 | GD6: 103.05 | GE6: 103.28 | GF6: 103.07 | GG6: 101.65 | GH6: 100.21 | GI6: 103.61 | GJ6: 103.71 | GK6: 103.91 | GL6: 103.74 | GM6: 102.6 | GN6: 100.85 | GO6: 103.76 | GP6: 104.62 | GQ6: 104.25 | GR6: 104.05 | GS6: 102.57 | GT6: 101.36 | GU6: 103.9 | GV6: 104.67 | GW6: 104.34 | GX6: 104.07 | GY6: 102.65 | GZ6: 100.99 | HA6: 103.51 | HB6: 104 | HC6: 103.95 | HD6: 103.79 | HE6: 102.09 | HF6: 100.38 | HG6: 102.85 | HH6: 102.69 | HI6: 101.36 | HJ6: 102.18 | HK6: 101.21 | HL6: 100.12 | HM6: 101.97 | HN6: 102.35 | HO6: 101.73 | HP6: 102.27 | HQ6: 101.23 | HR6: 100.14 | HS6: 101.72 | HT6: 100.84 | HU6: 100.12 | HV6: 99.59 | HW6: 98.42 | HX6: 98.21 | HY6: 100.07 | HZ6: 100.5 | IA6: 100.28 | IB6: 101.15 | IC6: 99.96 | ID6: 99.75 | IE6: 100.94 | IF6: 100.75 | IG6: 100.01 | IH6: 99.98 | II6: 98.3 | IJ6: 98.28
B7: Clothing and footwear | C7: 60.31 | D7: 57.68 | E7: 65.56 | F7: 65.63 | G7: 65.82 | H7: 67.53 | I7: 62.67 | J7: 62.74 | K7: 67.8 | L7: 70.75 | M7: 70.95 | N7: 70.95 | O7: 64.77 | P7: 62.8 | Q7: 71.01 | R7: 71.01 | S7: 71.15 | T7: 72.33 | U7: 66.02 | V7: 66.02 | W7: 72.39 | X7: 74.82 | Y7: 74.89 | Z7: 74.96 | AA7: 68.45 | AB7: 66.28 | AC7: 74.96 | AD7: 75.02 | AE7: 75.22 | AF7: 76.66 | AG7: 69.83 | AH7: 69.83 | AI7: 76.8 | AJ7: 78.83 | AK7: 78.96 | AL7: 79.03 | AM7: 71.67 | AN7: 69.63 | AO7: 79.03 | AP7: 79.03 | AQ7: 79.09 | AR7: 80.08 | AS7: 72.59 | AT7: 72.59 | AU7: 79.29 | AV7: 80.15 | AW7: 80.28 | AX7: 80.28 | AY7: 72.66 | AZ7: 70.36 | BA7: 80.28 | BB7: 80.34 | BC7: 80.47 | BD7: 81.13 | BE7: 73.31 | BF7: 73.31 | BG7: 81.13 | BH7: 82.84 | BI7: 83.1 | BJ7: 83.1 | BK7: 74.3 | BL7: 71.08 | BM7: 83.18 | BN7: 83.19 | BO7: 83.42 | BP7: 84.1 | BQ7: 75.11 | BR7: 75.12 | BS7: 84.13 | BT7: 85.9 | BU7: 86.18 | BV7: 86.2 | BW7: 77.92 | BX7: 73.6 | BY7: 86.28 | BZ7: 86.32 | CA7: 87.35 | CB7: 87.49 | CC7: 77.38 | CD7: 77.38 | CE7: 86.82 | CF7: 88.5 | CG7: 88.61 | CH7: 88.63 | CI7: 80.01 | CJ7: 74.58 | CK7: 88.06 | CL7: 88.09 | CM7: 89.16 | CN7: 89.2 | CO7: 78.61 | CP7: 78.06 | CQ7: 88 | CR7: 90.45 | CS7: 90.87 | CT7: 91.21 | CU7: 83.5 | CV7: 76.43 | CW7: 91.26 | CX7: 91.31 | CY7: 92.38 | CZ7: 92.41 | DA7: 84.4 | DB7: 81.16 | DC7: 92.41 | DD7: 93.99 | DE7: 94.3 | DF7: 94.32 | DG7: 94.32 | DH7: 81.16 | DI7: 94.39 | DJ7: 94.45 | DK7: 95.67 | DL7: 95.67 | DM7: 89.89 | DN7: 84.11 | DO7: 95.7 | DP7: 97.44 | DQ7: 97.58 | DR7: 97.58 | DS7: 93.64 | DT7: 81.81 | DU7: 96.38 | DV7: 97.57 | DW7: 98.85 | DX7: 98.91 | DY7: 91.83 | DZ7: 84.74 | EA7: 98.58 | EB7: 100.55 | EC7: 100.63 | ED7: 100.65 | EE7: 96.83 | EF7: 85.16 | EG7: 100.66 | EH7: 100.67 | EI7: 101.97 | EJ7: 101.98 | EK7: 95.15 | EL7: 85.83 | EM7: 102.01 | EN7: 103.47 | EO7: 103.63 | EP7: 103.76 | EQ7: 96.01 | ER7: 86.44 | ES7: 103.86 | ET7: 103.89 | EU7: 105.24 | EV7: 105.27 | EW7: 98.22 | EX7: 88.63 | EY7: 105.29 | EZ7: 106.78 | FA7: 106.95 | FB7: 106.98 | FC7: 98.97 | FD7: 89.57 | FE7: 107.02 | FF7: 107.05 | FG7: 108.29 | FH7: 108.33 | FI7: 101.09 | FJ7: 92.13 | FK7: 108.39 | FL7: 109.74 | FM7: 109.91 | FN7: 109.95 | FO7: 98.97 | FP7: 87.98 | FQ7: 108.2 | FR7: 110.03 | FS7: 110.9 | FT7: 110.96 | FU7: 102.61 | FV7: 93.64 | FW7: 110.98 | FX7: 112.46 | FY7: 112.51 | FZ7: 112.52 | GA7: 96.31 | GB7: 78.66 | GC7: 109.45 | GD7: 112.55 | GE7: 114.29 | GF7: 114.29 | GG7: 98.47 | GH7: 83.66 | GI7: 114.28 | GJ7: 114.65 | GK7: 114.9 | GL7: 111.37 | GM7: 96.95 | GN7: 78.91 | GO7: 105.79 | GP7: 114.93 | GQ7: 112.95 | GR7: 112.95 | GS7: 97.36 | GT7: 81.78 | GU7: 112.95 | GV7: 116.96 | GW7: 117.81 | GX7: 117.6 | GY7: 99.39 | GZ7: 80.33 | HA7: 108.1 | HB7: 117.43 | HC7: 116.88 | HD7: 116.89 | HE7: 100.71 | HF7: 84.53 | HG7: 116.89 | HH7: 115.64 | HI7: 104.03 | HJ7: 113.97 | HK7: 96.47 | HL7: 77.99 | HM7: 108.49 | HN7: 114.8 | HO7: 104.41 | HP7: 113.41 | HQ7: 97.86 | HR7: 82.4 | HS7: 112.5 | HT7: 113.64 | HU7: 104.25 | HV7: 109.37 | HW7: 94.26 | HX7: 78.78 | HY7: 103.91 | HZ7: 111.98 | IA7: 98.92 | IB7: 109.12 | IC7: 95.27 | ID7: 78.19 | IE7: 107.03 | IF7: 111.4 | IG7: 101.21 | IH7: 109.95 | II7: 85.29 | IJ7: 81.22
B8: Hairdressing salons and personal grooming establishments | C8: 51.02 | D8: 48.85 | E8: 49.06 | F8: 56.43 | G8: 49.21 | H8: 49.88 | I8: 50.04 | J8: 50.04 | K8: 50.14 | L8: 50.4 | M8: 50.3 | N8: 63.02 | O8: 55.14 | P8: 53.23 | Q8: 53.54 | R8: 62.05 | S8: 54.06 | T8: 54.32 | U8: 54.42 | V8: 54.47 | W8: 54.47 | X8: 54.68 | Y8: 55.4 | Z8: 69.83 | AA8: 60.4 | AB8: 58.28 | AC8: 58.7 | AD8: 67.71 | AE8: 59.47 | AF8: 59.98 | AG8: 60.14 | AH8: 60.14 | AI8: 60.29 | AJ8: 60.29 | AK8: 60.45 | AL8: 76.01 | AM8: 64.31 | AN8: 61.58 | AO8: 62.1 | AP8: 72.09 | AQ8: 62.87 | AR8: 62.92 | AS8: 62.97 | AT8: 62.97 | AU8: 62.97 | AV8: 62.97 | AW8: 63.08 | AX8: 78.79 | AY8: 67.4 | AZ8: 64.93 | BA8: 64.98 | BB8: 74.93 | BC8: 65.55 | BD8: 65.6 | BE8: 65.7 | BF8: 65.7 | BG8: 66.12 | BH8: 66.43 | BI8: 66.12 | BJ8: 82.81 | BK8: 72.66 | BL8: 69.66 | BM8: 70.18 | BN8: 81.51 | BO8: 71.23 | BP8: 71.46 | BQ8: 71.56 | BR8: 71.56 | BS8: 71.56 | BT8: 71.86 | BU8: 73.08 | BV8: 79.24 | BW8: 75.63 | BX8: 76.08 | BY8: 77.91 | BZ8: 79.54 | CA8: 79.74 | CB8: 79.2 | CC8: 79.5 | CD8: 79.5 | CE8: 80.27 | CF8: 81.04 | CG8: 81.51 | CH8: 86.23 | CI8: 83.98 | CJ8: 83.62 | CK8: 84.06 | CL8: 87.74 | CM8: 85.37 | CN8: 85.67 | CO8: 85.84 | CP8: 85.96 | CQ8: 86.53 | CR8: 86.6 | CS8: 86.61 | CT8: 95.39 | CU8: 88.67 | CV8: 87.89 | CW8: 88.18 | CX8: 90.88 | CY8: 88.83 | CZ8: 89.61 | DA8: 90.17 | DB8: 90.25 | DC8: 90.45 | DD8: 90.86 | DE8: 91.16 | DF8: 98.58 | DG8: 94.01 | DH8: 92.51 | DI8: 92.77 | DJ8: 95.19 | DK8: 95.99 | DL8: 95.5 | DM8: 95.5 | DN8: 95.53 | DO8: 95.73 | DP8: 95.78 | DQ8: 95.89 | DR8: 101.83 | DS8: 98.63 | DT8: 97.02 | DU8: 97.06 | DV8: 98.82 | DW8: 98.11 | DX8: 98.25 | DY8: 98.25 | DZ8: 98.41 | EA8: 98.57 | EB8: 99.08 | EC8: 99.27 | ED8: 103.5 | EE8: 101.19 | EF8: 100.06 | EG8: 100.06 | EH8: 101.75 | EI8: 100.3 | EJ8: 100.53 | EK8: 100.73 | EL8: 100.85 | EM8: 101.35 | EN8: 101.78 | EO8: 101.86 | EP8: 106.35 | EQ8: 103.9 | ER8: 102.88 | ES8: 103.64 | ET8: 105.47 | EU8: 104.34 | EV8: 104.56 | EW8: 104.61 | EX8: 104.61 | EY8: 104.84 | EZ8: 105.18 | FA8: 105.64 | FB8: 110.04 | FC8: 108.07 | FD8: 106.24 | FE8: 106.62 | FF8: 109.38 | FG8: 107.6 | FH8: 107.7 | FI8: 107.98 | FJ8: 108.17 | FK8: 108.44 | FL8: 108.86 | FM8: 109.08 | FN8: 111.17 | FO8: 110.77 | FP8: 110.1 | FQ8: 111.86 | FR8: 111.76 | FS8: 110.56 | FT8: 110.56 | FU8: 110.6 | FV8: 110.61 | FW8: 110.67 | FX8: 110.64 | FY8: 110.72 | FZ8: 114.06 | GA8: 111.71 | GB8: 111.41 | GC8: 110.97 | GD8: 111.06 | GE8: 111.05 | GF8: 111.07 | GG8: 110.82 | GH8: 110.84 | GI8: 111.21 | GJ8: 111.06 | GK8: 111.06 | GL8: 113.74 | GM8: 113.35 | GN8: 111.04 | GO8: 110.07 | GP8: 109.14 | GQ8: 108.05 | GR8: 108.05 | GS8: 108.27 | GT8: 108.07 | GU8: 107.47 | GV8: 107.25 | GW8: 107.11 | GX8: 106.79 | GY8: 106.45 | GZ8: 105.85 | HA8: 105.87 | HB8: 104.73 | HC8: 104.58 | HD8: 104.28 | HE8: 104.39 | HF8: 104.41 | HG8: 103.7 | HH8: 103.34 | HI8: 102.54 | HJ8: 101.87 | HK8: 101.99 | HL8: 101.8 | HM8: 101.75 | HN8: 101.33 | HO8: 101.18 | HP8: 101.13 | HQ8: 100.84 | HR8: 101 | HS8: 101 | HT8: 101 | HU8: 101.31 | HV8: 100.82 | HW8: 100.62 | HX8: 100.39 | HY8: 100.36 | HZ8: 100.16 | IA8: 100.2 | IB8: 100.09 | IC8: 100.14 | ID8: 100.46 | IE8: 99.69 | IF8: 99.35 | IG8: 99.33 | IH8: 99.2 | II8: 99.12 | IJ8: 99.09
A9: United States | B9: All-items HICP | Z9: 69.02 | AA9: 69.11 | AB9: 69.16 | AC9: 69.26 | AD9: 69.4 | AE9: 69.55 | AF9: 69.57 | AG9: 69.59 | AH9: 69.68 | AI9: 69.75 | AJ9: 69.9 | AK9: 69.89 | AL9: 69.83 | AM9: 70 | AN9: 70.04 | AO9: 70.24 | AP9: 70.83 | AQ9: 70.81 | AR9: 70.79 | AS9: 70.97 | AT9: 71.18 | AU9: 71.57 | AV9: 71.74 | AW9: 71.73 | AX9: 71.71 | AY9: 71.87 | AZ9: 72.32 | BA9: 72.98 | BB9: 73.03 | BC9: 73.08 | BD9: 73.52 | BE9: 73.64 | BF9: 73.6 | BG9: 74.09 | BH9: 74.17 | BI9: 74.02 | BJ9: 73.95 | BK9: 74.44 | BL9: 74.73 | BM9: 74.84 | BN9: 75.16 | BO9: 75.52 | BP9: 75.62 | BQ9: 75.24 | BR9: 75.17 | BS9: 75.57 | BT9: 75.19 | BU9: 74.95 | BV9: 74.53 | BW9: 74.63 | BX9: 74.84 | BY9: 75.27 | BZ9: 75.77 | CA9: 75.74 | CB9: 75.77 | CC9: 75.79 | CD9: 76.01 | CE9: 76.23 | CF9: 76.36 | CG9: 76.37 | CH9: 76.16 | CI9: 76.43 | CJ9: 77.15 | CK9: 77.71 | CL9: 77.47 | CM9: 77.25 | CN9: 77.37 | CO9: 77.37 | CP9: 77.69 | CQ9: 78.07 | CR9: 77.89 | CS9: 77.65 | CT9: 77.54 | CU9: 77.93 | CV9: 78.42 | CW9: 78.87 | CX9: 79.12 | CY9: 79.68 | CZ9: 79.96 | DA9: 79.73 | DB9: 79.73 | DC9: 79.96 | DD9: 80.5 | DE9: 80.66 | DF9: 80.28 | DG9: 80.33 | DH9: 80.77 | DI9: 81.38 | DJ9: 82.13 | DK9: 82.09 | DL9: 82.06 | DM9: 82.42 | DN9: 82.98 | DO9: 84.49 | DP9: 84.58 | DQ9: 83.73 | DR9: 83.23 | DS9: 83.92 | DT9: 83.99 | DU9: 84.43 | DV9: 85.25 | DW9: 85.73 | DX9: 85.85 | DY9: 86.02 | DZ9: 86.2 | EA9: 85.66 | EB9: 84.93 | EC9: 84.74 | ED9: 84.9 | EE9: 85.07 | EF9: 85.51 | EG9: 86.44 | EH9: 87.1 | EI9: 87.8 | EJ9: 87.9 | EK9: 87.74 | EL9: 87.5 | EM9: 87.85 | EN9: 88.06 | EO9: 88.79 | EP9: 88.69 | EQ9: 89.11 | ER9: 89.35 | ES9: 90.25 | ET9: 90.99 | EU9: 92.01 | EV9: 93.14 | EW9: 93.68 | EX9: 93.19 | EY9: 93.05 | EZ9: 91.79 | FA9: 89.47 | FB9: 88.27 | FC9: 88.64 | FD9: 89.17 | FE9: 89.37 | FF9: 89.64 | FG9: 90 | FH9: 90.98 | FI9: 90.78 | FJ9: 91.06 | FK9: 91.24 | FL9: 91.36 | FM9: 91.59 | FN9: 91.42 | FO9: 91.86 | FP9: 91.9 | FQ9: 92.43 | FR9: 92.66 | FS9: 92.75 | FT9: 92.61 | FU9: 92.63 | FV9: 92.79 | FW9: 92.85 | FX9: 92.98 | FY9: 92.98 | FZ9: 93.17 | GA9: 93.72 | GB9: 94.3 | GC9: 95.5 | GD9: 96.29 | GE9: 96.87 | GF9: 96.68 | GG9: 96.73 | GH9: 97.01 | GI9: 97.17 | GJ9: 96.84 | GK9: 96.67 | GL9: 96.3 | GM9: 96.79 | GN9: 97.32 | GO9: 98.21 | GP9: 98.54 | GQ9: 98.36 | GR9: 98.15 | GS9: 98.06 | GT9: 98.62 | GU9: 99.11 | GV9: 99 | GW9: 98.34 | GX9: 97.96 | GY9: 98.27 | GZ9: 99.25 | HA9: 99.54 | HB9: 99.37 | HC9: 99.54 | HD9: 99.79 | HE9: 99.8 | HF9: 99.86 | HG9: 99.94 | HH9: 99.54 | HI9: 99.18 | HJ9: 99.09 | HK9: 99.51 | HL9: 99.94 | HM9: 100.71 | HN9: 101.1 | HO9: 101.51 | HP9: 101.7 | HQ9: 101.57 | HR9: 101.27 | HS9: 101.29 | HT9: 100.87 | HU9: 100.06 | HV9: 99.27 | HW9: 98.57 | HX9: 99.07 | HY9: 99.77 | HZ9: 99.97 | IA9: 100.58 | IB9: 100.93 | IC9: 100.85 | ID9: 100.57 | IE9: 100.26 | IF9: 100.12 | IG9: 99.75 | IH9: 99.56
B10: Clothing and footwear | Z10: 101.91 | AA10: 100.21 | AB10: 101.74 | AC10: 104.34 | AD10: 104.93 | AE10: 104.65 | AF10: 102.67 | AG10: 100.25 | AH10: 101.8 | AI10: 103.45 | AJ10: 104.83 | AK10: 104.4 | AL10: 101.33 | AM10: 98.92 | AN10: 100.18 | AO10: 102.74 | AP10: 104.54 | AQ10: 103.8 | AR10: 101.32 | AS10: 98.35 | AT10: 98.51 | AU10: 102.05 | AV10: 104.21 | AW10: 103.47 | AX10: 100.99 | AY10: 98.17 | AZ10: 99.79 | BA10: 102.62 | BB10: 103.19 | BC10: 102.51 | BD10: 99.66 | BE10: 96.58 | BF10: 97.31 | BG10: 101.43 | BH10: 103.19 | BI10: 102.38 | BJ10: 99.52 | BK10: 97.15 | BL10: 99.52 | BM10: 102.57 | BN10: 102.44 | BO10: 100.9 | BP10: 98.15 | BQ10: 95.25 | BR10: 95.29 | BS10: 98.91 | BT10: 100.84 | BU10: 99.66 | BV10: 96.48 | BW10: 93.75 | BX10: 96.38 | BY10: 99.81 | BZ10: 100.39 | CA10: 99.16 | CB10: 95.93 | CC10: 92.87 | CD10: 94.26 | CE10: 97.35 | CF10: 99.02 | CG10: 98.18 | CH10: 95.34 | CI10: 92.57 | CJ10: 94.51 | CK10: 96.99 | CL10: 97.18 | CM10: 96.16 | CN10: 93.92 | CO10: 91.36 | CP10: 92 | CQ10: 95.91 | CR10: 98.07 | CS10: 96.98 | CT10: 94.14 | CU10: 91.37 | CV10: 93.55 | CW10: 97.27 | CX10: 97.91 | CY10: 97.14 | CZ10: 94.62 | DA10: 91.44 | DB10: 91.99 | DC10: 95.76 | DD10: 97.96 | DE10: 97.22 | DF10: 94.02 | DG10: 91.83 | DH10: 93.86 | DI10: 97.65 | DJ10: 97.83 | DK10: 96.75 | DL10: 93.79 | DM10: 90.35 | DN10: 91.71 | DO10: 95.34 | DP10: 97.12 | DQ10: 96.34 | DR10: 93.45 | DS10: 91.04 | DT10: 92.5 | DU10: 96.9 | DV10: 97.86 | DW10: 96.81 | DX10: 94.18 | DY10: 90.08 | DZ10: 91.74 | EA10: 96.35 | EB10: 97.68 | EC10: 96.42 | ED10: 94.27 | EE10: 91.75 | EF10: 94.01 | EG10: 96.98 | EH10: 97.38 | EI10: 96.13 | EJ10: 92.62 | EK10: 89.71 | EL10: 90.52 | EM10: 94.57 | EN10: 96.28 | EO10: 95.87 | EP10: 93.79 | EQ10: 91.47 | ER10: 92.98 | ES10: 95.36 | ET10: 96.25 | EU10: 95.23 | EV10: 92.28 | EW10: 90.05 | EX10: 91.7 | EY10: 95.62 | EZ10: 96.41 | FA10: 95.81 | FB10: 92.66 | FC10: 90.58 | FD10: 93.83 | FE10: 96.77 | FF10: 97.22 | FG10: 96.19 | FH10: 93.86 | FI10: 91.22 | FJ10: 92.57 | FK10: 96.78 | FL10: 97.91 | FM10: 96.81 | FN10: 94.6 | FO10: 92.38 | FP10: 94.16 | FQ10: 96.59 | FR10: 96.53 | FS10: 95.6 | FT10: 93.56 | FU10: 91.14 | FV10: 92.11 | FW10: 95.59 | FX10: 96.81 | FY10: 95.97 | FZ10: 93.34 | GA10: 92.07 | GB10: 93.38 | GC10: 95.64 | GD10: 96.14 | GE10: 96.27 | GF10: 94.93 | GG10: 93.31 | GH10: 95.4 | GI10: 98.53 | GJ10: 100.16 | GK10: 100.1 | GL10: 97.18 | GM10: 95.82 | GN10: 96.87 | GO10: 100 | GP10: 101.16 | GQ10: 100.69 | GR10: 98.63 | GS10: 96.4 | GT10: 97.19 | GU10: 101.12 | GV10: 103.32 | GW10: 102.23 | GX10: 99.2 | GY10: 98.3 | GZ10: 99.55 | HA10: 101.22 | HB10: 101.76 | HC10: 101.05 | HD10: 99.52 | HE10: 97.78 | HF10: 99.12 | HG10: 102.23 | HH10: 103.41 | HI10: 102.24 | HJ10: 99.99 | HK10: 98.29 | HL10: 99.33 | HM10: 101.94 | HN10: 102.61 | HO10: 102.18 | HP10: 100.81 | HQ10: 98.63 | HR10: 99.49 | HS10: 103 | HT10: 104.38 | HU10: 102.3 | HV10: 98.48 | HW10: 97.24 | HX10: 98.81 | HY10: 101.72 | HZ10: 102.05 | IA10: 101 | IB10: 99.28 | IC10: 97.29 | ID10: 98.73 | IE10: 101.8 | IF10: 102.68 | IG10: 101.01 | IH10: 98.39
B14: WITH SOME HICCUPS, SIMILAR CPI IN GREECE AND THE U.S. | G14: THE IMPACT OF SALES DISCOUNTS OF CLOTHING AND FOOTWEAR | P14: RISE AND FALL OF HAIRDRESSERS IN GREECE
B15: All-items monthly consumer price indexes comparison Greece/U.S. | G15: IS MUCH STRONGER IN GREECE THAN IN THE U.S. | P15: Monthly CPI of hairdressing salons and personal grooming establishments
G16: Monthly CPI for clothing and footwear: comparison Greece/U.S.
B36: Source: Eurostat | G36: Source: Eurostat | P36: Source: Eurostat
A39: These charts use a dummy line chart (data at row 1) with a constant value of 140.
A40: The line is not displayed, but its error bars are set minus, no cap.
A41: Usually, you set the error amount to 100%, but since the scale starts at 60, set the error to
A42: a lower value, like 57% because (max y - min y)/min y.

Sheet 5.5
A1: Structure of earnings survey: monthly earnings [earn_ses_monthly] | L1: Referências
L2: 0 | M2: 5000
A3: Last update | B3: 2016-02-23T15:03:53 | L3: 0 | M3: 5000
A4: Extracted on | B4: 2016-04-10T23:16:08.156
A5: Source of data | B5: Eurostat | L5: 0 | M5: 5000
L6: 0 | M6: =M3*0.9 -> 4500
A7: NACE_R2 | B7: Industry, construction and services (except public administration, defense, compulsory social security)
A8: ISCO08 | B8: Total | L8: 0 | M8: 5000
A9: WORKTIME | B9: Total | L9: 0 | M9: =+M8*0.8 -> 4000
A10: AGE | B10: Total
A11: INDIC_SE | B11: Mean earnings in euro | L11: 0 | M11: 5000
L12: 0 | M12: =M11*0.7 -> 3500
A13: Get the data: | B13: http://goo.gl/SWCbRl
A16: SEX | B16: Total | C16: Males | D16: Females | K16: Technicians and associate professionals | L16: Technicians and associate professionals | M16: Technicians and associate professionals | N16: Clerical support workers | O16: Clerical support workers | P16: Clerical support workers | Q16: Service and sales workers | R16: Service and sales workers | S16: Service and sales workers | T16: Skilled agricultural, forestry and fishery workers | U16: Skilled agricultural, forestry and fishery workers | V16: Skilled agricultural, forestry and fishery workers | W16: Craft and related trades workers | X16: Craft and related trades workers | Y16: Craft and related trades workers | Z16: Plant and machine operators, and assemblers | AA16: Plant and machine operators, and assemblers | AB16: Plant and machine operators, and assemblers | AC16: Elementary occupations | AD16: Elementary occupations | AE16: Elementary occupations
A17: GEO/TIME | B17: 2010 | C17: 2010 | D17: 2010 | K17: Total | L17: Males | M17: Females | N17: Total | O17: Males | P17: Females | Q17: Total | R17: Males | S17: Females | T17: Total | U17: Males | V17: Females | W17: Total | X17: Males | Y17: Females | Z17: Total | AA17: Males | AB17: Females | AC17: Total | AD17: Males | AE17: Females
A18: EU-28 | B18: 2097 | C18: 2436 | D18: 1713 | H18: WOMEN EARN LESS THAN MEN IN ALL EUROPEAN UNION COUNTRIES | K18: 2458 | L18: 2879 | M18: 2012 | N18: 1765 | O18: 2012 | P18: 1626 | Q18: 1344 | R18: 1555 | S18: 1239 | T18: 1520 | U18: 1614 | V18: 1120 | W18: 1782 | X18: 1894 | Y18: 1032 | Z18: 1696 | AA18: 1808 | AB18: 1221 | AC18: 1123 | AD18: 1387 | AE18: 867
A19: EU-18 | B19: 2247 | C19: 2594 | D19: 1835 | H19: Mean monthly earnings in euros, by sex and country, log scales | K19: 2656 | L19: 3091 | M19: 2177 | N19: 1905 | O19: 2152 | P19: 1756 | Q19: 1474 | R19: 1755 | S19: 1330 | T19: 1526 | U19: 1622 | V19: 1151 | W19: 2022 | X19: 2117 | Y19: 1314 | Z19: 1965 | AA19: 2074 | AB19: 1476 | AC19: 1222 | AD19: 1491 | AE19: 963
A20: Belgium | B20: 2749 | C20: 3054 | D20: 2356 | K20: 3041 | L20: 3368 | M20: 2719 | N20: 2500 | O20: 2662 | P20: 2372 | Q20: 1912 | R20: 2224 | S20: 1746 | T20: : | U20: : | V20: : | W20: 2493 | X20: 2534 | Y20: 2016 | Z20: 2530 | AA20: 2598 | AB20: 2140 | AC20: 1731 | AD20: 2174 | AE20: 1389
A21: Bulgaria | B21: 332 | C21: 356 | D21: 307 | K21: 452 | L21: 486 | M21: 409 | N21: 297 | O21: 310 | P21: 292 | Q21: 199 | R21: 198 | S21: 200 | T21: 176 | U21: 175 | V21: 179 | W21: 294 | X21: 326 | Y21: 224 | Z21: 281 | AA21: 302 | AB21: 233 | AC21: 185 | AD21: 192 | AE21: 177
A22: Czech Republic | B22: 922 | C22: 1028 | D22: 794 | K22: 1037 | L22: 1171 | M22: 918 | N22: 795 | O22: 914 | P22: 744 | Q22: 565 | R22: 603 | S22: 547 | T22: 618 | U22: 710 | V22: 526 | W22: 756 | X22: 796 | Y22: 564 | Z22: 719 | AA22: 771 | AB22: 596 | AC22: 536 | AD22: 629 | AE22: 472
A23: Denmark | B23: 3642 | C23: 4105 | D23: 3218 | K23: 4517 | L23: 5140 | M23: 3988 | N23: 3652 | O23: 3841 | P23: 3568 | Q23: 2978 | R23: 3267 | S23: 2852 | T23: 3422 | U23: 3502 | V23: 3222 | W23: 3796 | X23: 3836 | Y23: 3249 | Z23: 3940 | AA23: 4071 | AB23: 3372 | AC23: 3016 | AD23: 3332 | AE23: 2643
A24: Germany | B24: 2520 | C24: 3003 | D24: 1917 | K24: 3147 | L24: 3935 | M24: 2346 | N24: 1920 | O24: 2166 | P24: 1787 | Q24: 1603 | R24: 1961 | S24: 1412 | T24: 1720 | U24: 1819 | V24: 1308 | W24: 2390 | X24: 2470 | Y24: 1588 | Z24: 2281 | AA24: 2419 | AB24: 1673 | AC24: 1219 | AD24: 1575 | AE24: 918
A25: Estonia | B25: 777 | C25: 947 | D25: 647 | K25: 888 | L25: 1065 | M25: 761 | N25: 641 | O25: 786 | P25: 598 | Q25: 470 | R25: 528 | S25: 455 | T25: 691 | U25: 612 | V25: 732 | W25: 741 | X25: 793 | Y25: 527 | Z25: 692 | AA25: 774 | AB25: 538 | AC25: 409 | AD25: 527 | AE25: 345
A26: Ireland | B26: 3274 | C26: 3771 | D26: 2807 | K26: 3567 | L26: 3994 | M26: 3132 | N26: 2620 | O26: 3087 | P26: 2434 | Q26: 2007 | R26: 2442 | S26: 1823 | T26: 2463 | U26: 2483 | V26: 2303 | W26: 3242 | X26: 3287 | Y26: 2062 | Z26: 2815 | AA26: 2979 | AB26: 2133 | AC26: 2146 | AD26: 2452 | AE26: 1739
A27: Greece | B27: 1744 | C27: 1929 | D27: 1538 | K27: 1887 | L27: 2112 | M27: 1686 | N27: 1575 | O27: 1726 | P27: 1467 | Q27: 1217 | R27: 1391 | S27: 1106 | T27: 1187 | U27: 1199 | V27: : | W27: 1831 | X27: 1887 | Y27: 1328 | Z27: 1784 | AA27: 1815 | AB27: 1329 | AC27: 1191 | AD27: 1295 | AE27: 1075 | AL27: Reference Lines
A28: Spain | B28: 1775 | C28: 1981 | D28: 1534 | K28: 2111 | L28: 2295 | M28: 1828 | N28: 1587 | O28: 1841 | P28: 1433 | Q28: 1241 | R28: 1448 | S28: 1128 | T28: 1328 | U28: 1330 | V28: 1308 | W28: 1693 | X28: 1725 | Y28: 1341 | Z28: 1621 | AA28: 1675 | AB28: 1312 | AC28: 1060 | AD28: 1305 | AE28: 887 | AL28: Y | AM28: X
A29: France | B29: 2400 | C29: 2686 | D29: 2069 | K29: 2476 | L29: 2695 | M29: 2244 | N29: 1829 | O29: 1947 | P29: 1767 | Q29: 1682 | R29: 1868 | S29: 1585 | T29: 1503 | U29: 1528 | V29: 1266 | W29: 1891 | X29: 1924 | Y29: 1645 | Z29: 1955 | AA29: 2013 | AB29: 1654 | AC29: 1294 | AD29: 1503 | AE29: 1091 | AL29: 0.1 | AM29: 0.1
A30: Croatia | B30: 980 | C30: 1016 | D30: 939 | K30: 1199 | L30: 1236 | M30: 1149 | N30: 999 | O30: 1039 | P30: 982 | Q30: 771 | R30: 851 | S30: 711 | T30: 682 | U30: 686 | V30: 669 | W30: 745 | X30: 789 | Y30: 552 | Z30: 840 | AA30: 874 | AB30: 620 | AC30: 634 | AD30: 712 | AE30: 562 | AL30: 6400 | AM30: =+AL30*0.9 -> 5760
A31: Italy | B31: 2193 | C31: 2401 | D31: 1921 | K31: 2566 | L31: 2805 | M31: 2244 | N31: 2115 | O31: 2348 | P31: 1919 | Q31: 1576 | R31: 1877 | S31: 1382 | T31: 1570 | U31: 1690 | V31: 1365 | W31: 1736 | X31: 1908 | Y31: 1128 | Z31: 1968 | AA31: 2078 | AB31: 1555 | AC31: 1503 | AD31: 1639 | AE31: 1158
A32: Cyprus | B32: 1980 | C32: 2207 | D32: 1727 | K32: 2463 | L32: 2626 | M32: 2253 | N32: 1603 | O32: 1760 | P32: 1536 | Q32: 1219 | R32: 1432 | S32: 1092 | T32: 1358 | U32: 1358 | V32: : | W32: 1835 | X32: 1855 | Y32: 1447 | Z32: 1584 | AA32: 1655 | AB32: 859 | AC32: 1219 | AD32: 1429 | AE32: 986 | AL32: 0.1 | AM32: 0.1
A33: Latvia | B33: 573 | C33: 644 | D33: 520 | K33: 678 | L33: 780 | M33: 616 | N33: 501 | O33: 581 | P33: 480 | Q33: 363 | R33: 431 | S33: 341 | T33: 415 | U33: 474 | V33: 385 | W33: 486 | X33: 518 | Y33: 377 | Z33: 527 | AA33: 543 | AB33: 447 | AC33: 332 | AD33: 384 | AE33: 301 | AL33: 6400 | AM33: =+AL33*0.8 -> 5120
A34: Lithuania | B34: 525 | C34: 581 | D34: 479 | K34: 520 | L34: 614 | M34: 461 | N34: 428 | O34: 503 | P34: 401 | Q34: 329 | R34: 397 | S34: 308 | T34: 297 | U34: : | V34: : | W34: 442 | X34: 475 | Y34: 357 | Z34: 475 | AA34: 481 | AB34: 439 | AC34: 276 | AD34: 311 | AE34: 257
A35: Luxembourg | B35: 3501 | C35: 3784 | D35: 2969 | K35: 4115 | L35: 4376 | M35: 3806 | N35: 3232 | O35: 3673 | P35: 2951 | Q35: 2178 | R35: 2431 | S35: 2000 | T35: 2399 | U35: 2452 | V35: : | W35: 2685 | X35: 2703 | Y35: 2110 | Z35: 2805 | AA35: 2848 | AB35: 2093 | AC35: 1903 | AD35: 2279 | AE35: 1535 | AL35: 0.1 | AM35: 0.1
A36: Hungary | B36: 729 | C36: 807 | D36: 647 | K36: 776 | L36: 882 | M36: 706 | N36: 647 | O36: 676 | P36: 630 | Q36: 453 | R36: 487 | S36: 437 | T36: 407 | U36: 408 | V36: 403 | W36: 569 | X36: 608 | Y36: 427 | Z36: 601 | AA36: 628 | AB36: 498 | AC36: 369 | AD36: 394 | AE36: 350 | AL36: 6400 | AM36: =+AL36*0.7 -> 4480
A37: Malta | B37: 1375 | C37: 1495 | D37: 1193 | K37: 1529 | L37: 1642 | M37: 1333 | N37: 1178 | O37: 1268 | P37: 1111 | Q37: 920 | R37: 1016 | S37: 816 | T37: 1203 | U37: 1204 | V37: : | W37: 1450 | X37: 1456 | Y37: 1377 | Z37: 1312 | AA37: 1329 | AB37: 1267 | AC37: 955 | AD37: 1050 | AE37: 751
A38: Netherlands | B38: 2281 | C38: 2857 | D38: 1676 | K38: 2615 | L38: 3303 | M38: 1958 | N38: 1898 | O38: 2463 | P38: 1596 | Q38: 1278 | R38: 1752 | S38: 1107 | T38: 1491 | U38: 1652 | V38: 826 | W38: 2475 | X38: 2533 | Y38: 1377 | Z38: 2287 | AA38: 2393 | AB38: 1413 | AC38: 1000 | AD38: 1184 | AE38: 804 | AL38: 0.1 | AM38: 0.1
A39: Austria | B39: 2288 | C39: 2704 | D39: 1684 | K39: 2961 | L39: 3349 | M39: 2226 | N39: 2143 | O39: 2641 | P39: 1901 | Q39: 1448 | R39: 1836 | S39: 1260 | T39: : | U39: : | V39: : | W39: 2190 | X39: 2237 | Y39: 1457 | Z39: 2345 | AA39: 2422 | AB39: 1725 | AC39: 1390 | AD39: 1757 | AE39: 1055 | AL39: 6400 | AM39: =+AL39*0.6 -> 3840
A40: Poland | B40: 793 | C40: 865 | D40: 714 | K40: 815 | L40: 927 | M40: 709 | N40: 657 | O40: 670 | P40: 649 | Q40: 470 | R40: 512 | S40: 445 | T40: 470 | U40: 511 | V40: 402 | W40: 630 | X40: 668 | Y40: 458 | Z40: 687 | AA40: 713 | AB40: 558 | AC40: 458 | AD40: 533 | AE40: 407
A41: Portugal | B41: 1231 | C41: 1343 | D41: 1116 | K41: 1585 | L41: 1709 | M41: 1361 | N41: 1091 | O41: 1122 | P41: 1071 | Q41: 762 | R41: 906 | S41: 680 | T41: 711 | U41: 715 | V41: 702 | W41: 837 | X41: 888 | Y41: 627 | Z41: 836 | AA41: 943 | AB41: 613 | AC41: 639 | AD41: 756 | AE41: 566 | AL41: 0.1 | AM41: 0.1
A42: Romania | B42: 444 | C42: 464 | D42: 420 | K42: 479 | L42: 523 | M42: 438 | N42: 400 | O42: 431 | P42: 385 | Q42: 250 | R42: 258 | S42: 244 | T42: 219 | U42: 209 | V42: 236 | W42: 378 | X42: 401 | Y42: 302 | Z42: 386 | AA42: 411 | AB42: 330 | AC42: 231 | AD42: 238 | AE42: 223 | AL42: 6400 | AM42: =+AL42*1 -> 6400
A43: Slovenia | B43: 1470 | C43: 1506 | D43: 1428 | K43: 1639 | L43: 1754 | M43: 1530 | N43: 1298 | O43: 1278 | P43: 1314 | Q43: 1022 | R43: 1106 | S43: 973 | T43: 960 | U43: 963 | V43: 956 | W43: 1115 | X43: 1141 | Y43: 916 | Z43: 1079 | AA43: 1166 | AB43: 881 | AC43: 864 | AD43: 942 | AE43: 796
A44: Slovakia | B44: 758 | C44: 848 | D44: 664 | K44: 890 | L44: 1036 | M44: 793 | N44: 654 | O44: 752 | P44: 616 | Q44: 488 | R44: 551 | S44: 458 | T44: 456 | U44: 504 | V44: 412 | W44: 666 | X44: 709 | Y44: 503 | Z44: 625 | AA44: 665 | AB44: 522 | AC44: 447 | AD44: 513 | AE44: 399
A45: Finland | B45: 2848 | C45: 3272 | D45: 2484 | K45: 2973 | L45: 3369 | M45: 2679 | N45: 2294 | O45: 2370 | P45: 2269 | Q45: 1974 | R45: 2186 | S45: 1917 | T45: 1992 | U45: 2040 | V45: 1932 | W45: 2746 | X45: 2794 | Y45: 2265 | Z45: 2808 | AA45: 2936 | AB45: 2358 | AC45: 1939 | AD45: 2230 | AE45: 1750
A46: Sweden | B46: 2809 | C46: 3223 | D46: 2422 | K46: 3054 | L46: 3359 | M46: 2626 | N46: 2237 | O46: 2392 | P46: 2156 | Q46: 1804 | R46: 1984 | S46: 1740 | T46: 2068 | U46: 2149 | V46: 1857 | W46: 2717 | X46: 2739 | Y46: 2347 | Z46: 2550 | AA46: 2595 | AB46: 2341 | AC46: 1769 | AD46: 2023 | AE46: 1582
A47: United Kingdom | B47: 2504 | C47: 3062 | D47: 1931 | K47: 2537 | L47: 3022 | M47: 2056 | N47: 1650 | O47: 1989 | P47: 1502 | Q47: 1253 | R47: 1476 | S47: 1158 | T47: 1722 | U47: 1739 | V47: 1401 | W47: 2501 | X47: 2553 | Y47: 1627 | Z47: 2106 | AA47: 2191 | AB47: 1501 | AC47: 1186 | AD47: 1546 | AE47: 778
A48: Iceland | B48: 1996 | C48: 2362 | D48: 1688 | K48: 1995 | L48: 2597 | M48: 1614 | N48: 1580 | O48: 1831 | P48: 1517 | Q48: 1204 | R48: 1494 | S48: 1040 | T48: : | U48: : | V48: : | W48: 1985 | X48: 2105 | Y48: 1478 | Z48: 1791 | AA48: 1814 | AB48: 1565 | AC48: 1263 | AD48: 1457 | AE48: 1021
A49: Norway | B49: 3987 | C49: 4666 | D49: 3263 | H49: Source: Eurostat | K49: 4818 | L49: 5507 | M49: 3835 | N49: 3276 | O49: 3501 | P49: 3107 | Q49: 2210 | R49: 2431 | S49: 2118 | T49: 3293 | U49: 3493 | V49: 2915 | W49: 4056 | X49: 4086 | Y49: 3369 | Z49: 3845 | AA49: 3965 | AB49: 3196 | AC49: 2622 | AD49: 3152 | AE49: 2170
A50: Switzerland | B50: 4112 | C50: 4954 | D50: 3099 | K50: 4755 | L50: 5427 | M50: 3746 | N50: 3912 | O50: 4694 | P50: 3246 | Q50: 2706 | R50: 3421 | S50: 2284 | T50: : | U50: : | V50: : | W50: 3798 | X50: 3857 | Y50: 2642 | Z50: 3762 | AA50: 3971 | AB50: 2769 | AC50: 2218 | AD50: 2823 | AE50: 1802
A51: FYR Macedonia | B51: 475 | C51: 489 | D51: 459 | K51: 522 | L51: 553 | M51: 487 | N51: 481 | O51: 482 | P51: 480 | Q51: 351 | R51: 377 | S51: 318 | T51: 389 | U51: 378 | V51: : | W51: 312 | X51: 347 | Y51: 243 | Z51: 325 | AA51: 374 | AB51: 248 | AC51: 311 | AD51: 326 | AE51: 295
A52: Turkey | B52: 764 | C52: 764 | D52: 765 | K52: 889 | L52: 909 | M52: 835 | N52: 758 | O52: 781 | P52: 728 | Q52: 523 | R52: 533 | S52: 494 | T52: 557 | U52: 557 | V52: : | W52: 613 | X52: 626 | Y52: 514 | Z52: 530 | AA52: 551 | AB52: 416 | AC52: 481 | AD52: 497 | AE52: 424
A55: Legend
A56: Eastern Countries | C56: 300 | D56: 1350
A57: Western Countries | C57: 300 | D57: 1500
A60: When you have fewer than 255 data points you can set a series for each one, making it easier to label them.
A61: The legend isn't really a legend, but two data points acting like a legend.
A62: To get two colored triangles, define two fill gradients, set the position to 50% and the angle to 45º.
A63: The reference lines are connected series, no markers

Sheet 5.6
A1: Causes of death - standardised death rate per 100 000 inhabitants - annual Data [hlth_cd_asdr]
A3: Last update | C3: 2014-01-07T18:00:26
A4: Extracted on | C4: 2016-04-10T23:24:51.993
A5: Source of data | C5: Eurostat
A7: UNIT | C7: SDTH_RT - Standardised death rate
A8: SEX | C8: T - Total
A9: AGE | C9: TOTAL - Total
A10: ICD10 | C10: V_Y85 - Transport accidents (V01-V99, Y85)
A12: Get the data: | C12: http://goo.gl/5jMEsl
A14: GEO/TIME | B14: 1994 | C14: 1995 | D14: 1996 | E14: 1997 | F14: 1998 | G14: 1999 | H14: 2000 | I14: 2001 | J14: 2002 | K14: 2003 | L14: 2004 | M14: 2005 | N14: 2006 | O14: 2007 | P14: 2008 | Q14: 2009 | R14: 2010 | S14: Region | T14: Western | U14: Eastern | W14: Reference line
A15: EU28 | B15: : | C15: : | D15: : | E15: : | F15: : | G15: : | H15: : | I15: : | J15: 12.1 | K15: 11.4 | L15: 10.8 | M15: 10.3 | N15: 9.6 | O15: 9.6 | P15: 8.9 | Q15: 7.9 | R15: 7 | AA15: DEATHS IN TRANSPORT ACCIDENTS
A16: EU15 | B16: 13.3 | C16: 12.9 | D16: 12.2 | E16: 12.2 | F16: 12 | G16: 11.8 | H16: 11.3 | I16: 11.1 | J16: 10.8 | K16: 10.1 | L16: 9.3 | M16: 8.8 | N16: 8.1 | O16: 7.8 | P16: 7.1 | Q16: 6.5 | R16: 5.8 | W16: Y | X16: X | AA16: Standardised death rate per 100,000 inhabitants
A17: Sweden | B17: 13.6 | C17: 7.1 | D17: 6.8 | E17: 7.1 | F17: 6.6 | G17: 6.6 | H17: 7.2 | I17: 7.4 | J17: 6.5 | K17: 6.4 | L17: 6.2 | M17: 5.7 | N17: 5.8 | O17: 5.6 | P17: 5.2 | Q17: 4.3 | R17: 3.4 | S17: S | T17: =IF(S17="L",R17,NA()) ->  | U17: =IF(S17<>"L",R17,NA()) -> 3.4 | W17: 1 | X17: 7
A18: United Kingdom | B18: 7.2 | C18: 6.9 | D18: 6.7 | E18: 6.8 | F18: 6.4 | G18: 6.4 | H18: 6.2 | I18: 6.1 | J18: 6.3 | K18: 6.3 | L18: 6 | M18: 5.8 | N18: 5.8 | O18: 5.6 | P18: 5 | Q18: 4.3 | R18: 3.6 | S18: S | U18: 3.6 | W18: 2 | X18: 7
A19: Malta | B19: 6.2 | C19: 7.6 | D19: 5 | E19: 6 | F19: 3.8 | G19: 4.4 | H19: 4.7 | I19: 5.3 | J19: 4.2 | K19: 4 | L19: 3.9 | M19: 4.3 | N19: 2.5 | O19: 5.2 | P19: 4.9 | Q19: 5.1 | R19: 3.9 | S19: S | U19: 3.9 | W19: 3 | X19: 7
A20: Ireland | B20: 12.8 | C20: 13 | D20: 12.9 | E20: 12.9 | F20: 12.9 | G20: 12.2 | H20: 10.9 | I20: 10.4 | J20: 10.1 | K20: 8 | L20: 8.4 | M20: 8.4 | N20: 7.5 | O20: 7.7 | P20: 6.2 | Q20: 5 | R20: 4.2 | S20: S | U20: 4.2 | W20: 4 | X20: 7
A21: Iceland | B21: 9.1 | C21: 14.5 | D21: 5.4 | E21: 10.2 | F21: 12.6 | G21: 9.1 | H21: 14.8 | I21: 12.9 | J21: 12.5 | K21: 10.7 | L21: 9.4 | M21: 7.1 | N21: 14 | O21: 6.2 | P21: 6.4 | Q21: 4.3 | R21: 4.3 | S21: S | U21: 4.3 | W21: 5 | X21: 7
A22: Germany | B22: 12.3 | C22: 11.7 | D22: 10.9 | E22: 10.7 | F22: 9.8 | G22: 9.8 | H22: 9.5 | I22: 8.7 | J22: 8.6 | K22: 8.3 | L22: 7.3 | M22: 6.8 | N22: 6.5 | O22: 6.2 | P22: 5.7 | Q22: 5.4 | R22: 4.7 | S22: S | U22: 4.7 | W22: 6 | X22: 7
A23: Switzerland | B23: 11.1 | C23: 11.1 | D23: 9.5 | E23: 9.2 | F23: 8.9 | G23: 8.3 | H23: 9.1 | I23: 7.9 | J23: 7 | K23: 8 | L23: 7.3 | M23: 5.5 | N23: 5.5 | O23: 5.6 | P23: 5.4 | Q23: 5.1 | R23: 4.7 | S23: S | U23: 4.7 | W23: 7 | X23: 7
A24: Netherlands | B24: 9 | C24: 8.9 | D24: 8.9 | E24: 8.1 | F24: 7.4 | G24: 7.8 | H24: 7.5 | I24: 6.9 | J24: 7 | K24: 7.2 | L24: 5.8 | M24: 5.3 | N24: 5.2 | O24: 5.5 | P24: 5 | Q24: 4.8 | R24: 4.7 | S24: S | U24: 4.7 | W24: 8 | X24: 7
A25: Luxembourg | B25: 20 | C25: 17.6 | D25: 16.7 | E25: 13.7 | F25: 10.8 | G25: 10.2 | H25: 14.3 | I25: 12.2 | J25: 12.4 | K25: 11.3 | L25: 9.6 | M25: 7.9 | N25: 6.6 | O25: 6.3 | P25: 6 | Q25: 7.2 | R25: 5.4 | S25: S | U25: 5.4 | W25: 9 | X25: 7
A26: Spain | B26: 14.9 | C26: 15.2 | D26: 14.9 | E26: 15.2 | F26: 15.9 | G26: 15.7 | H26: 15.6 | I26: 14.6 | J26: 13.9 | K26: 13.7 | L26: 12.1 | M26: 11.1 | N26: 10.1 | O26: 9.2 | P26: 7.6 | Q26: 6.2 | R26: 5.6 | S26: S | U26: 5.6 | W26: 10 | X26: 7
A27: Norway | B27: 9.1 | C27: 9.9 | D27: 8.8 | E27: 9.4 | F27: 10.6 | G27: 9.4 | H27: 9.9 | I27: 7.8 | J27: 8.8 | K27: 8.1 | L27: 8.1 | M27: 6.5 | N27: 6.2 | O27: 6 | P27: 6.6 | Q27: 5.6 | R27: 5.6 | S27: S | U27: 5.6 | W27: 11 | X27: 7
A28: Denmark | B28: 12.1 | C28: 12.9 | D28: 11 | E28: 10.2 | F28: 10.7 | G28: 10.5 | H28: 10.2 | I28: 9.4 | J28: 9 | K28: 8.8 | L28: 7.5 | M28: 7.1 | N28: 6.4 | O28: 7.4 | P28: 7.5 | Q28: 6 | R28: 6 | S28: S | U28: 6 | W28: 12 | X28: 7
A29: France | B29: 15.1 | C29: 14.6 | D29: 14.1 | E29: 13.8 | F29: 14.6 | G29: 14 | H29: 13.2 | I29: 13 | J29: 12.4 | K29: 10.2 | L29: 9 | M29: 8.9 | N29: 7.9 | O29: 7.6 | P29: 7.2 | Q29: 7.2 | R29: 6.4 | S29: S | U29: 6.4 | W29: 13 | X29: 7
A30: FYR Macedonia | B30: : | C30: : | D30: : | E30: : | F30: : | G30: 7.4 | H30: 6.8 | I30: 6.4 | J30: 8.1 | K30: 6.9 | L30: 8.1 | M30: 7.7 | N30: 7.3 | O30: 9.1 | P30: 7.3 | Q30: 8.5 | R30: 6.7 | S30: L | T30: 6.7 | W30: 14 | X30: 7
A31: Finland | B31: 12.9 | C31: 12.3 | D31: 10.9 | E31: 12.2 | F31: 11.6 | G31: 11.4 | H31: 10.6 | I31: 11.4 | J31: 11 | K31: 10.5 | L31: 9.9 | M31: 9.7 | N31: 8.9 | O31: 9.4 | P31: 8.4 | Q31: 7.2 | R31: 6.7 | S31: S | U31: 6.7 | W31: 15 | X31: 7
A32: Austria | B32: 17 | C32: 14.9 | D32: 12.9 | E32: 13.9 | F32: 11.8 | G32: 13.1 | H32: 11.8 | I32: 11.6 | J32: 12 | K32: 12 | L32: 10.8 | M32: 9.7 | N32: 8.9 | O32: 8.6 | P32: 8.2 | Q32: 7.6 | R32: 6.9 | S32: S | U32: 6.9 | W32: 16 | X32: 7
A33: Estonia | B33: 52 | C33: 29 | D33: 20.2 | E33: 24.7 | F33: 25.4 | G33: 20 | H33: 18.3 | I33: 17 | J33: 17.7 | K33: 14.2 | L33: 15.2 | M33: 14.7 | N33: 17.8 | O33: 15.7 | P33: 12.1 | Q33: 8.8 | R33: 7.2 | S33: L | T33: 7.2 | W33: 17 | X33: 7
A34: Italy | B34: 14.9 | C34: 14.5 | D34: 13.4 | E34: 14 | F34: 14.2 | G34: 13.7 | H34: 13 | I34: 13.1 | J34: 12.5 | K34: 11.6 | L34: : | M34: : | N34: 10.2 | O34: 9.7 | P34: 8.8 | Q34: 8 | R34: 7.4 | S34: S | U34: 7.4 | W34: 18 | X34: 7
A35: Slovenia | B35: 27.8 | C35: 23.2 | D35: 20.4 | E35: 20 | F35: 17.9 | G35: 18.6 | H35: 17 | I35: 15.8 | J35: 15 | K35: 14.6 | L35: 15.4 | M35: 13.7 | N35: 14.1 | O35: 15.5 | P35: 12.1 | Q35: 10.5 | R35: 8.3 | S35: L | T35: 8.3 | W35: 19 | X35: 7
A36: Belgium | B36: 18.8 | C36: 16.2 | D36: 15.2 | E36: 14.9 | F36: 15.9 | G36: 15.5 | H36: : | I36: : | J36: : | K36: 12.1 | L36: 11.5 | M36: 11.1 | N36: 10.5 | O36: 10.8 | P36: 9.5 | Q36: 9.5 | R36: 8.4 | S36: S | U36: 8.4 | W36: 20 | X36: 7
A37: Czech Republic | B37: 18.9 | C37: 16.9 | D37: 15.4 | E37: 15.7 | F37: 14 | G37: 15.5 | H37: 15.4 | I37: 14.7 | J37: 14.4 | K37: 14.2 | L37: 12.7 | M37: 12.2 | N37: 10.5 | O37: 12 | P37: 11.2 | Q37: 9.8 | R37: 8.7 | S37: L | T37: 8.7 | W37: 21 | X37: 7
A38: Portugal | B38: 24 | C38: 26.1 | D38: 24 | E38: 21.4 | F38: 19.9 | G38: 17 | H38: 14.1 | I38: 18.7 | J38: 21.2 | K38: 19.2 | L38: 16.7 | M38: 13.3 | N38: 11 | O38: 11.3 | P38: 10.2 | Q38: 10.1 | R38: 9.6 | S38: S | U38: 9.6 | W38: 22 | X38: 7
A39: Slovakia | B39: : | C39: : | D39: 17.4 | E39: 20.4 | F39: 21.6 | G39: 17.7 | H39: 17 | I39: 16.3 | J39: 15 | K39: 16.5 | L39: 14.6 | M39: 14.7 | N39: 15.5 | O39: 15.7 | P39: 14.3 | Q39: 10.1 | R39: 9.6 | S39: L | T39: 9.6 | W39: 23 | X39: 7
A40: Bulgaria | B40: : | C40: 16 | D40: 13.1 | E40: 12.6 | F40: 13.1 | G40: 13.3 | H40: 12.9 | I40: 13.5 | J40: 12.3 | K40: 12.2 | L40: 12.6 | M40: 11.8 | N40: 14 | O40: 14.1 | P40: 14.3 | Q40: 11.8 | R40: 9.8 | S40: L | T40: 9.8 | W40: 24 | X40: 7
A41: Hungary | B41: 20.5 | C41: 20 | D41: 16.9 | E41: 17.4 | F41: 17.5 | G41: 16.4 | H41: 15.2 | I41: 15.7 | J41: 17.5 | K41: 16 | L41: 16.2 | M41: 15.6 | N41: 15.9 | O41: 15.3 | P41: 13 | Q41: 11.2 | R41: 9.9 | S41: L | T41: 9.9 | W41: 25 | X41: 7 | AA41: Source: Eurostat
A42: Cyprus | B42: : | C42: : | D42: : | E42: : | F42: : | G42: : | H42: : | I42: : | J42: : | K42: : | L42: 18.4 | M42: 31.6 | N42: 12.6 | O42: 14.3 | P42: 13.3 | Q42: 11.5 | R42: 10.5 | S42: S | U42: 10.5 | W42: 26 | X42: 7
A43: Croatia | B43: : | C43: : | D43: : | E43: : | F43: : | G43: : | H43: : | I43: : | J43: 14.7 | K43: 17.1 | L43: 15.3 | M43: 14.3 | N43: 14.7 | O43: 15.1 | P43: 15.8 | Q43: 13.9 | R43: 11.4 | S43: L | T43: 11.4 | W43: 27 | X43: 7
A44: Poland | B44: 23.6 | C44: 23 | D44: 21.2 | E44: : | F44: : | G44: 20.9 | H44: 19.8 | I44: 17.3 | J44: 17.7 | K44: 16.9 | L44: 17.3 | M44: 15.9 | N44: 14.8 | O44: 16.1 | P44: 15.9 | Q44: 13.3 | R44: 11.8 | S44: L | T44: 11.8 | W44: 28 | X44: 7
A45: Lithuania | B45: 29.3 | C45: 26.5 | D45: 24.6 | E45: 26.3 | F45: 29.4 | G45: 26.7 | H45: 22.5 | I45: 25.2 | J45: 24.3 | K45: 25.4 | L45: 25.9 | M45: 26.6 | N45: 27.2 | O45: 26.7 | P45: 18.5 | Q45: 14.2 | R45: 12 | S45: L | T45: 12 | W45: 29 | X45: 7
A46: Latvia | B46: : | C46: : | D46: 28.7 | E46: 27.5 | F46: 31.3 | G46: 31.1 | H46: 29.3 | I46: 26.8 | J46: 26.1 | K46: 23.7 | L46: 23.5 | M46: 21.3 | N46: 20 | O46: 21.6 | P46: 17.5 | Q46: 11.8 | R46: 12.2 | S46: L | T46: 12.2 | W46: 30 | X46: 7
A47: Greece | B47: 21.5 | C47: 23.4 | D47: 24.1 | E47: 22.5 | F47: 21.9 | G47: 20.5 | H47: 20.9 | I47: 18.2 | J47: 16.7 | K47: 16 | L47: 17.6 | M47: 16 | N47: 15.7 | O47: 15.3 | P47: 15 | Q47: 14.3 | R47: 12.5 | S47: S | U47: 12.5 | W47: 31 | X47: 7
A48: Romania | B48: : | C48: : | D48: : | E48: : | F48: : | G48: 16.9 | H48: 17.5 | I48: 17.9 | J48: 17 | K48: 15.9 | L48: 17.3 | M48: 17.1 | N48: 16.9 | O48: 17.7 | P48: 18.7 | Q48: 17.3 | R48: 14.1 | S48: L | T48: 14.1 | W48: 32 | X48: 7
A51: The chart contains three series. The data for 2010 is split into two series, so that we can color-code them.
A52: The reference line is a scatter

Sheet 5.7
A1: Date | B1: CPI | E1: CONSUMER PRICE INDEX OF UTILITY (PIPED) GAS SERVICE
A2: 1990-01-01 | B2: 104.4 | E2: U.S. South Urban Area, All Urban Consumers
A3: 1990-02-01 | B3: 105.9
A4: 1990-03-01 | B4: 104.3
A5: 1990-04-01 | B5: 102.9
A6: 1990-05-01 | B6: 102.4
A7: 1990-06-01 | B7: 100.8
A8: 1990-07-01 | B8: 99.5
A9: 1990-08-01 | B9: 99.5
A10: 1990-09-01 | B10: 103.7
A11: 1990-10-01 | B11: 104.3
A12: 1990-11-01 | B12: 106
A13: 1990-12-01 | B13: 108.6
A14: 1991-01-01 | B14: 107.7
A15: 1991-02-01 | B15: 106.3
A16: 1991-03-01 | B16: 104.9
A17: 1991-04-01 | B17: 103.9
A18: 1991-05-01 | B18: 103.4
A19: 1991-06-01 | B19: 100.2
A20: 1991-07-01 | B20: 100.5 | E20: Source: Bureau of Labor Statistics
A21: 1991-08-01 | B21: 99.8
A22: 1991-09-01 | B22: 101.7
A23: 1991-10-01 | B23: 105.3
A24: 1991-11-01 | B24: 103.7
A25: 1991-12-01 | B25: 104.5
A26: 1992-01-01 | B26: 104.4
A27: 1992-02-01 | B27: 103.2
A28: 1992-03-01 | B28: 103.3
A29: 1992-04-01 | B29: 100.2
A30: 1992-05-01 | B30: 101.4
A31: 1992-06-01 | B31: 101.4
A32: 1992-07-01 | B32: 101.8
A33: 1992-08-01 | B33: 103.4
A34: 1992-09-01 | B34: 104.2
A35: 1992-10-01 | B35: 104.7
A36: 1992-11-01 | B36: 109.7
A37: 1992-12-01 | B37: 110.7
A38: 1993-01-01 | B38: 112
A39: 1993-02-01 | B39: 111.2
A40: 1993-03-01 | B40: 111.1
A41: 1993-04-01 | B41: 110.2
A42: 1993-05-01 | B42: 111.6
A43: 1993-06-01 | B43: 111.6
A44: 1993-07-01 | B44: 111.1
A45: 1993-08-01 | B45: 112.8
A46: 1993-09-01 | B46: 112.8
A47: 1993-10-01 | B47: 113.8
A48: 1993-11-01 | B48: 115.2
A49: 1993-12-01 | B49: 116.2
A50: 1994-01-01 | B50: 115.3
A51: 1994-02-01 | B51: 114.9
A52: 1994-03-01 | B52: 115.7
A53: 1994-04-01 | B53: 116
A54: 1994-05-01 | B54: 114.1
A55: 1994-06-01 | B55: 111.7
A56: 1994-07-01 | B56: 111.9
A57: 1994-08-01 | B57: 111.8
A58: 1994-09-01 | B58: 110.9
A59: 1994-10-01 | B59: 111.6
A60: 1994-11-01 | B60: 112.1
A61: 1994-12-01 | B61: 112.4
A62: 1995-01-01 | B62: 111.1
A63: 1995-02-01 | B63: 110.3
A64: 1995-03-01 | B64: 109.6
A65: 1995-04-01 | B65: 109.8
A66: 1995-05-01 | B66: 107
A67: 1995-06-01 | B67: 104.9
A68: 1995-07-01 | B68: 105.6
A69: 1995-08-01 | B69: 104.8
A70: 1995-09-01 | B70: 105.7
A71: 1995-10-01 | B71: 103.2
A72: 1995-11-01 | B72: 107.1
A73: 1995-12-01 | B73: 106.9
A74: 1996-01-01 | B74: 110.5
A75: 1996-02-01 | B75: 110.8
A76: 1996-03-01 | B76: 113
A77: 1996-04-01 | B77: 116
A78: 1996-05-01 | B78: 115.9
A79: 1996-06-01 | B79: 115
A80: 1996-07-01 | B80: 114.9
A81: 1996-08-01 | B81: 113.5
A82: 1996-09-01 | B82: 112.5
A83: 1996-10-01 | B83: 112.5
A84: 1996-11-01 | B84: 116.7
A85: 1996-12-01 | B85: 121
A86: 1997-01-01 | B86: 127
A87: 1997-02-01 | B87: 128.6
A88: 1997-03-01 | B88: 122.5
A89: 1997-04-01 | B89: 116.1
A90: 1997-05-01 | B90: 114.3
A91: 1997-06-01 | B91: 119.7
A92: 1997-07-01 | B92: 119.5
A93: 1997-08-01 | B93: 117.7
A94: 1997-09-01 | B94: 121.6
A95: 1997-10-01 | B95: 122.5
A96: 1997-11-01 | B96: 125.5
A97: 1997-12-01 | B97: 122.8
A98: 1998-01-01 | B98: 122.1
A99: 1998-02-01 | B99: 118.5
A100: 1998-03-01 | B100: 117.8
A101: 1998-04-01 | B101: 115.5
A102: 1998-05-01 | B102: 119.2
A103: 1998-06-01 | B103: 118.3
A104: 1998-07-01 | B104: 117.8
A105: 1998-08-01 | B105: 116.3
A106: 1998-09-01 | B106: 113.9
A107: 1998-10-01 | B107: 115.5
A108: 1998-11-01 | B108: 118
A109: 1998-12-01 | B109: 120.1
A110: 1999-01-01 | B110: 118.8
A111: 1999-02-01 | B111: 116
A112: 1999-03-01 | B112: 113.3
A113: 1999-04-01 | B113: 114.7
A114: 1999-05-01 | B114: 114.7
A115: 1999-06-01 | B115: 115.2
A116: 1999-07-01 | B116: 116.3
A117: 1999-08-01 | B117: 118.2
A118: 1999-09-01 | B118: 122.8
A119: 1999-10-01 | B119: 123.9
A120: 1999-11-01 | B120: 126.3
A121: 1999-12-01 | B121: 122.5
A122: 2000-01-01 | B122: 123.2
A123: 2000-02-01 | B123: 123.3
A124: 2000-03-01 | B124: 123.8
A125: 2000-04-01 | B125: 126.1
A126: 2000-05-01 | B126: 126.4
A127: 2000-06-01 | B127: 135.2
A128: 2000-07-01 | B128: 138.9
A129: 2000-08-01 | B129: 144
A130: 2000-09-01 | B130: 149.5
A131: 2000-10-01 | B131: 157.4
A132: 2000-11-01 | B132: 160
A133: 2000-12-01 | B133: 169.3
A134: 2001-01-01 | B134: 201
A135: 2001-02-01 | B135: 197.4
A136: 2001-03-01 | B136: 187.3
A137: 2001-04-01 | B137: 183.5
A138: 2001-05-01 | B138: 178.8
A139: 2001-06-01 | B139: 169.7
A140: 2001-07-01 | B140: 160.6
A141: 2001-08-01 | B141: 151.4
A142: 2001-09-01 | B142: 147.8
A143: 2001-10-01 | B143: 141.6
A144: 2001-11-01 | B144: 149.7
A145: 2001-12-01 | B145: 149.3
A146: 2002-01-01 | B146: 149.9
A147: 2002-02-01 | B147: 138.8
A148: 2002-03-01 | B148: 138.8
A149: 2002-04-01 | B149: 137.9
A150: 2002-05-01 | B150: 139.6
A151: 2002-06-01 | B151: 139.4
A152: 2002-07-01 | B152: 140.2
A153: 2002-08-01 | B153: 138.2
A154: 2002-09-01 | B154: 138.1
A155: 2002-10-01 | B155: 141.9
A156: 2002-11-01 | B156: 149.4
A157: 2002-12-01 | B157: 150.9
A158: 2003-01-01 | B158: 157.6
A159: 2003-02-01 | B159: 166.1
A160: 2003-03-01 | B160: 190.8
A161: 2003-04-01 | B161: 190.9
A162: 2003-05-01 | B162: 182.4
A163: 2003-06-01 | B163: 182.4
A164: 2003-07-01 | B164: 180.6
A165: 2003-08-01 | B165: 176
A166: 2003-09-01 | B166: 175.9
A167: 2003-10-01 | B167: 175.4
A168: 2003-11-01 | B168: 178.1
A169: 2003-12-01 | B169: 179.4
A170: 2004-01-01 | B170: 184.9
A171: 2004-02-01 | B171: 184.7
A172: 2004-03-01 | B172: 176.2
A173: 2004-04-01 | B173: 177.1
A174: 2004-05-01 | B174: 179.6
A175: 2004-06-01 | B175: 188.3
A176: 2004-07-01 | B176: 188.3
A177: 2004-08-01 | B177: 188.5
A178: 2004-09-01 | B178: 183
A179: 2004-10-01 | B179: 187
A180: 2004-11-01 | B180: 207.2
A181: 2004-12-01 | B181: 210.1
A182: 2005-01-01 | B182: 206.6
A183: 2005-02-01 | B183: 193.7
A184: 2005-03-01 | B184: 191.4
A185: 2005-04-01 | B185: 200.7
A186: 2005-05-01 | B186: 199.2
A187: 2005-06-01 | B187: 194.8
A188: 2005-07-01 | B188: 203.3
A189: 2005-08-01 | B189: 208.2
A190: 2005-09-01 | B190: 242.6
A191: 2005-10-01 | B191: 287.1
A192: 2005-11-01 | B192: 304.2
A193: 2005-12-01 | B193: 283.9
A194: 2006-01-01 | B194: 283.1
A195: 2006-02-01 | B195: 247.9
A196: 2006-03-01 | B196: 229.5
A197: 2006-04-01 | B197: 222.5
A198: 2006-05-01 | B198: 218.3
A199: 2006-06-01 | B199: 209.6
A200: 2006-07-01 | B200: 212.7
... 107 more rows

Sheet 5.12
AM1: Sum of 3-year Average | AN1: Column Labels
AN2: From 15 to 19 years | AP2: From 20 to 24 years | AR2: From 25 to 29 years | AT2: From 30 to 34 years | AV2: From 35 to 39 years | AX2: From 40 to 44 years
AM3: Row Labels | AN3: 2002 | AO3: 2013 | AP3: 2002 | AQ3: 2013 | AR3: 2002 | AS3: 2013 | AT3: 2002 | AU3: 2013 | AV3: 2002 | AW3: 2013 | AX3: 2002 | AY3: 2013
AM4: Sweden | AN4: 0.006403333333 | AO4: 0.005216666667 | AP4: 0.04714333333 | AQ4: 0.04582333333 | AR4: 0.1082533333 | AS4: 0.1119033333 | AT4: 0.11039 | AU4: 0.1323666667 | AV4: 0.04790333333 | AW4: 0.06724666667 | AX4: 0.00889 | AY4: 0.01418
B5: FERTILITY RATE IN EUROPEAN COUNTRIES BY 5-YEAR AGE GROUP FROM 15 TO 44 YEARS OLD | AC5: 15–19 | AD5: 20–24 | AE5: 25–29 | AF5: 30–34 | AG5: 35–39 | AH5: 40–44 | AM5: Ireland | AN5: 0.0195 | AO5: 0.01048333333 | AP5: 0.05189 | AQ5: 0.05080333333 | AR5: 0.09326333333 | AS5: 0.08499666667 | AT5: 0.1326333333 | AU5: 0.12825 | AV5: 0.07870666667 | AW5: 0.09738333333 | AX5: 0.01462666667 | AY5: 0.02224666667
B6: Variation 2002–2013 | AM6: Netherlands | AN6: 0.00747 | AO6: 0.00404 | AP6: 0.04113 | AQ6: 0.0328 | AR6: 0.10937 | AS6: 0.1050066667 | AT6: 0.1304933333 | AU6: 0.1301733333 | AV6: 0.05119 | AW6: 0.05823666667 | AX6: 0.006933333333 | AY6: 0.009026666667
AM7: France | AN7: 0.01214333333 | AO7: 0.01023333333 | AP7: 0.06338333333 | AQ7: 0.05849 | AR7: 0.1349766667 | AS7: 0.1296733333 | AT7: 0.11078 | AU7: 0.1262 | AV7: 0.04675333333 | AW7: 0.06105666667 | AX7: 0.00946 | AY7: 0.01365333333
AM8: Denmark | AN8: 0.006703333333 | AO8: 0.004096666667 | AP8: 0.04881 | AQ8: 0.03522666667 | AR8: 0.1252033333 | AS8: 0.1089233333 | AT8: 0.1166266667 | AU8: 0.12242 | AV8: 0.04541333333 | AW8: 0.05539333333 | AX8: 0.007223333333 | AY8: 0.01049666667
AM9: Norway | AN9: 0.01005333333 | AO9: 0.00557 | AP9: 0.06036666667 | AQ9: 0.04863 | AR9: 0.1227433333 | AS9: 0.1137533333 | AT9: 0.1101233333 | AU9: 0.1213533333 | AV9: 0.04575666667 | AW9: 0.0578 | AX9: 0.007453333333 | AY9: 0.01079
AM10: Iceland | AN10: 0.01807333333 | AO10: 0.008803333333 | AP10: 0.07701333333 | AQ10: 0.06338666667 | AR10: 0.1255966667 | AS10: 0.12478 | AT10: 0.10794 | AU10: 0.1156066667 | AV10: 0.05231333333 | AW10: 0.06554666667 | AX10: 0.01062666667 | AY10: 0.01461666667
AM11: Finland | AN11: 0.01070666667 | AO11: 0.007353333333 | AP11: 0.05796 | AQ11: 0.05129333333 | AR11: 0.11406 | AS11: 0.10678 | AT11: 0.10391 | AU11: 0.1138466667 | AV11: 0.04827666667 | AW11: 0.05901 | AX11: 0.01008666667 | AY11: 0.01241666667
AM12: Belgium | AN12: 0.01114333333 | AO12: 0.007576666667 | AP12: 0.05898666667 | AQ12: 0.04703333333 | AR12: 0.1278 | AS12: 0.1213666667 | AT12: 0.09616666667 | AU12: 0.11582 | AV12: 0.03232666667 | AW12: 0.05003333333 | AX12: 0.005473333333 | AY12: 0.009866666667
AM13: United Kingdom | AN13: 0.02699666667 | AO13: 0.01750666667 | AP13: 0.06825666667 | AQ13: 0.06344 | AR13: 0.09203 | AS13: 0.1013866667 | AT13: 0.09085666667 | AU13: 0.11095 | AV13: 0.04334 | AW13: 0.06299333333 | AX13: 0.00858 | AY13: 0.01338666667
AM14: Switzerland | AN14: 0.005356666667 | AO14: 0.003126666667 | AP14: 0.04071666667 | AQ14: 0.02958333333 | AR14: 0.08945 | AS14: 0.08063 | AT14: 0.09436666667 | AU14: 0.11264 | AV14: 0.04043666667 | AW14: 0.06596666667 | AX14: 0.00685 | AY14: 0.01282333333
AM15: Luxembourg | AN15: 0.01195666667 | AO15: 0.005803333333 | AP15: 0.05823 | AQ15: 0.03627333333 | AR15: 0.10494 | AS15: 0.08136 | AT15: 0.1009166667 | AU15: 0.1080033333 | AV15: 0.04323333333 | AW15: 0.06352 | AX15: 0.007756666667 | AY15: 0.01297
AM16: Slovenia | AN16: 0.006143333333 | AO16: 0.00471 | AP16: 0.04742 | AQ16: 0.04339 | AR16: 0.09673333333 | AS16: 0.10969 | AT16: 0.06676333333 | AU16: 0.10551 | AV16: 0.02109666667 | AW16: 0.04394 | AX16: 0.003273333333 | AY16: 0.007436666667
AM17: Czech Republic | AN17: 0.01149666667 | AO17: 0.01181666667 | AP17: 0.05799 | AQ17: 0.04244333333 | AR17: 0.09367333333 | AS17: 0.09378 | AT17: 0.05288333333 | AU17: 0.1001766667 | AV17: 0.0166 | AW17: 0.04050333333 | AX17: 0.002806666667 | AY17: 0.00703
AM18: Germany | AN18: 0.01227333333 | AO18: 0.007826666667 | AP18: 0.05252666667 | AQ18: 0.03564 | AR18: 0.08721 | AS18: 0.07901666667 | AT18: 0.07764333333 | AU18: 0.09717666667 | AV18: 0.03217333333 | AW18: 0.05351666667 | AX18: 0.00528 | AY18: 0.009523333333
AM19: Spain | AN19: 0.01002 | AO19: 0.008483333333 | AP19: 0.02770333333 | AQ19: 0.02768333333 | AR19: 0.06429666667 | AS19: 0.05721 | AT19: 0.09624 | AU19: 0.09068666667 | AV19: 0.04693666667 | AW19: 0.06241333333 | AX19: 0.007663333333 | AY19: 0.01455333333
AM20: Malta | AN20: 0.01857333333 | AO20: 0.01423666667 | AP20: 0.05768 | AQ20: 0.03826 | AR20: 0.1083566667 | AS20: 0.08463 | AT20: 0.07563 | AU20: 0.09407 | AV20: 0.02822333333 | AW20: 0.04406 | AX20: 0.00531 | AY20: 0.00749
AM21: Italy | AN21: 0.006913333333 | AO21: 0.00596 | AP21: 0.03303333333 | AQ21: 0.03178333333 | AR21: 0.07383333333 | AS21: 0.07104 | AT21: 0.08711666667 | AU21: 0.09352 | AV21: 0.04546666667 | AW21: 0.05992333333 | AX21: 0.008813333333 | AY21: 0.01511
AM22: Cyprus | AN22: 0.007333333333 | AO22: 0.00536 | AP22: 0.06082 | AQ22: 0.03053333333 | AR22: 0.1118766667 | AS22: 0.08358666667 | AT22: 0.08255666667 | AU22: 0.09363666667 | AV22: 0.03354333333 | AW22: 0.0437 | AX22: 0.006906666667 | AY22: 0.009843333333
AM23: Austria | AN23: 0.01357 | AO23: 0.008043333333 | AP23: 0.05940333333 | AQ23: 0.04301 | AR23: 0.09439333333 | AS23: 0.08722333333 | AT23: 0.0713 | AU23: 0.09406 | AV23: 0.02829333333 | AW23: 0.04757333333 | AX23: 0.005513333333 | AY23: 0.00931
AM24: Greece | AN24: 0.01088333333 | AO24: 0.008243333333 | AP24: 0.04430666667 | AQ24: 0.02977666667 | AR24: 0.08397333333 | AS24: 0.07317333333 | AT24: 0.07647666667 | AU24: 0.09083 | AV24: 0.03326333333 | AW24: 0.04860333333 | AX24: 0.00611 | AY24: 0.01026333333
D25: Western Europe | G25: Nordic | R25: Southern Europe | Y25: Baltic | AH25: Eastern Europe | AM25: Croatia | AN25: 0.01581333333 | AO25: 0.01073333333 | AP25: 0.07483333333 | AQ25: 0.05036333333 | AR25: 0.1011366667 | AS25: 0.09523 | AT25: 0.06537333333 | AU25: 0.09071666667 | AV25: 0.02403 | AW25: 0.04050333333 | AX25: 0.00447 | AY25: 0.00778
AM26: Lithuania | AN26: 0.02101666667 | AO26: 0.0141 | AP26: 0.08083666667 | AQ26: 0.05425666667 | AR26: 0.08171 | AS26: 0.1151166667 | AT26: 0.04493666667 | AU26: 0.09179 | AV26: 0.01802666667 | AW26: 0.03737 | AX26: 0.00421 | AY26: 0.007086666667
AM27: Estonia | AN27: 0.02325666667 | AO27: 0.01571666667 | AP27: 0.07740333333 | AQ27: 0.05539333333 | AR27: 0.08456333333 | AS27: 0.09574333333 | AT27: 0.05549666667 | AU27: 0.08429666667 | AV27: 0.0237 | AW27: 0.04712666667 | AX27: 0.004503333333 | AY27: 0.01082
C28: Sweden | D28: Ireland | E28: Netherlands | F28: France | G28: Denmark | H28: Norway | I28: Iceland | J28: Finland | K28: Belgium | L28: UK | M28: Switzerland | N28: Luxembourg | O28: Slovenia | P28: Czech Rep. | Q28: Germany | R28: Spain | S28: Malta | T28: Italy | U28: Cyprus | V28: Austria | W28: Greece | X28: Croatia | Y28: Lithuania | Z28: Estonia | AA28: Portugal | AB28: Slovakia | AC28: Hungary | AD28: Serbia | AE28: Poland | AF28: Latvia | AG28: Bulgaria | AH28: Romania | AM28: Portugal | AN28: 0.02041666667 | AO28: 0.01049666667 | AP28: 0.05412333333 | AQ28: 0.03402333333 | AR28: 0.09157666667 | AS28: 0.06808333333 | AT28: 0.08293 | AU28: 0.08155333333 | AV28: 0.03476666667 | AW28: 0.04402 | AX28: 0.006833333333 | AY28: 0.00929
B29: Source: Eurostat | AM29: Slovakia | AN29: 0.02095333333 | AO29: 0.02244 | AP29: 0.06890333333 | AQ29: 0.04905666667 | AR29: 0.08445 | AS29: 0.08205 | AT29: 0.04665666667 | AU29: 0.07690666667 | AV29: 0.01620333333 | AW29: 0.03398333333 | AX29: 0.00301 | AY29: 0.005973333333
AM30: Hungary | AN30: 0.02124333333 | AO30: 0.02111666667 | AP30: 0.06072 | AQ30: 0.04241333333 | AR30: 0.09132666667 | AS30: 0.07771666667 | AT30: 0.06007 | AU30: 0.08377333333 | AV30: 0.02219666667 | AW30: 0.04121 | AX30: 0.00394 | AY30: 0.008193333333
AM31: Serbia | AN31: 0.02589333333 | AO31: 0.01836666667 | AP31: 0.09586333333 | AQ31: 0.06181333333 | AR31: 0.10516 | AS31: 0.09123 | AT31: 0.06277 | AU31: 0.07819333333 | AV31: 0.02172333333 | AW31: 0.03339 | AX31: 0.00397 | AY31: 0.006256666667
AM32: Poland | AN32: 0.01516 | AO32: 0.01367 | AP32: 0.06945666667 | AQ32: 0.04943333333 | AR32: 0.08971333333 | AS32: 0.09013 | AT32: 0.05233333333 | AU32: 0.07354666667 | AV32: 0.02123333333 | AW32: 0.03121 | AX32: 0.0047 | AY32: 0.006406666667
AM33: Latvia | AN33: 0.02204333333 | AO33: 0.02001666667 | AP33: 0.07784666667 | AQ33: 0.06078333333 | AR33: 0.07974 | AS33: 0.09746 | AT33: 0.04872333333 | AU33: 0.07982333333 | AV33: 0.01955 | AW33: 0.04147666667 | AX33: 0.00436 | AY33: 0.009006666667
AM34: Bulgaria | AN34: 0.04115333333 | AO34: 0.04194666667 | AP34: 0.08396666667 | AQ34: 0.07025333333 | AR34: 0.07346333333 | AS34: 0.08787333333 | AT34: 0.03481333333 | AU34: 0.06633333333 | AV34: 0.01038666667 | AW34: 0.02826333333 | AX34: 0.001773333333 | AY34: 0.004843333333
AM35: Romania | AN35: 0.03449333333 | AO35: 0.03537 | AP35: 0.08206 | AQ35: 0.07076666667 | AR35: 0.07917666667 | AS35: 0.08954666667 | AT35: 0.03858666667 | AU35: 0.06631333333 | AV35: 0.01614 | AW35: 0.02761 | AX35: 0.00298 | AY35: 0.005023333333
AM39: x-label
AM40: 2002
AM41: 2013

Sheet Fertility Data
A1: Region | B1: Age Group | C1: Year | D1: Rate | E1: 3-year Average | I1: Get the Data: | K1: http://goo.gl/Nog6Jr
A2: European Union (28 countries) | B2: Total | C2: 2001 | D2: 1.45642 | E2: =IF(Table3[[#This Row],[Age Group]]<>B1,AVERAGE(D2:D3),IF(Table3[[#This Row],[Age Group]]<>B3,AVERAGE(D1:D2),AVERAGE(D1:D3))) -> 1.455905
A3: European Union (28 countries) | B3: Total | C3: 2002 | D3: 1.45539 | E3: =IF(Table3[[#This Row],[Age Group]]<>B2,AVERAGE(D3:D4),IF(Table3[[#This Row],[Age Group]]<>B4,AVERAGE(D2:D3),AVERAGE(D2:D4))) -> 1.461653333
A4: European Union (28 countries) | B4: Total | C4: 2003 | D4: 1.47315 | E4: =IF(Table3[[#This Row],[Age Group]]<>B3,AVERAGE(D4:D5),IF(Table3[[#This Row],[Age Group]]<>B5,AVERAGE(D3:D4),AVERAGE(D3:D5))) -> 1.475923333
A5: European Union (28 countries) | B5: Total | C5: 2004 | D5: 1.49923 | E5: =IF(Table3[[#This Row],[Age Group]]<>B4,AVERAGE(D5:D6),IF(Table3[[#This Row],[Age Group]]<>B6,AVERAGE(D4:D5),AVERAGE(D4:D6))) -> 1.494206667
A6: European Union (28 countries) | B6: Total | C6: 2005 | D6: 1.51024 | E6: =IF(Table3[[#This Row],[Age Group]]<>B5,AVERAGE(D6:D7),IF(Table3[[#This Row],[Age Group]]<>B7,AVERAGE(D5:D6),AVERAGE(D5:D7))) -> 1.517003333
A7: European Union (28 countries) | B7: Total | C7: 2006 | D7: 1.54154 | E7: =IF(Table3[[#This Row],[Age Group]]<>B6,AVERAGE(D7:D8),IF(Table3[[#This Row],[Age Group]]<>B8,AVERAGE(D6:D7),AVERAGE(D6:D8))) -> 1.538636667
A8: European Union (28 countries) | B8: Total | C8: 2007 | D8: 1.56413 | E8: =IF(Table3[[#This Row],[Age Group]]<>B7,AVERAGE(D8:D9),IF(Table3[[#This Row],[Age Group]]<>B9,AVERAGE(D7:D8),AVERAGE(D7:D9))) -> 1.573413333
A9: European Union (28 countries) | B9: Total | C9: 2008 | D9: 1.61457 | E9: =IF(Table3[[#This Row],[Age Group]]<>B8,AVERAGE(D9:D10),IF(Table3[[#This Row],[Age Group]]<>B10,AVERAGE(D8:D9),AVERAGE(D8:D10))) -> 1.595456667
A10: European Union (28 countries) | B10: Total | C10: 2009 | D10: 1.60767 | E10: =IF(Table3[[#This Row],[Age Group]]<>B9,AVERAGE(D10:D11),IF(Table3[[#This Row],[Age Group]]<>B11,AVERAGE(D9:D10),AVERAGE(D9:D11))) -> 1.613046667
A11: European Union (28 countries) | B11: Total | C11: 2010 | D11: 1.6169 | E11: =IF(Table3[[#This Row],[Age Group]]<>B10,AVERAGE(D11:D12),IF(Table3[[#This Row],[Age Group]]<>B12,AVERAGE(D10:D11),AVERAGE(D10:D12))) -> 1.601966667
A12: European Union (28 countries) | B12: Total | C12: 2011 | D12: 1.58133 | E12: =IF(Table3[[#This Row],[Age Group]]<>B11,AVERAGE(D12:D13),IF(Table3[[#This Row],[Age Group]]<>B13,AVERAGE(D11:D12),AVERAGE(D11:D13))) -> 1.59356
A13: European Union (28 countries) | B13: Total | C13: 2012 | D13: 1.58245 | E13: =IF(Table3[[#This Row],[Age Group]]<>B12,AVERAGE(D13:D14),IF(Table3[[#This Row],[Age Group]]<>B14,AVERAGE(D12:D13),AVERAGE(D12:D14))) -> 1.56959
A14: European Union (28 countries) | B14: Total | C14: 2013 | D14: 1.54499 | E14: =IF(Table3[[#This Row],[Age Group]]<>B13,AVERAGE(D14:D15),IF(Table3[[#This Row],[Age Group]]<>B15,AVERAGE(D13:D14),AVERAGE(D13:D15))) -> 1.56772
A15: European Union (28 countries) | B15: Total | C15: 2014 | D15: 1.57572 | E15: =IF(Table3[[#This Row],[Age Group]]<>B14,AVERAGE(D15:D16),IF(Table3[[#This Row],[Age Group]]<>B16,AVERAGE(D14:D15),AVERAGE(D14:D16))) -> 1.560355
A16: European Union (28 countries) | B16: From 10 to 14 years | C16: 2001 | D16: 0.00016 | E16: =IF(Table3[[#This Row],[Age Group]]<>B15,AVERAGE(D16:D17),IF(Table3[[#This Row],[Age Group]]<>B17,AVERAGE(D15:D16),AVERAGE(D15:D17))) -> 0.000155
A17: European Union (28 countries) | B17: From 10 to 14 years | C17: 2002 | D17: 0.00015 | E17: =IF(Table3[[#This Row],[Age Group]]<>B16,AVERAGE(D17:D18),IF(Table3[[#This Row],[Age Group]]<>B18,AVERAGE(D16:D17),AVERAGE(D16:D18))) -> 0.0001533333333
A18: European Union (28 countries) | B18: From 10 to 14 years | C18: 2003 | D18: 0.00015 | E18: =IF(Table3[[#This Row],[Age Group]]<>B17,AVERAGE(D18:D19),IF(Table3[[#This Row],[Age Group]]<>B19,AVERAGE(D17:D18),AVERAGE(D17:D19))) -> 0.00015
A19: European Union (28 countries) | B19: From 10 to 14 years | C19: 2004 | D19: 0.00015 | E19: =IF(Table3[[#This Row],[Age Group]]<>B18,AVERAGE(D19:D20),IF(Table3[[#This Row],[Age Group]]<>B20,AVERAGE(D18:D19),AVERAGE(D18:D20))) -> 0.0001533333333
A20: European Union (28 countries) | B20: From 10 to 14 years | C20: 2005 | D20: 0.00016 | E20: =IF(Table3[[#This Row],[Age Group]]<>B19,AVERAGE(D20:D21),IF(Table3[[#This Row],[Age Group]]<>B21,AVERAGE(D19:D20),AVERAGE(D19:D21))) -> 0.0001566666667
A21: European Union (28 countries) | B21: From 10 to 14 years | C21: 2006 | D21: 0.00016 | E21: =IF(Table3[[#This Row],[Age Group]]<>B20,AVERAGE(D21:D22),IF(Table3[[#This Row],[Age Group]]<>B22,AVERAGE(D20:D21),AVERAGE(D20:D22))) -> 0.00016
A22: European Union (28 countries) | B22: From 10 to 14 years | C22: 2007 | D22: 0.00016 | E22: =IF(Table3[[#This Row],[Age Group]]<>B21,AVERAGE(D22:D23),IF(Table3[[#This Row],[Age Group]]<>B23,AVERAGE(D21:D22),AVERAGE(D21:D23))) -> 0.0001666666667
A23: European Union (28 countries) | B23: From 10 to 14 years | C23: 2008 | D23: 0.00018 | E23: =IF(Table3[[#This Row],[Age Group]]<>B22,AVERAGE(D23:D24),IF(Table3[[#This Row],[Age Group]]<>B24,AVERAGE(D22:D23),AVERAGE(D22:D24))) -> 0.0001733333333
A24: European Union (28 countries) | B24: From 10 to 14 years | C24: 2009 | D24: 0.00018 | E24: =IF(Table3[[#This Row],[Age Group]]<>B23,AVERAGE(D24:D25),IF(Table3[[#This Row],[Age Group]]<>B25,AVERAGE(D23:D24),AVERAGE(D23:D25))) -> 0.0001766666667
A25: European Union (28 countries) | B25: From 10 to 14 years | C25: 2010 | D25: 0.00017 | E25: =IF(Table3[[#This Row],[Age Group]]<>B24,AVERAGE(D25:D26),IF(Table3[[#This Row],[Age Group]]<>B26,AVERAGE(D24:D25),AVERAGE(D24:D26))) -> 0.0001733333333
A26: European Union (28 countries) | B26: From 10 to 14 years | C26: 2011 | D26: 0.00017 | E26: =IF(Table3[[#This Row],[Age Group]]<>B25,AVERAGE(D26:D27),IF(Table3[[#This Row],[Age Group]]<>B27,AVERAGE(D25:D26),AVERAGE(D25:D27))) -> 0.00017
A27: European Union (28 countries) | B27: From 10 to 14 years | C27: 2012 | D27: 0.00017 | E27: =IF(Table3[[#This Row],[Age Group]]<>B26,AVERAGE(D27:D28),IF(Table3[[#This Row],[Age Group]]<>B28,AVERAGE(D26:D27),AVERAGE(D26:D28))) -> 0.0001666666667
A28: European Union (28 countries) | B28: From 10 to 14 years | C28: 2013 | D28: 0.00016 | E28: =IF(Table3[[#This Row],[Age Group]]<>B27,AVERAGE(D28:D29),IF(Table3[[#This Row],[Age Group]]<>B29,AVERAGE(D27:D28),AVERAGE(D27:D29))) -> 0.0001633333333
A29: European Union (28 countries) | B29: From 10 to 14 years | C29: 2014 | D29: 0.00016 | E29: =IF(Table3[[#This Row],[Age Group]]<>B28,AVERAGE(D29:D30),IF(Table3[[#This Row],[Age Group]]<>B30,AVERAGE(D28:D29),AVERAGE(D28:D30))) -> 0.00016
A30: European Union (28 countries) | B30: From 15 to 19 years | C30: 2001 | D30: 0.01614 | E30: =IF(Table3[[#This Row],[Age Group]]<>B29,AVERAGE(D30:D31),IF(Table3[[#This Row],[Age Group]]<>B31,AVERAGE(D29:D30),AVERAGE(D29:D31))) -> 0.01586
A31: European Union (28 countries) | B31: From 15 to 19 years | C31: 2002 | D31: 0.01558 | E31: =IF(Table3[[#This Row],[Age Group]]<>B30,AVERAGE(D31:D32),IF(Table3[[#This Row],[Age Group]]<>B32,AVERAGE(D30:D31),AVERAGE(D30:D32))) -> 0.01569666667
A32: European Union (28 countries) | B32: From 15 to 19 years | C32: 2003 | D32: 0.01537 | E32: =IF(Table3[[#This Row],[Age Group]]<>B31,AVERAGE(D32:D33),IF(Table3[[#This Row],[Age Group]]<>B33,AVERAGE(D31:D32),AVERAGE(D31:D33))) -> 0.01540333333
A33: European Union (28 countries) | B33: From 15 to 19 years | C33: 2004 | D33: 0.01526 | E33: =IF(Table3[[#This Row],[Age Group]]<>B32,AVERAGE(D33:D34),IF(Table3[[#This Row],[Age Group]]<>B34,AVERAGE(D32:D33),AVERAGE(D32:D34))) -> 0.01521333333
A34: European Union (28 countries) | B34: From 15 to 19 years | C34: 2005 | D34: 0.01501 | E34: =IF(Table3[[#This Row],[Age Group]]<>B33,AVERAGE(D34:D35),IF(Table3[[#This Row],[Age Group]]<>B35,AVERAGE(D33:D34),AVERAGE(D33:D35))) -> 0.01509666667
A35: European Union (28 countries) | B35: From 15 to 19 years | C35: 2006 | D35: 0.01502 | E35: =IF(Table3[[#This Row],[Age Group]]<>B34,AVERAGE(D35:D36),IF(Table3[[#This Row],[Age Group]]<>B36,AVERAGE(D34:D35),AVERAGE(D34:D36))) -> 0.01499666667
A36: European Union (28 countries) | B36: From 15 to 19 years | C36: 2007 | D36: 0.01496 | E36: =IF(Table3[[#This Row],[Age Group]]<>B35,AVERAGE(D36:D37),IF(Table3[[#This Row],[Age Group]]<>B37,AVERAGE(D35:D36),AVERAGE(D35:D37))) -> 0.01509
A37: European Union (28 countries) | B37: From 15 to 19 years | C37: 2008 | D37: 0.01529 | E37: =IF(Table3[[#This Row],[Age Group]]<>B36,AVERAGE(D37:D38),IF(Table3[[#This Row],[Age Group]]<>B38,AVERAGE(D36:D37),AVERAGE(D36:D38))) -> 0.01500333333
A38: European Union (28 countries) | B38: From 15 to 19 years | C38: 2009 | D38: 0.01476 | E38: =IF(Table3[[#This Row],[Age Group]]<>B37,AVERAGE(D38:D39),IF(Table3[[#This Row],[Age Group]]<>B39,AVERAGE(D37:D38),AVERAGE(D37:D39))) -> 0.01463333333
A39: European Union (28 countries) | B39: From 15 to 19 years | C39: 2010 | D39: 0.01385 | E39: =IF(Table3[[#This Row],[Age Group]]<>B38,AVERAGE(D39:D40),IF(Table3[[#This Row],[Age Group]]<>B40,AVERAGE(D38:D39),AVERAGE(D38:D40))) -> 0.01384
A40: European Union (28 countries) | B40: From 15 to 19 years | C40: 2011 | D40: 0.01291 | E40: =IF(Table3[[#This Row],[Age Group]]<>B39,AVERAGE(D40:D41),IF(Table3[[#This Row],[Age Group]]<>B41,AVERAGE(D39:D40),AVERAGE(D39:D41))) -> 0.01311
A41: European Union (28 countries) | B41: From 15 to 19 years | C41: 2012 | D41: 0.01257 | E41: =IF(Table3[[#This Row],[Age Group]]<>B40,AVERAGE(D41:D42),IF(Table3[[#This Row],[Age Group]]<>B42,AVERAGE(D40:D41),AVERAGE(D40:D42))) -> 0.01238333333
A42: European Union (28 countries) | B42: From 15 to 19 years | C42: 2013 | D42: 0.01167 | E42: =IF(Table3[[#This Row],[Age Group]]<>B41,AVERAGE(D42:D43),IF(Table3[[#This Row],[Age Group]]<>B43,AVERAGE(D41:D42),AVERAGE(D41:D43))) -> 0.01184666667
A43: European Union (28 countries) | B43: From 15 to 19 years | C43: 2014 | D43: 0.0113 | E43: =IF(Table3[[#This Row],[Age Group]]<>B42,AVERAGE(D43:D44),IF(Table3[[#This Row],[Age Group]]<>B44,AVERAGE(D42:D43),AVERAGE(D42:D44))) -> 0.011485
A44: European Union (28 countries) | B44: From 20 to 24 years | C44: 2001 | D44: 0.05748 | E44: =IF(Table3[[#This Row],[Age Group]]<>B43,AVERAGE(D44:D45),IF(Table3[[#This Row],[Age Group]]<>B45,AVERAGE(D43:D44),AVERAGE(D43:D45))) -> 0.05652
A45: European Union (28 countries) | B45: From 20 to 24 years | C45: 2002 | D45: 0.05556 | E45: =IF(Table3[[#This Row],[Age Group]]<>B44,AVERAGE(D45:D46),IF(Table3[[#This Row],[Age Group]]<>B46,AVERAGE(D44:D45),AVERAGE(D44:D46))) -> 0.05584333333
A46: European Union (28 countries) | B46: From 20 to 24 years | C46: 2003 | D46: 0.05449 | E46: =IF(Table3[[#This Row],[Age Group]]<>B45,AVERAGE(D46:D47),IF(Table3[[#This Row],[Age Group]]<>B47,AVERAGE(D45:D46),AVERAGE(D45:D47))) -> 0.05476666667
A47: European Union (28 countries) | B47: From 20 to 24 years | C47: 2004 | D47: 0.05425 | E47: =IF(Table3[[#This Row],[Age Group]]<>B46,AVERAGE(D47:D48),IF(Table3[[#This Row],[Age Group]]<>B48,AVERAGE(D46:D47),AVERAGE(D46:D48))) -> 0.05395666667
A48: European Union (28 countries) | B48: From 20 to 24 years | C48: 2005 | D48: 0.05313 | E48: =IF(Table3[[#This Row],[Age Group]]<>B47,AVERAGE(D48:D49),IF(Table3[[#This Row],[Age Group]]<>B49,AVERAGE(D47:D48),AVERAGE(D47:D49))) -> 0.0535
A49: European Union (28 countries) | B49: From 20 to 24 years | C49: 2006 | D49: 0.05312 | E49: =IF(Table3[[#This Row],[Age Group]]<>B48,AVERAGE(D49:D50),IF(Table3[[#This Row],[Age Group]]<>B50,AVERAGE(D48:D49),AVERAGE(D48:D50))) -> 0.05307333333
A50: European Union (28 countries) | B50: From 20 to 24 years | C50: 2007 | D50: 0.05297 | E50: =IF(Table3[[#This Row],[Age Group]]<>B49,AVERAGE(D50:D51),IF(Table3[[#This Row],[Age Group]]<>B51,AVERAGE(D49:D50),AVERAGE(D49:D51))) -> 0.05347666667
A51: European Union (28 countries) | B51: From 20 to 24 years | C51: 2008 | D51: 0.05434 | E51: =IF(Table3[[#This Row],[Age Group]]<>B50,AVERAGE(D51:D52),IF(Table3[[#This Row],[Age Group]]<>B52,AVERAGE(D50:D51),AVERAGE(D50:D52))) -> 0.05348666667
A52: European Union (28 countries) | B52: From 20 to 24 years | C52: 2009 | D52: 0.05315 | E52: =IF(Table3[[#This Row],[Age Group]]<>B51,AVERAGE(D52:D53),IF(Table3[[#This Row],[Age Group]]<>B53,AVERAGE(D51:D52),AVERAGE(D51:D53))) -> 0.05310333333
A53: European Union (28 countries) | B53: From 20 to 24 years | C53: 2010 | D53: 0.05182 | E53: =IF(Table3[[#This Row],[Age Group]]<>B52,AVERAGE(D53:D54),IF(Table3[[#This Row],[Age Group]]<>B54,AVERAGE(D52:D53),AVERAGE(D52:D54))) -> 0.05136
A54: European Union (28 countries) | B54: From 20 to 24 years | C54: 2011 | D54: 0.04911 | E54: =IF(Table3[[#This Row],[Age Group]]<>B53,AVERAGE(D54:D55),IF(Table3[[#This Row],[Age Group]]<>B55,AVERAGE(D53:D54),AVERAGE(D53:D55))) -> 0.04973
A55: European Union (28 countries) | B55: From 20 to 24 years | C55: 2012 | D55: 0.04826 | E55: =IF(Table3[[#This Row],[Age Group]]<>B54,AVERAGE(D55:D56),IF(Table3[[#This Row],[Age Group]]<>B56,AVERAGE(D54:D55),AVERAGE(D54:D56))) -> 0.0476
A56: European Union (28 countries) | B56: From 20 to 24 years | C56: 2013 | D56: 0.04543 | E56: =IF(Table3[[#This Row],[Age Group]]<>B55,AVERAGE(D56:D57),IF(Table3[[#This Row],[Age Group]]<>B57,AVERAGE(D55:D56),AVERAGE(D55:D57))) -> 0.04616333333
A57: European Union (28 countries) | B57: From 20 to 24 years | C57: 2014 | D57: 0.0448 | E57: =IF(Table3[[#This Row],[Age Group]]<>B56,AVERAGE(D57:D58),IF(Table3[[#This Row],[Age Group]]<>B58,AVERAGE(D56:D57),AVERAGE(D56:D58))) -> 0.045115
A58: European Union (28 countries) | B58: From 25 to 29 years | C58: 2001 | D58: 0.09266 | E58: =IF(Table3[[#This Row],[Age Group]]<>B57,AVERAGE(D58:D59),IF(Table3[[#This Row],[Age Group]]<>B59,AVERAGE(D57:D58),AVERAGE(D57:D59))) -> 0.09218
A59: European Union (28 countries) | B59: From 25 to 29 years | C59: 2002 | D59: 0.0917 | E59: =IF(Table3[[#This Row],[Age Group]]<>B58,AVERAGE(D59:D60),IF(Table3[[#This Row],[Age Group]]<>B60,AVERAGE(D58:D59),AVERAGE(D58:D60))) -> 0.09207333333
A60: European Union (28 countries) | B60: From 25 to 29 years | C60: 2003 | D60: 0.09186 | E60: =IF(Table3[[#This Row],[Age Group]]<>B59,AVERAGE(D60:D61),IF(Table3[[#This Row],[Age Group]]<>B61,AVERAGE(D59:D60),AVERAGE(D59:D61))) -> 0.09198666667
A61: European Union (28 countries) | B61: From 25 to 29 years | C61: 2004 | D61: 0.0924 | E61: =IF(Table3[[#This Row],[Age Group]]<>B60,AVERAGE(D61:D62),IF(Table3[[#This Row],[Age Group]]<>B62,AVERAGE(D60:D61),AVERAGE(D60:D62))) -> 0.0922
A62: European Union (28 countries) | B62: From 25 to 29 years | C62: 2005 | D62: 0.09234 | E62: =IF(Table3[[#This Row],[Age Group]]<>B61,AVERAGE(D62:D63),IF(Table3[[#This Row],[Age Group]]<>B63,AVERAGE(D61:D62),AVERAGE(D61:D63))) -> 0.09270333333
A63: European Union (28 countries) | B63: From 25 to 29 years | C63: 2006 | D63: 0.09337 | E63: =IF(Table3[[#This Row],[Age Group]]<>B62,AVERAGE(D63:D64),IF(Table3[[#This Row],[Age Group]]<>B64,AVERAGE(D62:D63),AVERAGE(D62:D64))) -> 0.09313333333
A64: European Union (28 countries) | B64: From 25 to 29 years | C64: 2007 | D64: 0.09369 | E64: =IF(Table3[[#This Row],[Age Group]]<>B63,AVERAGE(D64:D65),IF(Table3[[#This Row],[Age Group]]<>B65,AVERAGE(D63:D64),AVERAGE(D63:D65))) -> 0.09434666667
A65: European Union (28 countries) | B65: From 25 to 29 years | C65: 2008 | D65: 0.09598 | E65: =IF(Table3[[#This Row],[Age Group]]<>B64,AVERAGE(D65:D66),IF(Table3[[#This Row],[Age Group]]<>B66,AVERAGE(D64:D65),AVERAGE(D64:D66))) -> 0.09497
A66: European Union (28 countries) | B66: From 25 to 29 years | C66: 2009 | D66: 0.09524 | E66: =IF(Table3[[#This Row],[Age Group]]<>B65,AVERAGE(D66:D67),IF(Table3[[#This Row],[Age Group]]<>B67,AVERAGE(D65:D66),AVERAGE(D65:D67))) -> 0.09552
A67: European Union (28 countries) | B67: From 25 to 29 years | C67: 2010 | D67: 0.09534 | E67: =IF(Table3[[#This Row],[Age Group]]<>B66,AVERAGE(D67:D68),IF(Table3[[#This Row],[Age Group]]<>B68,AVERAGE(D66:D67),AVERAGE(D66:D68))) -> 0.09432333333
A68: European Union (28 countries) | B68: From 25 to 29 years | C68: 2011 | D68: 0.09239 | E68: =IF(Table3[[#This Row],[Age Group]]<>B67,AVERAGE(D68:D69),IF(Table3[[#This Row],[Age Group]]<>B69,AVERAGE(D67:D68),AVERAGE(D67:D69))) -> 0.09334
A69: European Union (28 countries) | B69: From 25 to 29 years | C69: 2012 | D69: 0.09229 | E69: =IF(Table3[[#This Row],[Age Group]]<>B68,AVERAGE(D69:D70),IF(Table3[[#This Row],[Age Group]]<>B70,AVERAGE(D68:D69),AVERAGE(D68:D70))) -> 0.09150333333
A70: European Union (28 countries) | B70: From 25 to 29 years | C70: 2013 | D70: 0.08983 | E70: =IF(Table3[[#This Row],[Age Group]]<>B69,AVERAGE(D70:D71),IF(Table3[[#This Row],[Age Group]]<>B71,AVERAGE(D69:D70),AVERAGE(D69:D71))) -> 0.09110666667
A71: European Union (28 countries) | B71: From 25 to 29 years | C71: 2014 | D71: 0.0912 | E71: =IF(Table3[[#This Row],[Age Group]]<>B70,AVERAGE(D71:D72),IF(Table3[[#This Row],[Age Group]]<>B72,AVERAGE(D70:D71),AVERAGE(D70:D72))) -> 0.090515
A72: European Union (28 countries) | B72: From 30 to 34 years | C72: 2001 | D72: 0.08234 | E72: =IF(Table3[[#This Row],[Age Group]]<>B71,AVERAGE(D72:D73),IF(Table3[[#This Row],[Age Group]]<>B73,AVERAGE(D71:D72),AVERAGE(D71:D73))) -> 0.083065
A73: European Union (28 countries) | B73: From 30 to 34 years | C73: 2002 | D73: 0.08379 | E73: =IF(Table3[[#This Row],[Age Group]]<>B72,AVERAGE(D73:D74),IF(Table3[[#This Row],[Age Group]]<>B74,AVERAGE(D72:D73),AVERAGE(D72:D74))) -> 0.08405666667
A74: European Union (28 countries) | B74: From 30 to 34 years | C74: 2003 | D74: 0.08604 | E74: =IF(Table3[[#This Row],[Age Group]]<>B73,AVERAGE(D74:D75),IF(Table3[[#This Row],[Age Group]]<>B75,AVERAGE(D73:D74),AVERAGE(D73:D75))) -> 0.08613666667
A75: European Union (28 countries) | B75: From 30 to 34 years | C75: 2004 | D75: 0.08858 | E75: =IF(Table3[[#This Row],[Age Group]]<>B74,AVERAGE(D75:D76),IF(Table3[[#This Row],[Age Group]]<>B76,AVERAGE(D74:D75),AVERAGE(D74:D76))) -> 0.08834
A76: European Union (28 countries) | B76: From 30 to 34 years | C76: 2005 | D76: 0.0904 | E76: =IF(Table3[[#This Row],[Age Group]]<>B75,AVERAGE(D76:D77),IF(Table3[[#This Row],[Age Group]]<>B77,AVERAGE(D75:D76),AVERAGE(D75:D77))) -> 0.09062333333
A77: European Union (28 countries) | B77: From 30 to 34 years | C77: 2006 | D77: 0.09289 | E77: =IF(Table3[[#This Row],[Age Group]]<>B76,AVERAGE(D77:D78),IF(Table3[[#This Row],[Age Group]]<>B78,AVERAGE(D76:D77),AVERAGE(D76:D78))) -> 0.09268333333
A78: European Union (28 countries) | B78: From 30 to 34 years | C78: 2007 | D78: 0.09476 | E78: =IF(Table3[[#This Row],[Age Group]]<>B77,AVERAGE(D78:D79),IF(Table3[[#This Row],[Age Group]]<>B79,AVERAGE(D77:D78),AVERAGE(D77:D79))) -> 0.09528333333
A79: European Union (28 countries) | B79: From 30 to 34 years | C79: 2008 | D79: 0.0982 | E79: =IF(Table3[[#This Row],[Age Group]]<>B78,AVERAGE(D79:D80),IF(Table3[[#This Row],[Age Group]]<>B80,AVERAGE(D78:D79),AVERAGE(D78:D80))) -> 0.09705333333
A80: European Union (28 countries) | B80: From 30 to 34 years | C80: 2009 | D80: 0.0982 | E80: =IF(Table3[[#This Row],[Age Group]]<>B79,AVERAGE(D80:D81),IF(Table3[[#This Row],[Age Group]]<>B81,AVERAGE(D79:D80),AVERAGE(D79:D81))) -> 0.09881
A81: European Union (28 countries) | B81: From 30 to 34 years | C81: 2010 | D81: 0.10003 | E81: =IF(Table3[[#This Row],[Age Group]]<>B80,AVERAGE(D81:D82),IF(Table3[[#This Row],[Age Group]]<>B82,AVERAGE(D80:D81),AVERAGE(D80:D82))) -> 0.09898333333
A82: European Union (28 countries) | B82: From 30 to 34 years | C82: 2011 | D82: 0.09872 | E82: =IF(Table3[[#This Row],[Age Group]]<>B81,AVERAGE(D82:D83),IF(Table3[[#This Row],[Age Group]]<>B83,AVERAGE(D81:D82),AVERAGE(D81:D83))) -> 0.09931
A83: European Union (28 countries) | B83: From 30 to 34 years | C83: 2012 | D83: 0.09918 | E83: =IF(Table3[[#This Row],[Age Group]]<>B82,AVERAGE(D83:D84),IF(Table3[[#This Row],[Age Group]]<>B84,AVERAGE(D82:D83),AVERAGE(D82:D84))) -> 0.09852666667
A84: European Union (28 countries) | B84: From 30 to 34 years | C84: 2013 | D84: 0.09768 | E84: =IF(Table3[[#This Row],[Age Group]]<>B83,AVERAGE(D84:D85),IF(Table3[[#This Row],[Age Group]]<>B85,AVERAGE(D83:D84),AVERAGE(D83:D85))) -> 0.09922
A85: European Union (28 countries) | B85: From 30 to 34 years | C85: 2014 | D85: 0.1008 | E85: =IF(Table3[[#This Row],[Age Group]]<>B84,AVERAGE(D85:D86),IF(Table3[[#This Row],[Age Group]]<>B86,AVERAGE(D84:D85),AVERAGE(D84:D86))) -> 0.09924
A86: European Union (28 countries) | B86: From 35 to 39 years | C86: 2001 | D86: 0.03605 | E86: =IF(Table3[[#This Row],[Age Group]]<>B85,AVERAGE(D86:D87),IF(Table3[[#This Row],[Age Group]]<>B87,AVERAGE(D85:D86),AVERAGE(D85:D87))) -> 0.0367
A87: European Union (28 countries) | B87: From 35 to 39 years | C87: 2002 | D87: 0.03735 | E87: =IF(Table3[[#This Row],[Age Group]]<>B86,AVERAGE(D87:D88),IF(Table3[[#This Row],[Age Group]]<>B88,AVERAGE(D86:D87),AVERAGE(D86:D88))) -> 0.03755666667
A88: European Union (28 countries) | B88: From 35 to 39 years | C88: 2003 | D88: 0.03927 | E88: =IF(Table3[[#This Row],[Age Group]]<>B87,AVERAGE(D88:D89),IF(Table3[[#This Row],[Age Group]]<>B89,AVERAGE(D87:D88),AVERAGE(D87:D89))) -> 0.03930666667
A89: European Union (28 countries) | B89: From 35 to 39 years | C89: 2004 | D89: 0.0413 | E89: =IF(Table3[[#This Row],[Age Group]]<>B88,AVERAGE(D89:D90),IF(Table3[[#This Row],[Age Group]]<>B90,AVERAGE(D88:D89),AVERAGE(D88:D90))) -> 0.04107666667
A90: European Union (28 countries) | B90: From 35 to 39 years | C90: 2005 | D90: 0.04266 | E90: =IF(Table3[[#This Row],[Age Group]]<>B89,AVERAGE(D90:D91),IF(Table3[[#This Row],[Age Group]]<>B91,AVERAGE(D89:D90),AVERAGE(D89:D91))) -> 0.04294333333
A91: European Union (28 countries) | B91: From 35 to 39 years | C91: 2006 | D91: 0.04487 | E91: =IF(Table3[[#This Row],[Age Group]]<>B90,AVERAGE(D91:D92),IF(Table3[[#This Row],[Age Group]]<>B92,AVERAGE(D90:D91),AVERAGE(D90:D92))) -> 0.04483
A92: European Union (28 countries) | B92: From 35 to 39 years | C92: 2007 | D92: 0.04696 | E92: =IF(Table3[[#This Row],[Age Group]]<>B91,AVERAGE(D92:D93),IF(Table3[[#This Row],[Age Group]]<>B93,AVERAGE(D91:D92),AVERAGE(D91:D93))) -> 0.04698333333
A93: European Union (28 countries) | B93: From 35 to 39 years | C93: 2008 | D93: 0.04912 | E93: =IF(Table3[[#This Row],[Age Group]]<>B92,AVERAGE(D93:D94),IF(Table3[[#This Row],[Age Group]]<>B94,AVERAGE(D92:D93),AVERAGE(D92:D94))) -> 0.04866666667
A94: European Union (28 countries) | B94: From 35 to 39 years | C94: 2009 | D94: 0.04992 | E94: =IF(Table3[[#This Row],[Age Group]]<>B93,AVERAGE(D94:D95),IF(Table3[[#This Row],[Age Group]]<>B95,AVERAGE(D93:D94),AVERAGE(D93:D95))) -> 0.05023333333
A95: European Union (28 countries) | B95: From 35 to 39 years | C95: 2010 | D95: 0.05166 | E95: =IF(Table3[[#This Row],[Age Group]]<>B94,AVERAGE(D95:D96),IF(Table3[[#This Row],[Age Group]]<>B96,AVERAGE(D94:D95),AVERAGE(D94:D96))) -> 0.05119
A96: European Union (28 countries) | B96: From 35 to 39 years | C96: 2011 | D96: 0.05199 | E96: =IF(Table3[[#This Row],[Age Group]]<>B95,AVERAGE(D96:D97),IF(Table3[[#This Row],[Age Group]]<>B97,AVERAGE(D95:D96),AVERAGE(D95:D97))) -> 0.05208
A97: European Union (28 countries) | B97: From 35 to 39 years | C97: 2012 | D97: 0.05259 | E97: =IF(Table3[[#This Row],[Age Group]]<>B96,AVERAGE(D97:D98),IF(Table3[[#This Row],[Age Group]]<>B98,AVERAGE(D96:D97),AVERAGE(D96:D98))) -> 0.05234666667
A98: European Union (28 countries) | B98: From 35 to 39 years | C98: 2013 | D98: 0.05246 | E98: =IF(Table3[[#This Row],[Age Group]]<>B97,AVERAGE(D98:D99),IF(Table3[[#This Row],[Age Group]]<>B99,AVERAGE(D97:D98),AVERAGE(D97:D99))) -> 0.05319
A99: European Union (28 countries) | B99: From 35 to 39 years | C99: 2014 | D99: 0.05452 | E99: =IF(Table3[[#This Row],[Age Group]]<>B98,AVERAGE(D99:D100),IF(Table3[[#This Row],[Age Group]]<>B100,AVERAGE(D98:D99),AVERAGE(D98:D100))) -> 0.05349
A100: European Union (28 countries) | B100: From 40 to 44 years | C100: 2001 | D100: 0.0065 | E100: =IF(Table3[[#This Row],[Age Group]]<>B99,AVERAGE(D100:D101),IF(Table3[[#This Row],[Age Group]]<>B101,AVERAGE(D99:D100),AVERAGE(D99:D101))) -> 0.006635
A101: European Union (28 countries) | B101: From 40 to 44 years | C101: 2002 | D101: 0.00677 | E101: =IF(Table3[[#This Row],[Age Group]]<>B100,AVERAGE(D101:D102),IF(Table3[[#This Row],[Age Group]]<>B102,AVERAGE(D100:D101),AVERAGE(D100:D102))) -> 0.00681
A102: European Union (28 countries) | B102: From 40 to 44 years | C102: 2003 | D102: 0.00716 | E102: =IF(Table3[[#This Row],[Age Group]]<>B101,AVERAGE(D102:D103),IF(Table3[[#This Row],[Age Group]]<>B103,AVERAGE(D101:D102),AVERAGE(D101:D103))) -> 0.007183333333
A103: European Union (28 countries) | B103: From 40 to 44 years | C103: 2004 | D103: 0.00762 | E103: =IF(Table3[[#This Row],[Age Group]]<>B102,AVERAGE(D103:D104),IF(Table3[[#This Row],[Age Group]]<>B104,AVERAGE(D102:D103),AVERAGE(D102:D104))) -> 0.00759
A104: European Union (28 countries) | B104: From 40 to 44 years | C104: 2005 | D104: 0.00799 | E104: =IF(Table3[[#This Row],[Age Group]]<>B103,AVERAGE(D104:D105),IF(Table3[[#This Row],[Age Group]]<>B105,AVERAGE(D103:D104),AVERAGE(D103:D105))) -> 0.008013333333
A105: European Union (28 countries) | B105: From 40 to 44 years | C105: 2006 | D105: 0.00843 | E105: =IF(Table3[[#This Row],[Age Group]]<>B104,AVERAGE(D105:D106),IF(Table3[[#This Row],[Age Group]]<>B106,AVERAGE(D104:D105),AVERAGE(D104:D106))) -> 0.00845
A106: European Union (28 countries) | B106: From 40 to 44 years | C106: 2007 | D106: 0.00893 | E106: =IF(Table3[[#This Row],[Age Group]]<>B105,AVERAGE(D106:D107),IF(Table3[[#This Row],[Age Group]]<>B107,AVERAGE(D105:D106),AVERAGE(D105:D107))) -> 0.008943333333
A107: European Union (28 countries) | B107: From 40 to 44 years | C107: 2008 | D107: 0.00947 | E107: =IF(Table3[[#This Row],[Age Group]]<>B106,AVERAGE(D107:D108),IF(Table3[[#This Row],[Age Group]]<>B108,AVERAGE(D106:D107),AVERAGE(D106:D108))) -> 0.009416666667
A108: European Union (28 countries) | B108: From 40 to 44 years | C108: 2009 | D108: 0.00985 | E108: =IF(Table3[[#This Row],[Age Group]]<>B107,AVERAGE(D108:D109),IF(Table3[[#This Row],[Age Group]]<>B109,AVERAGE(D107:D108),AVERAGE(D107:D109))) -> 0.009873333333
A109: European Union (28 countries) | B109: From 40 to 44 years | C109: 2010 | D109: 0.0103 | E109: =IF(Table3[[#This Row],[Age Group]]<>B108,AVERAGE(D109:D110),IF(Table3[[#This Row],[Age Group]]<>B110,AVERAGE(D108:D109),AVERAGE(D108:D110))) -> 0.01028
A110: European Union (28 countries) | B110: From 40 to 44 years | C110: 2011 | D110: 0.01069 | E110: =IF(Table3[[#This Row],[Age Group]]<>B109,AVERAGE(D110:D111),IF(Table3[[#This Row],[Age Group]]<>B111,AVERAGE(D109:D110),AVERAGE(D109:D111))) -> 0.01068333333
A111: European Union (28 countries) | B111: From 40 to 44 years | C111: 2012 | D111: 0.01106 | E111: =IF(Table3[[#This Row],[Age Group]]<>B110,AVERAGE(D111:D112),IF(Table3[[#This Row],[Age Group]]<>B112,AVERAGE(D110:D111),AVERAGE(D110:D112))) -> 0.01101
A112: European Union (28 countries) | B112: From 40 to 44 years | C112: 2013 | D112: 0.01128 | E112: =IF(Table3[[#This Row],[Age Group]]<>B111,AVERAGE(D112:D113),IF(Table3[[#This Row],[Age Group]]<>B113,AVERAGE(D111:D112),AVERAGE(D111:D113))) -> 0.01138333333
A113: European Union (28 countries) | B113: From 40 to 44 years | C113: 2014 | D113: 0.01181 | E113: =IF(Table3[[#This Row],[Age Group]]<>B112,AVERAGE(D113:D114),IF(Table3[[#This Row],[Age Group]]<>B114,AVERAGE(D112:D113),AVERAGE(D112:D114))) -> 0.011545
A114: European Union (28 countries) | B114: From 45 to 49 years | C114: 2001 | D114: 0.00029 | E114: =IF(Table3[[#This Row],[Age Group]]<>B113,AVERAGE(D114:D115),IF(Table3[[#This Row],[Age Group]]<>B115,AVERAGE(D113:D114),AVERAGE(D113:D115))) -> 0.000295
A115: European Union (28 countries) | B115: From 45 to 49 years | C115: 2002 | D115: 0.0003 | E115: =IF(Table3[[#This Row],[Age Group]]<>B114,AVERAGE(D115:D116),IF(Table3[[#This Row],[Age Group]]<>B116,AVERAGE(D114:D115),AVERAGE(D114:D116))) -> 0.0003033333333
A116: European Union (28 countries) | B116: From 45 to 49 years | C116: 2003 | D116: 0.00032 | E116: =IF(Table3[[#This Row],[Age Group]]<>B115,AVERAGE(D116:D117),IF(Table3[[#This Row],[Age Group]]<>B117,AVERAGE(D115:D116),AVERAGE(D115:D117))) -> 0.0003166666667
A117: European Union (28 countries) | B117: From 45 to 49 years | C117: 2004 | D117: 0.00033 | E117: =IF(Table3[[#This Row],[Age Group]]<>B116,AVERAGE(D117:D118),IF(Table3[[#This Row],[Age Group]]<>B118,AVERAGE(D116:D117),AVERAGE(D116:D118))) -> 0.00034
A118: European Union (28 countries) | B118: From 45 to 49 years | C118: 2005 | D118: 0.00037 | E118: =IF(Table3[[#This Row],[Age Group]]<>B117,AVERAGE(D118:D119),IF(Table3[[#This Row],[Age Group]]<>B119,AVERAGE(D117:D118),AVERAGE(D117:D119))) -> 0.00037
A119: European Union (28 countries) | B119: From 45 to 49 years | C119: 2006 | D119: 0.00041 | E119: =IF(Table3[[#This Row],[Age Group]]<>B118,AVERAGE(D119:D120),IF(Table3[[#This Row],[Age Group]]<>B120,AVERAGE(D118:D119),AVERAGE(D118:D120))) -> 0.00041
A120: European Union (28 countries) | B120: From 45 to 49 years | C120: 2007 | D120: 0.00045 | E120: =IF(Table3[[#This Row],[Age Group]]<>B119,AVERAGE(D120:D121),IF(Table3[[#This Row],[Age Group]]<>B121,AVERAGE(D119:D120),AVERAGE(D119:D121))) -> 0.0004533333333
A121: European Union (28 countries) | B121: From 45 to 49 years | C121: 2008 | D121: 0.0005 | E121: =IF(Table3[[#This Row],[Age Group]]<>B120,AVERAGE(D121:D122),IF(Table3[[#This Row],[Age Group]]<>B122,AVERAGE(D120:D121),AVERAGE(D120:D122))) -> 0.0004966666667
A122: European Union (28 countries) | B122: From 45 to 49 years | C122: 2009 | D122: 0.00054 | E122: =IF(Table3[[#This Row],[Age Group]]<>B121,AVERAGE(D122:D123),IF(Table3[[#This Row],[Age Group]]<>B123,AVERAGE(D121:D122),AVERAGE(D121:D123))) -> 0.00054
A123: European Union (28 countries) | B123: From 45 to 49 years | C123: 2010 | D123: 0.00058 | E123: =IF(Table3[[#This Row],[Age Group]]<>B122,AVERAGE(D123:D124),IF(Table3[[#This Row],[Age Group]]<>B124,AVERAGE(D122:D123),AVERAGE(D122:D124))) -> 0.0005766666667
A124: European Union (28 countries) | B124: From 45 to 49 years | C124: 2011 | D124: 0.00061 | E124: =IF(Table3[[#This Row],[Age Group]]<>B123,AVERAGE(D124:D125),IF(Table3[[#This Row],[Age Group]]<>B125,AVERAGE(D123:D124),AVERAGE(D123:D125))) -> 0.0006133333333
A125: European Union (28 countries) | B125: From 45 to 49 years | C125: 2012 | D125: 0.00065 | E125: =IF(Table3[[#This Row],[Age Group]]<>B124,AVERAGE(D125:D126),IF(Table3[[#This Row],[Age Group]]<>B126,AVERAGE(D124:D125),AVERAGE(D124:D126))) -> 0.0006433333333
A126: European Union (28 countries) | B126: From 45 to 49 years | C126: 2013 | D126: 0.00067 | E126: =IF(Table3[[#This Row],[Age Group]]<>B125,AVERAGE(D126:D127),IF(Table3[[#This Row],[Age Group]]<>B127,AVERAGE(D125:D126),AVERAGE(D125:D127))) -> 0.0006766666667
A127: European Union (28 countries) | B127: From 45 to 49 years | C127: 2014 | D127: 0.00071 | E127: =IF(Table3[[#This Row],[Age Group]]<>B126,AVERAGE(D127:D128),IF(Table3[[#This Row],[Age Group]]<>B128,AVERAGE(D126:D127),AVERAGE(D126:D128))) -> 0.00069
A128: European Union (28 countries) | B128: 50 years or over | C128: 2001 | D128: 2e-05 | E128: =IF(Table3[[#This Row],[Age Group]]<>B127,AVERAGE(D128:D129),IF(Table3[[#This Row],[Age Group]]<>B129,AVERAGE(D127:D128),AVERAGE(D127:D129))) -> 2e-05
A129: European Union (28 countries) | B129: 50 years or over | C129: 2002 | D129: 2e-05 | E129: =IF(Table3[[#This Row],[Age Group]]<>B128,AVERAGE(D129:D130),IF(Table3[[#This Row],[Age Group]]<>B130,AVERAGE(D128:D129),AVERAGE(D128:D130))) -> 2e-05
A130: European Union (28 countries) | B130: 50 years or over | C130: 2003 | D130: 2e-05 | E130: =IF(Table3[[#This Row],[Age Group]]<>B129,AVERAGE(D130:D131),IF(Table3[[#This Row],[Age Group]]<>B131,AVERAGE(D129:D130),AVERAGE(D129:D131))) -> 2e-05
A131: European Union (28 countries) | B131: 50 years or over | C131: 2004 | D131: 2e-05 | E131: =IF(Table3[[#This Row],[Age Group]]<>B130,AVERAGE(D131:D132),IF(Table3[[#This Row],[Age Group]]<>B132,AVERAGE(D130:D131),AVERAGE(D130:D132))) -> 2e-05
A132: European Union (28 countries) | B132: 50 years or over | C132: 2005 | D132: 2e-05 | E132: =IF(Table3[[#This Row],[Age Group]]<>B131,AVERAGE(D132:D133),IF(Table3[[#This Row],[Age Group]]<>B133,AVERAGE(D131:D132),AVERAGE(D131:D133))) -> 2e-05
A133: European Union (28 countries) | B133: 50 years or over | C133: 2006 | D133: 2e-05 | E133: =IF(Table3[[#This Row],[Age Group]]<>B132,AVERAGE(D133:D134),IF(Table3[[#This Row],[Age Group]]<>B134,AVERAGE(D132:D133),AVERAGE(D132:D134))) -> 2.333333333e-05
A134: European Union (28 countries) | B134: 50 years or over | C134: 2007 | D134: 3e-05 | E134: =IF(Table3[[#This Row],[Age Group]]<>B133,AVERAGE(D134:D135),IF(Table3[[#This Row],[Age Group]]<>B135,AVERAGE(D133:D134),AVERAGE(D133:D135))) -> 2.666666667e-05
A135: European Union (28 countries) | B135: 50 years or over | C135: 2008 | D135: 3e-05 | E135: =IF(Table3[[#This Row],[Age Group]]<>B134,AVERAGE(D135:D136),IF(Table3[[#This Row],[Age Group]]<>B136,AVERAGE(D134:D135),AVERAGE(D134:D136))) -> 3.333333333e-05
A136: European Union (28 countries) | B136: 50 years or over | C136: 2009 | D136: 4e-05 | E136: =IF(Table3[[#This Row],[Age Group]]<>B135,AVERAGE(D136:D137),IF(Table3[[#This Row],[Age Group]]<>B137,AVERAGE(D135:D136),AVERAGE(D135:D137))) -> 4e-05
A137: European Union (28 countries) | B137: 50 years or over | C137: 2010 | D137: 5e-05 | E137: =IF(Table3[[#This Row],[Age Group]]<>B136,AVERAGE(D137:D138),IF(Table3[[#This Row],[Age Group]]<>B138,AVERAGE(D136:D137),AVERAGE(D136:D138))) -> 4.666666667e-05
A138: European Union (28 countries) | B138: 50 years or over | C138: 2011 | D138: 5e-05 | E138: =IF(Table3[[#This Row],[Age Group]]<>B137,AVERAGE(D138:D139),IF(Table3[[#This Row],[Age Group]]<>B139,AVERAGE(D137:D138),AVERAGE(D137:D139))) -> 5e-05
A139: European Union (28 countries) | B139: 50 years or over | C139: 2012 | D139: 5e-05 | E139: =IF(Table3[[#This Row],[Age Group]]<>B138,AVERAGE(D139:D140),IF(Table3[[#This Row],[Age Group]]<>B140,AVERAGE(D138:D139),AVERAGE(D138:D140))) -> 5e-05
A140: European Union (28 countries) | B140: 50 years or over | C140: 2013 | D140: 5e-05 | E140: =IF(Table3[[#This Row],[Age Group]]<>B139,AVERAGE(D140:D141),IF(Table3[[#This Row],[Age Group]]<>B141,AVERAGE(D139:D140),AVERAGE(D139:D141))) -> 5.333333333e-05
A141: European Union (28 countries) | B141: 50 years or over | C141: 2014 | D141: 6e-05 | E141: =IF(Table3[[#This Row],[Age Group]]<>B140,AVERAGE(D141:D142),IF(Table3[[#This Row],[Age Group]]<>B142,AVERAGE(D140:D141),AVERAGE(D140:D142))) -> 5.5e-05
A142: European Union (27 countries) | B142: Total | C142: 2001 | D142: 1.45634 | E142: =IF(Table3[[#This Row],[Age Group]]<>B141,AVERAGE(D142:D143),IF(Table3[[#This Row],[Age Group]]<>B143,AVERAGE(D141:D142),AVERAGE(D141:D143))) -> 1.455935
A143: European Union (27 countries) | B143: Total | C143: 2002 | D143: 1.45553 | E143: =IF(Table3[[#This Row],[Age Group]]<>B142,AVERAGE(D143:D144),IF(Table3[[#This Row],[Age Group]]<>B144,AVERAGE(D142:D143),AVERAGE(D142:D144))) -> 1.46181
A144: European Union (27 countries) | B144: Total | C144: 2003 | D144: 1.47356 | E144: =IF(Table3[[#This Row],[Age Group]]<>B143,AVERAGE(D144:D145),IF(Table3[[#This Row],[Age Group]]<>B145,AVERAGE(D143:D144),AVERAGE(D143:D145))) -> 1.47626
A145: European Union (27 countries) | B145: Total | C145: 2004 | D145: 1.49969 | E145: =IF(Table3[[#This Row],[Age Group]]<>B144,AVERAGE(D145:D146),IF(Table3[[#This Row],[Age Group]]<>B146,AVERAGE(D144:D145),AVERAGE(D144:D146))) -> 1.49447
A146: European Union (27 countries) | B146: Total | C146: 2005 | D146: 1.51016 | E146: =IF(Table3[[#This Row],[Age Group]]<>B145,AVERAGE(D146:D147),IF(Table3[[#This Row],[Age Group]]<>B147,AVERAGE(D145:D146),AVERAGE(D145:D147))) -> 1.5173
A147: European Union (27 countries) | B147: Total | C147: 2006 | D147: 1.54205 | E147: =IF(Table3[[#This Row],[Age Group]]<>B146,AVERAGE(D147:D148),IF(Table3[[#This Row],[Age Group]]<>B148,AVERAGE(D146:D147),AVERAGE(D146:D148))) -> 1.538966667
A148: European Union (27 countries) | B148: Total | C148: 2007 | D148: 1.56469 | E148: =IF(Table3[[#This Row],[Age Group]]<>B147,AVERAGE(D148:D149),IF(Table3[[#This Row],[Age Group]]<>B149,AVERAGE(D147:D148),AVERAGE(D147:D149))) -> 1.57391
A149: European Union (27 countries) | B149: Total | C149: 2008 | D149: 1.61499 | E149: =IF(Table3[[#This Row],[Age Group]]<>B148,AVERAGE(D149:D150),IF(Table3[[#This Row],[Age Group]]<>B150,AVERAGE(D148:D149),AVERAGE(D148:D150))) -> 1.595816667
A150: European Union (27 countries) | B150: Total | C150: 2009 | D150: 1.60777 | E150: =IF(Table3[[#This Row],[Age Group]]<>B149,AVERAGE(D150:D151),IF(Table3[[#This Row],[Age Group]]<>B151,AVERAGE(D149:D150),AVERAGE(D149:D151))) -> 1.61339
A151: European Union (27 countries) | B151: Total | C151: 2010 | D151: 1.61741 | E151: =IF(Table3[[#This Row],[Age Group]]<>B150,AVERAGE(D151:D152),IF(Table3[[#This Row],[Age Group]]<>B152,AVERAGE(D150:D151),AVERAGE(D150:D152))) -> 1.602433333
A152: European Union (27 countries) | B152: Total | C152: 2011 | D152: 1.58212 | E152: =IF(Table3[[#This Row],[Age Group]]<>B151,AVERAGE(D152:D153),IF(Table3[[#This Row],[Age Group]]<>B153,AVERAGE(D151:D152),AVERAGE(D151:D153))) -> 1.594176667
A153: European Union (27 countries) | B153: Total | C153: 2012 | D153: 1.583 | E153: =IF(Table3[[#This Row],[Age Group]]<>B152,AVERAGE(D153:D154),IF(Table3[[#This Row],[Age Group]]<>B154,AVERAGE(D152:D153),AVERAGE(D152:D154))) -> 1.570276667
A154: European Union (27 countries) | B154: Total | C154: 2013 | D154: 1.54571 | E154: =IF(Table3[[#This Row],[Age Group]]<>B153,AVERAGE(D154:D155),IF(Table3[[#This Row],[Age Group]]<>B155,AVERAGE(D153:D154),AVERAGE(D153:D155))) -> 1.568473333
A155: European Union (27 countries) | B155: Total | C155: 2014 | D155: 1.57671 | E155: =IF(Table3[[#This Row],[Age Group]]<>B154,AVERAGE(D155:D156),IF(Table3[[#This Row],[Age Group]]<>B156,AVERAGE(D154:D155),AVERAGE(D154:D156))) -> 1.56121
A156: European Union (27 countries) | B156: From 10 to 14 years | C156: 2001 | D156: 0.00016 | E156: =IF(Table3[[#This Row],[Age Group]]<>B155,AVERAGE(D156:D157),IF(Table3[[#This Row],[Age Group]]<>B157,AVERAGE(D155:D156),AVERAGE(D155:D157))) -> 0.000155
A157: European Union (27 countries) | B157: From 10 to 14 years | C157: 2002 | D157: 0.00015 | E157: =IF(Table3[[#This Row],[Age Group]]<>B156,AVERAGE(D157:D158),IF(Table3[[#This Row],[Age Group]]<>B158,AVERAGE(D156:D157),AVERAGE(D156:D158))) -> 0.0001533333333
A158: European Union (27 countries) | B158: From 10 to 14 years | C158: 2003 | D158: 0.00015 | E158: =IF(Table3[[#This Row],[Age Group]]<>B157,AVERAGE(D158:D159),IF(Table3[[#This Row],[Age Group]]<>B159,AVERAGE(D157:D158),AVERAGE(D157:D159))) -> 0.00015
A159: European Union (27 countries) | B159: From 10 to 14 years | C159: 2004 | D159: 0.00015 | E159: =IF(Table3[[#This Row],[Age Group]]<>B158,AVERAGE(D159:D160),IF(Table3[[#This Row],[Age Group]]<>B160,AVERAGE(D158:D159),AVERAGE(D158:D160))) -> 0.0001533333333
A160: European Union (27 countries) | B160: From 10 to 14 years | C160: 2005 | D160: 0.00016 | E160: =IF(Table3[[#This Row],[Age Group]]<>B159,AVERAGE(D160:D161),IF(Table3[[#This Row],[Age Group]]<>B161,AVERAGE(D159:D160),AVERAGE(D159:D161))) -> 0.0001566666667
A161: European Union (27 countries) | B161: From 10 to 14 years | C161: 2006 | D161: 0.00016 | E161: =IF(Table3[[#This Row],[Age Group]]<>B160,AVERAGE(D161:D162),IF(Table3[[#This Row],[Age Group]]<>B162,AVERAGE(D160:D161),AVERAGE(D160:D162))) -> 0.00016
A162: European Union (27 countries) | B162: From 10 to 14 years | C162: 2007 | D162: 0.00016 | E162: =IF(Table3[[#This Row],[Age Group]]<>B161,AVERAGE(D162:D163),IF(Table3[[#This Row],[Age Group]]<>B163,AVERAGE(D161:D162),AVERAGE(D161:D163))) -> 0.0001666666667
A163: European Union (27 countries) | B163: From 10 to 14 years | C163: 2008 | D163: 0.00018 | E163: =IF(Table3[[#This Row],[Age Group]]<>B162,AVERAGE(D163:D164),IF(Table3[[#This Row],[Age Group]]<>B164,AVERAGE(D162:D163),AVERAGE(D162:D164))) -> 0.0001733333333
A164: European Union (27 countries) | B164: From 10 to 14 years | C164: 2009 | D164: 0.00018 | E164: =IF(Table3[[#This Row],[Age Group]]<>B163,AVERAGE(D164:D165),IF(Table3[[#This Row],[Age Group]]<>B165,AVERAGE(D163:D164),AVERAGE(D163:D165))) -> 0.0001766666667
A165: European Union (27 countries) | B165: From 10 to 14 years | C165: 2010 | D165: 0.00017 | E165: =IF(Table3[[#This Row],[Age Group]]<>B164,AVERAGE(D165:D166),IF(Table3[[#This Row],[Age Group]]<>B166,AVERAGE(D164:D165),AVERAGE(D164:D166))) -> 0.0001733333333
A166: European Union (27 countries) | B166: From 10 to 14 years | C166: 2011 | D166: 0.00017 | E166: =IF(Table3[[#This Row],[Age Group]]<>B165,AVERAGE(D166:D167),IF(Table3[[#This Row],[Age Group]]<>B167,AVERAGE(D165:D166),AVERAGE(D165:D167))) -> 0.00017
A167: European Union (27 countries) | B167: From 10 to 14 years | C167: 2012 | D167: 0.00017 | E167: =IF(Table3[[#This Row],[Age Group]]<>B166,AVERAGE(D167:D168),IF(Table3[[#This Row],[Age Group]]<>B168,AVERAGE(D166:D167),AVERAGE(D166:D168))) -> 0.0001666666667
A168: European Union (27 countries) | B168: From 10 to 14 years | C168: 2013 | D168: 0.00016 | E168: =IF(Table3[[#This Row],[Age Group]]<>B167,AVERAGE(D168:D169),IF(Table3[[#This Row],[Age Group]]<>B169,AVERAGE(D167:D168),AVERAGE(D167:D169))) -> 0.0001633333333
A169: European Union (27 countries) | B169: From 10 to 14 years | C169: 2014 | D169: 0.00016 | E169: =IF(Table3[[#This Row],[Age Group]]<>B168,AVERAGE(D169:D170),IF(Table3[[#This Row],[Age Group]]<>B170,AVERAGE(D168:D169),AVERAGE(D168:D170))) -> 0.00016
A170: European Union (27 countries) | B170: From 15 to 19 years | C170: 2001 | D170: 0.01613 | E170: =IF(Table3[[#This Row],[Age Group]]<>B169,AVERAGE(D170:D171),IF(Table3[[#This Row],[Age Group]]<>B171,AVERAGE(D169:D170),AVERAGE(D169:D171))) -> 0.015855
A171: European Union (27 countries) | B171: From 15 to 19 years | C171: 2002 | D171: 0.01558 | E171: =IF(Table3[[#This Row],[Age Group]]<>B170,AVERAGE(D171:D172),IF(Table3[[#This Row],[Age Group]]<>B172,AVERAGE(D170:D171),AVERAGE(D170:D172))) -> 0.01569333333
A172: European Union (27 countries) | B172: From 15 to 19 years | C172: 2003 | D172: 0.01537 | E172: =IF(Table3[[#This Row],[Age Group]]<>B171,AVERAGE(D172:D173),IF(Table3[[#This Row],[Age Group]]<>B173,AVERAGE(D171:D172),AVERAGE(D171:D173))) -> 0.01540666667
A173: European Union (27 countries) | B173: From 15 to 19 years | C173: 2004 | D173: 0.01527 | E173: =IF(Table3[[#This Row],[Age Group]]<>B172,AVERAGE(D173:D174),IF(Table3[[#This Row],[Age Group]]<>B174,AVERAGE(D172:D173),AVERAGE(D172:D174))) -> 0.01522
A174: European Union (27 countries) | B174: From 15 to 19 years | C174: 2005 | D174: 0.01502 | E174: =IF(Table3[[#This Row],[Age Group]]<>B173,AVERAGE(D174:D175),IF(Table3[[#This Row],[Age Group]]<>B175,AVERAGE(D173:D174),AVERAGE(D173:D175))) -> 0.01510333333
A175: European Union (27 countries) | B175: From 15 to 19 years | C175: 2006 | D175: 0.01502 | E175: =IF(Table3[[#This Row],[Age Group]]<>B174,AVERAGE(D175:D176),IF(Table3[[#This Row],[Age Group]]<>B176,AVERAGE(D174:D175),AVERAGE(D174:D176))) -> 0.01500333333
A176: European Union (27 countries) | B176: From 15 to 19 years | C176: 2007 | D176: 0.01497 | E176: =IF(Table3[[#This Row],[Age Group]]<>B175,AVERAGE(D176:D177),IF(Table3[[#This Row],[Age Group]]<>B177,AVERAGE(D175:D176),AVERAGE(D175:D177))) -> 0.01509666667
A177: European Union (27 countries) | B177: From 15 to 19 years | C177: 2008 | D177: 0.0153 | E177: =IF(Table3[[#This Row],[Age Group]]<>B176,AVERAGE(D177:D178),IF(Table3[[#This Row],[Age Group]]<>B178,AVERAGE(D176:D177),AVERAGE(D176:D178))) -> 0.01501333333
A178: European Union (27 countries) | B178: From 15 to 19 years | C178: 2009 | D178: 0.01477 | E178: =IF(Table3[[#This Row],[Age Group]]<>B177,AVERAGE(D178:D179),IF(Table3[[#This Row],[Age Group]]<>B179,AVERAGE(D177:D178),AVERAGE(D177:D179))) -> 0.01464333333
A179: European Union (27 countries) | B179: From 15 to 19 years | C179: 2010 | D179: 0.01386 | E179: =IF(Table3[[#This Row],[Age Group]]<>B178,AVERAGE(D179:D180),IF(Table3[[#This Row],[Age Group]]<>B180,AVERAGE(D178:D179),AVERAGE(D178:D180))) -> 0.01385
A180: European Union (27 countries) | B180: From 15 to 19 years | C180: 2011 | D180: 0.01292 | E180: =IF(Table3[[#This Row],[Age Group]]<>B179,AVERAGE(D180:D181),IF(Table3[[#This Row],[Age Group]]<>B181,AVERAGE(D179:D180),AVERAGE(D179:D181))) -> 0.01312
A181: European Union (27 countries) | B181: From 15 to 19 years | C181: 2012 | D181: 0.01258 | E181: =IF(Table3[[#This Row],[Age Group]]<>B180,AVERAGE(D181:D182),IF(Table3[[#This Row],[Age Group]]<>B182,AVERAGE(D180:D181),AVERAGE(D180:D182))) -> 0.01239333333
A182: European Union (27 countries) | B182: From 15 to 19 years | C182: 2013 | D182: 0.01168 | E182: =IF(Table3[[#This Row],[Age Group]]<>B181,AVERAGE(D182:D183),IF(Table3[[#This Row],[Age Group]]<>B183,AVERAGE(D181:D182),AVERAGE(D181:D183))) -> 0.01185666667
A183: European Union (27 countries) | B183: From 15 to 19 years | C183: 2014 | D183: 0.01131 | E183: =IF(Table3[[#This Row],[Age Group]]<>B182,AVERAGE(D183:D184),IF(Table3[[#This Row],[Age Group]]<>B184,AVERAGE(D182:D183),AVERAGE(D182:D184))) -> 0.011495
A184: European Union (27 countries) | B184: From 20 to 24 years | C184: 2001 | D184: 0.05731 | E184: =IF(Table3[[#This Row],[Age Group]]<>B183,AVERAGE(D184:D185),IF(Table3[[#This Row],[Age Group]]<>B185,AVERAGE(D183:D184),AVERAGE(D183:D185))) -> 0.05635
A185: European Union (27 countries) | B185: From 20 to 24 years | C185: 2002 | D185: 0.05539 | E185: =IF(Table3[[#This Row],[Age Group]]<>B184,AVERAGE(D185:D186),IF(Table3[[#This Row],[Age Group]]<>B186,AVERAGE(D184:D185),AVERAGE(D184:D186))) -> 0.05568
A186: European Union (27 countries) | B186: From 20 to 24 years | C186: 2003 | D186: 0.05434 | E186: =IF(Table3[[#This Row],[Age Group]]<>B185,AVERAGE(D186:D187),IF(Table3[[#This Row],[Age Group]]<>B187,AVERAGE(D185:D186),AVERAGE(D185:D187))) -> 0.05461
A187: European Union (27 countries) | B187: From 20 to 24 years | C187: 2004 | D187: 0.0541 | E187: =IF(Table3[[#This Row],[Age Group]]<>B186,AVERAGE(D187:D188),IF(Table3[[#This Row],[Age Group]]<>B188,AVERAGE(D186:D187),AVERAGE(D186:D188))) -> 0.05380333333
A188: European Union (27 countries) | B188: From 20 to 24 years | C188: 2005 | D188: 0.05297 | E188: =IF(Table3[[#This Row],[Age Group]]<>B187,AVERAGE(D188:D189),IF(Table3[[#This Row],[Age Group]]<>B189,AVERAGE(D187:D188),AVERAGE(D187:D189))) -> 0.05336333333
A189: European Union (27 countries) | B189: From 20 to 24 years | C189: 2006 | D189: 0.05302 | E189: =IF(Table3[[#This Row],[Age Group]]<>B188,AVERAGE(D189:D190),IF(Table3[[#This Row],[Age Group]]<>B190,AVERAGE(D188:D189),AVERAGE(D188:D190))) -> 0.05295333333
A190: European Union (27 countries) | B190: From 20 to 24 years | C190: 2007 | D190: 0.05287 | E190: =IF(Table3[[#This Row],[Age Group]]<>B189,AVERAGE(D190:D191),IF(Table3[[#This Row],[Age Group]]<>B191,AVERAGE(D189:D190),AVERAGE(D189:D191))) -> 0.05337666667
A191: European Union (27 countries) | B191: From 20 to 24 years | C191: 2008 | D191: 0.05424 | E191: =IF(Table3[[#This Row],[Age Group]]<>B190,AVERAGE(D191:D192),IF(Table3[[#This Row],[Age Group]]<>B192,AVERAGE(D190:D191),AVERAGE(D190:D192))) -> 0.05339
A192: European Union (27 countries) | B192: From 20 to 24 years | C192: 2009 | D192: 0.05306 | E192: =IF(Table3[[#This Row],[Age Group]]<>B191,AVERAGE(D192:D193),IF(Table3[[#This Row],[Age Group]]<>B193,AVERAGE(D191:D192),AVERAGE(D191:D193))) -> 0.05302333333
A193: European Union (27 countries) | B193: From 20 to 24 years | C193: 2010 | D193: 0.05177 | E193: =IF(Table3[[#This Row],[Age Group]]<>B192,AVERAGE(D193:D194),IF(Table3[[#This Row],[Age Group]]<>B194,AVERAGE(D192:D193),AVERAGE(D192:D194))) -> 0.0513
A194: European Union (27 countries) | B194: From 20 to 24 years | C194: 2011 | D194: 0.04907 | E194: =IF(Table3[[#This Row],[Age Group]]<>B193,AVERAGE(D194:D195),IF(Table3[[#This Row],[Age Group]]<>B195,AVERAGE(D193:D194),AVERAGE(D193:D195))) -> 0.04968333333
A195: European Union (27 countries) | B195: From 20 to 24 years | C195: 2012 | D195: 0.04821 | E195: =IF(Table3[[#This Row],[Age Group]]<>B194,AVERAGE(D195:D196),IF(Table3[[#This Row],[Age Group]]<>B196,AVERAGE(D194:D195),AVERAGE(D194:D196))) -> 0.04756
A196: European Union (27 countries) | B196: From 20 to 24 years | C196: 2013 | D196: 0.0454 | E196: =IF(Table3[[#This Row],[Age Group]]<>B195,AVERAGE(D196:D197),IF(Table3[[#This Row],[Age Group]]<>B197,AVERAGE(D195:D196),AVERAGE(D195:D197))) -> 0.04612666667
A197: European Union (27 countries) | B197: From 20 to 24 years | C197: 2014 | D197: 0.04477 | E197: =IF(Table3[[#This Row],[Age Group]]<>B196,AVERAGE(D197:D198),IF(Table3[[#This Row],[Age Group]]<>B198,AVERAGE(D196:D197),AVERAGE(D196:D198))) -> 0.045085
A198: European Union (27 countries) | B198: From 25 to 29 years | C198: 2001 | D198: 0.09257 | E198: =IF(Table3[[#This Row],[Age Group]]<>B197,AVERAGE(D198:D199),IF(Table3[[#This Row],[Age Group]]<>B199,AVERAGE(D197:D198),AVERAGE(D197:D199))) -> 0.092095
A199: European Union (27 countries) | B199: From 25 to 29 years | C199: 2002 | D199: 0.09162 | E199: =IF(Table3[[#This Row],[Age Group]]<>B198,AVERAGE(D199:D200),IF(Table3[[#This Row],[Age Group]]<>B200,AVERAGE(D198:D199),AVERAGE(D198:D200))) -> 0.09199666667
A200: European Union (27 countries) | B200: From 25 to 29 years | C200: 2003 | D200: 0.0918 | E200: =IF(Table3[[#This Row],[Age Group]]<>B199,AVERAGE(D200:D201),IF(Table3[[#This Row],[Age Group]]<>B201,AVERAGE(D199:D200),AVERAGE(D199:D201))) -> 0.09192
... 7361 more rows

Sheet 5.17
A1: GDP and main components - Current prices [nama_gdp_c] | K1: This is a bubble chart. To have the labels to the left and to the right of the vertical axis,
K2: there are two series for each country. One is visible and uses the error bar to create
A3: Last update | B3: 2016-04-05T20:05:19 | K3: the lollipop stick. The other is invisible and has the x value of zero, so it's easy to
A4: Extracted on | B4: 2016-04-11T10:42:21.359 | K4: set the label to the left or to the right of the axis.
A5: Source of data | B5: Eurostat
A7: UNIT | B7: Euro per inhabitant
A8: INDIC_NA | B8: Gross domestic product at market prices
A9: GDP per capita in PPS
A10: Index (EU28 = 100)
A12: Get the data: | B12: http://goo.gl/x8GMhw | G12: Dummy series
D13: Difference | E13: Vertical | F13: Bubble | H13: Bubble
A14: geo\time | B14: 2013 | D14: to EÛ28 | E14: Position /Rank) | F14: Size | G14: X Value | H14: Size
A15: EU28 | B15: 100
A16: EU27 | B16: 100
A17: Euro18 | B17: 108 | K17: GDP PER CAPITA IN PURCHASING POWER PARITY
A18: Euro17 | B18: 108 | K18: Difference to the EU–28 Average
A19: Bosnia / Herz. | B19: 29 | D19: =B19-100 -> -71 | E19: 1 | F19: 3 | G19: 0 | H19: 0.01
A20: Albania | B20: 30 | D20: -70 | E20: 2 | F20: 3 | G20: 0 | H20: 0.01
A21: F Y R Macedonia | B21: 35 | D21: -65 | E21: 3 | F21: 3 | G21: 0 | H21: 0.01
A22: Serbia | B22: 36 | D22: -64 | E22: 4 | F22: 3 | G22: 0 | H22: 0.01
A23: Montenegro | B23: 42 | D23: -58 | E23: 5 | F23: 3 | G23: 0 | H23: 0.01
A24: Bulgaria | B24: 47 | D24: -53 | E24: 6 | F24: 3 | G24: 0 | H24: 0.01
A25: Romania | B25: 54 | D25: -46 | E25: 7 | F25: 3 | G25: 0 | H25: 0.01
A26: Turkey | B26: 55 | D26: -45 | E26: 8 | F26: 3 | G26: 0 | H26: 0.01
A27: Croatia | B27: 61 | D27: -39 | E27: 9 | F27: 3 | G27: 0 | H27: 0.01
A28: Hungary | B28: 67 | D28: -33 | E28: 10 | F28: 3 | G28: 0 | H28: 0.01
A29: Latvia | B29: 67 | D29: -33 | E29: 11 | F29: 3 | G29: 0 | H29: 0.01
A30: Poland | B30: 68 | D30: -32 | E30: 12 | F30: 3 | G30: 0 | H30: 0.01
A31: Estonia | B31: 72 | D31: -28 | E31: 13 | F31: 3 | G31: 0 | H31: 0.01
A32: Lithuania | B32: 74 | D32: -26 | E32: 14 | F32: 3 | G32: 0 | H32: 0.01
A33: Greece | B33: 75 | D33: -25 | E33: 15 | F33: 3 | G33: 0 | H33: 0.01
A34: Portugal | B34: 75 | D34: -25 | E34: 16 | F34: 3 | G34: 0 | H34: 0.01
A35: Slovakia | B35: 76 | D35: -24 | E35: 17 | F35: 3 | G35: 0 | H35: 0.01
A36: Czech Republic | B36: 80 | D36: -20 | E36: 18 | F36: 3 | G36: 0 | H36: 0.01
A37: Slovenia | B37: 83 | D37: -17 | E37: 19 | F37: 3 | G37: 0 | H37: 0.01
A38: Cyprus | B38: 86 | D38: -14 | E38: 20 | F38: 3 | G38: 0 | H38: 0.01
A39: Malta | B39: 87 | D39: -13 | E39: 21 | F39: 3 | G39: 0 | H39: 0.01
A40: Spain | B40: 95 | D40: -5 | E40: 22 | F40: 3 | G40: 0 | H40: 0.01
A41: Italy | B41: 98 | D41: -2 | E41: 23 | F41: 3 | G41: 0 | H41: 0.01
A42: Japan | B42: 106 | D42: 6 | E42: 24 | F42: 3 | G42: 0 | H42: 0.01
A43: United Kingdom | B43: 106 | D43: 6 | E43: 25 | F43: 3 | G43: 0 | H43: 0.01
A44: France | B44: 108 | D44: 8 | E44: 26 | F44: 3 | G44: 0 | H44: 0.01
A45: Finland | B45: 112 | D45: 12 | E45: 27 | F45: 3 | G45: 0 | H45: 0.01
A46: Iceland | B46: 116 | D46: 16 | E46: 28 | F46: 3 | G46: 0 | H46: 0.01
A47: Belgium | B47: 119 | D47: 19 | E47: 29 | F47: 3 | G47: 0 | H47: 0.01
A48: Germany | B48: 124 | D48: 24 | E48: 30 | F48: 3 | G48: 0 | H48: 0.01
A49: Denmark | B49: 125 | D49: 25 | E49: 31 | F49: 3 | G49: 0 | H49: 0.01
A50: Ireland | B50: 126 | D50: 26 | E50: 32 | F50: 3 | G50: 0 | H50: 0.01
A51: Netherlands | B51: 127 | D51: 27 | E51: 33 | F51: 3 | G51: 0 | H51: 0.01
A52: Sweden | B52: 127 | D52: 27 | E52: 34 | F52: 3 | G52: 0 | H52: 0.01 | K52: Source: Eurostat
A53: Austria | B53: 129 | D53: 29 | E53: 35 | F53: 3 | G53: 0 | H53: 0.01
A54: United States | B54: 155 | D54: 55 | E54: 36 | F54: 3 | G54: 0 | H54: 0.01
A55: Switzerland | B55: 158 | D55: 58 | E55: 37 | F55: 3 | G55: 0 | H55: 0.01
A56: Norway | B56: 191 | D56: 91 | E56: 38 | F56: 3 | G56: 0 | H56: 0.01
A57: Luxembourg | B57: 264 | D57: 164 | E57: 39 | F57: 3 | G57: 0 | H57: 0.01
A58: :=not available b=break in time series
A59: :
A60: Short Description: | B60: Gross domestic product (GDP) is a measure for the economic activity. It is defined as the value of all goods and services produced less the value of any goods or services used in their creation. The volume index of GDP per capita in Purchasing Power Standards (PPS) is expressed in relation to the European Union (EU28) average set to equal 100. If the index of a country is higher than 100, this country's level of GDP per head is higher than the EU average and vice versa. Basic figures are expressed in PPS, i.e. a common currency that eliminates the differences in price levels between countries allowing meaningful volume comparisons of GDP between countries. Please note that the index, calculated from PPS figures and expressed with respect to EU28 = 100, is intended for cross-country comparisons rather than for temporal comparisons."

Sheet 5.18
A1: Please note that these Playfair charts use a font (18thCentury) that probably is not installed in your computer. You'll get different results from what you see in the book.
A2: It's a free font, so you can download it and install it.
A4: Unlike standard Excel charts, in Playfair's charts the gridlines are displayed in front of the data-encoding objects, line areas, bars or lines. This means that you can't
A5: Excel gridlines. In this chart, there are several line series to define the horizontal gridlines and at the top a line with error bars displays the vertical gridlines.
A7: This is na area chart, where a white dummy series is superimposed so that we can only see the colored areas between the expor and impor lines.
B10: Base | E10: White | F10: All | G10: Imports | Q10: Vertical
B11: Imports | C11: Exports | E11: dummy series | F11: imports | G11: below | H11: Horizontal gridlines | Q11: Gridlines
A12: 1700 | B12: 70.2 | C12: 32.3 | E12: =MIN(B12:C12) -> 32.3 | F12: =+B12 -> 70.2 | G12: =IF(C12>E12,C12,NA()) ->  | H12: 20 | I12: 40 | J12: 60 | K12: 80 | L12: 100 | M12: 120 | N12: 140 | O12: 160 | P12: 180 | Q12: =IF(MOD(A12,10)=0,200,NA()) -> 200
A13: 1702 | B13: 72.7 | C13: 36.8 | E13: =MIN(B13:C13) -> 36.8 | F13: =+B13 -> 72.7 | G13: =IF(C13>E13,C13,NA()) ->  | H13: 20 | I13: 40 | J13: 60 | K13: 80 | L13: 100 | M13: 120 | N13: 140 | O13: 160 | P13: 180 | Q13: =IF(MOD(A13,10)=0,200,NA()) -> 
A14: 1704 | B14: 73.8 | C14: 39.2 | E14: 39.2 | F14: 73.8 | H14: 20 | I14: 40 | J14: 60 | K14: 80 | L14: 100 | M14: 120 | N14: 140 | O14: 160 | P14: 180
A15: 1706 | B15: 75.7 | C15: 42.5 | E15: 42.5 | F15: 75.7 | H15: 20 | I15: 40 | J15: 60 | K15: 80 | L15: 100 | M15: 120 | N15: 140 | O15: 160 | P15: 180
A16: 1708 | B16: 78.6 | C16: 50.3 | E16: 50.3 | F16: 78.6 | H16: 20 | I16: 40 | J16: 60 | K16: 80 | L16: 100 | M16: 120 | N16: 140 | O16: 160 | P16: 180
A17: 1710 | B17: 81.9 | C17: 59.1 | E17: 59.1 | F17: 81.9 | H17: 20 | I17: 40 | J17: 60 | K17: 80 | L17: 100 | M17: 120 | N17: 140 | O17: 160 | P17: 180 | Q17: 200
A18: 1712 | B18: 83.9 | C18: 68.2 | E18: 68.2 | F18: 83.9 | H18: 20 | I18: 40 | J18: 60 | K18: 80 | L18: 100 | M18: 120 | N18: 140 | O18: 160 | P18: 180
A19: 1714 | B19: 86.1 | C19: 76.6 | E19: 76.6 | F19: 86.1 | H19: 20 | I19: 40 | J19: 60 | K19: 80 | L19: 100 | M19: 120 | N19: 140 | O19: 160 | P19: 180
A20: 1716 | B20: 87.8 | C20: 78.6 | E20: 78.6 | F20: 87.8 | H20: 20 | I20: 40 | J20: 60 | K20: 80 | L20: 100 | M20: 120 | N20: 140 | O20: 160 | P20: 180
A21: 1718 | B21: 91.1 | C21: 77.5 | E21: 77.5 | F21: 91.1 | H21: 20 | I21: 40 | J21: 60 | K21: 80 | L21: 100 | M21: 120 | N21: 140 | O21: 160 | P21: 180
A22: 1720 | B22: 96.9 | C22: 76.6 | E22: 76.6 | F22: 96.9 | H22: 20 | I22: 40 | J22: 60 | K22: 80 | L22: 100 | M22: 120 | N22: 140 | O22: 160 | P22: 180 | Q22: 200
A23: 1722 | B23: 100.2 | C23: 74.6 | E23: 74.6 | F23: 100.2 | H23: 20 | I23: 40 | J23: 60 | K23: 80 | L23: 100 | M23: 120 | N23: 140 | O23: 160 | P23: 180
A24: 1724 | B24: 100.8 | C24: 74 | E24: 74 | F24: 100.8 | H24: 20 | I24: 40 | J24: 60 | K24: 80 | L24: 100 | M24: 120 | N24: 140 | O24: 160 | P24: 180
A25: 1726 | B25: 100.8 | C25: 71.1 | E25: 71.1 | F25: 100.8 | H25: 20 | I25: 40 | J25: 60 | K25: 80 | L25: 100 | M25: 120 | N25: 140 | O25: 160 | P25: 180
A26: 1728 | B26: 98.6 | C26: 67.8 | E26: 67.8 | F26: 98.6 | H26: 20 | I26: 40 | J26: 60 | K26: 80 | L26: 100 | M26: 120 | N26: 140 | O26: 160 | P26: 180
A27: 1730 | B27: 95.6 | C27: 63.6 | E27: 63.6 | F27: 95.6 | H27: 20 | I27: 40 | J27: 60 | K27: 80 | L27: 100 | M27: 120 | N27: 140 | O27: 160 | P27: 180 | Q27: 200
A28: 1732 | B28: 93.6 | C28: 61.3 | E28: 61.3 | F28: 93.6 | H28: 20 | I28: 40 | J28: 60 | K28: 80 | L28: 100 | M28: 120 | N28: 140 | O28: 160 | P28: 180
A29: 1734 | B29: 92 | C29: 61.1 | E29: 61.1 | F29: 92 | H29: 20 | I29: 40 | J29: 60 | K29: 80 | L29: 100 | M29: 120 | N29: 140 | O29: 160 | P29: 180
A30: 1736 | B30: 92.5 | C30: 61.6 | E30: 61.6 | F30: 92.5 | H30: 20 | I30: 40 | J30: 60 | K30: 80 | L30: 100 | M30: 120 | N30: 140 | O30: 160 | P30: 180
A31: 1738 | B31: 91.8 | C31: 62.7 | E31: 62.7 | F31: 91.8 | H31: 20 | I31: 40 | J31: 60 | K31: 80 | L31: 100 | M31: 120 | N31: 140 | O31: 160 | P31: 180
A32: 1740 | B32: 92.5 | C32: 65.1 | E32: 65.1 | F32: 92.5 | H32: 20 | I32: 40 | J32: 60 | K32: 80 | L32: 100 | M32: 120 | N32: 140 | O32: 160 | P32: 180 | Q32: 200
A33: 1742 | B33: 93.1 | C33: 70.4 | E33: 70.4 | F33: 93.1 | H33: 20 | I33: 40 | J33: 60 | K33: 80 | L33: 100 | M33: 120 | N33: 140 | O33: 160 | P33: 180
A34: 1744 | B34: 92 | C34: 74.2 | E34: 74.2 | F34: 92 | H34: 20 | I34: 40 | J34: 60 | K34: 80 | L34: 100 | M34: 120 | N34: 140 | O34: 160 | P34: 180
A35: 1746 | B35: 91.4 | C35: 76 | E35: 76 | F35: 91.4 | H35: 20 | I35: 40 | J35: 60 | K35: 80 | L35: 100 | M35: 120 | N35: 140 | O35: 160 | P35: 180
A36: 1748 | B36: 89.6 | C36: 76.8 | E36: 76.8 | F36: 89.6 | H36: 20 | I36: 40 | J36: 60 | K36: 80 | L36: 100 | M36: 120 | N36: 140 | O36: 160 | P36: 180
A37: 1750 | B37: 89.2 | C37: 77.9 | E37: 77.9 | F37: 89.2 | H37: 20 | I37: 40 | J37: 60 | K37: 80 | L37: 100 | M37: 120 | N37: 140 | O37: 160 | P37: 180 | Q37: 200
A38: 1752 | B38: 84.5 | C38: 80.4 | E38: 80.4 | F38: 84.5 | H38: 20 | I38: 40 | J38: 60 | K38: 80 | L38: 100 | M38: 120 | N38: 140 | O38: 160 | P38: 180
A39: 1754 | B39: 80 | C39: 80.8 | E39: 80 | F39: 80 | G39: 80.8 | H39: 20 | I39: 40 | J39: 60 | K39: 80 | L39: 100 | M39: 120 | N39: 140 | O39: 160 | P39: 180
A40: 1756 | B40: 77.5 | C40: 86.4 | E40: 77.5 | F40: 77.5 | G40: 86.4 | H40: 20 | I40: 40 | J40: 60 | K40: 80 | L40: 100 | M40: 120 | N40: 140 | O40: 160 | P40: 180
A41: 1758 | B41: 76.8 | C41: 96.3 | E41: 76.8 | F41: 76.8 | G41: 96.3 | H41: 20 | I41: 40 | J41: 60 | K41: 80 | L41: 100 | M41: 120 | N41: 140 | O41: 160 | P41: 180
A42: 1760 | B42: 77.3 | C42: 120 | E42: 77.3 | F42: 77.3 | G42: 120 | H42: 20 | I42: 40 | J42: 60 | K42: 80 | L42: 100 | M42: 120 | N42: 140 | O42: 160 | P42: 180 | Q42: 200
A43: 1762 | B43: 77.9 | C43: 133.3 | E43: 77.9 | F43: 77.9 | G43: 133.3 | H43: 20 | I43: 40 | J43: 60 | K43: 80 | L43: 100 | M43: 120 | N43: 140 | O43: 160 | P43: 180
A44: 1764 | B44: 79.7 | C44: 146.6 | E44: 79.7 | F44: 79.7 | G44: 146.6 | H44: 20 | I44: 40 | J44: 60 | K44: 80 | L44: 100 | M44: 120 | N44: 140 | O44: 160 | P44: 180
A45: 1766 | B45: 81.7 | C45: 152 | E45: 81.7 | F45: 81.7 | G45: 152 | H45: 20 | I45: 40 | J45: 60 | K45: 80 | L45: 100 | M45: 120 | N45: 140 | O45: 160 | P45: 180
A46: 1768 | B46: 83.4 | C46: 159 | E46: 83.4 | F46: 83.4 | G46: 159 | H46: 20 | I46: 40 | J46: 60 | K46: 80 | L46: 100 | M46: 120 | N46: 140 | O46: 160 | P46: 180
A47: 1770 | B47: 85.2 | C47: 163.4 | E47: 85.2 | F47: 85.2 | G47: 163.4 | H47: 20 | I47: 40 | J47: 60 | K47: 80 | L47: 100 | M47: 120 | N47: 140 | O47: 160 | P47: 180 | Q47: 200
A48: 1772 | B48: 89.2 | C48: 169 | E48: 89.2 | F48: 89.2 | G48: 169 | H48: 20 | I48: 40 | J48: 60 | K48: 80 | L48: 100 | M48: 120 | N48: 140 | O48: 160 | P48: 180
A49: 1774 | B49: 92.5 | C49: 174.9 | E49: 92.5 | F49: 92.5 | G49: 174.9 | H49: 20 | I49: 40 | J49: 60 | K49: 80 | L49: 100 | M49: 120 | N49: 140 | O49: 160 | P49: 180
A50: 1776 | B50: 92.9 | C50: 180.7 | E50: 92.9 | F50: 92.9 | G50: 180.7 | H50: 20 | I50: 40 | J50: 60 | K50: 80 | L50: 100 | M50: 120 | N50: 140 | O50: 160 | P50: 180
A51: 1778 | B51: 93.8 | C51: 183.4 | E51: 93.8 | F51: 93.8 | G51: 183.4 | H51: 20 | I51: 40 | J51: 60 | K51: 80 | L51: 100 | M51: 120 | N51: 140 | O51: 160 | P51: 180
A52: 1780 | B52: 94.2 | C52: 185.3 | E52: 94.2 | F52: 94.2 | G52: 185.3 | H52: 20 | I52: 40 | J52: 60 | K52: 80 | L52: 100 | M52: 120 | N52: 140 | O52: 160 | P52: 180 | Q52: 200
A53: 1790 | Q53: 200

Sheet 5.19
A1: Please note that these Playfair charts use a font (18thCentury) that probably is not installed in your computer. You'll get different results from what you see in the book.
A2: It's a free font, so you can download it and install it.
A4: Unlike standard Excel charts, in Playfair's charts the gridlines are displayed in front of the data-encoding objects, line areas, bars or lines. This means that you can't
A5: Excel gridlines. In this chart, there are several line series to define the horizontal gridlines and at the top a line with error bars displays the vertical gridlines.
F16: Linear | G16: Adjusted | M16: Vertical gridlines | P16: Year
B17: x-labels | C17: Wheat | D17: Wage | E17: Wage | F17: interpolation | G17: Wage line | H17: Kings | I17: Kings 2 | J17: Gridlines
B18: 1565 | C18: 40.7 | D18: =IF(E18=0,#REF!,E18) -> 4.3 | E18: 4.3 | G18: =+E18 -> 4.3 | H18: 98 | I18: =NA() ->  | J18: 10 | K18: 20 | L18: 30 | O18: =IF(MOD(P18,5)=0,100,"") -> 100 | P18: 1565
C19: 40.7 | D19: =IF(E19=0,D18,E19) -> 4.3 | E19: 0 | F19: =(+E23-E18)/5 -> 0 | G19: =+F19+G18 -> 4.3 | H19: 98 | I19: =NA() ->  | J19: 10 | K19: 20 | L19: 30 | P19: =+P18+1 -> 1566
C20: 40.7 | D20: 4.3 | E20: 0 | F20: =+F19 -> 0 | G20: =+F20+G19 -> 4.3 | H20: 98 | I20: =NA() ->  | J20: 10 | K20: 20 | L20: 30 | P20: =+P19+1 -> 1567
C21: 40.7 | D21: 4.3 | E21: 0 | F21: =+F20 -> 0 | G21: =+F21+G20 -> 4.3 | H21: 98 | I21: =NA() ->  | J21: 10 | K21: 20 | L21: 30 | P21: 1568
C22: 40.7 | D22: 4.3 | E22: 0 | F22: =+F21 -> 0 | G22: =+F22+G21 -> 4.3 | H22: 98 | I22: =NA() ->  | J22: 10 | K22: 20 | L22: 30 | P22: 1569
C23: 44.85 | D23: 4.3 | E23: 4.3 | G23: =+E23 -> 4.3 | H23: 98 | I23: =NA() ->  | J23: 10 | K23: 20 | L23: 30 | O23: =IF(MOD(P23,5)=0,100,"") -> 100 | P23: 1570
C24: 44.85 | D24: 4.3 | E24: 0 | F24: =(+E28-E23)/5 -> 0 | G24: =+F24+G23 -> 4.3 | H24: 98 | I24: =NA() ->  | J24: 10 | K24: 20 | L24: 30 | P24: 1571
C25: 44.85 | D25: 4.3 | E25: 0 | F25: =+F24 -> 0 | G25: =+F25+G24 -> 4.3 | H25: 98 | I25: =NA() ->  | J25: 10 | K25: 20 | L25: 30 | P25: 1572
C26: 44.85 | D26: 4.3 | E26: 0 | F26: =+F25 -> 0 | G26: =+F26+G25 -> 4.3 | H26: 98 | I26: =NA() ->  | J26: 10 | K26: 20 | L26: 30 | P26: 1573
C27: 44.85 | D27: 4.3 | E27: 0 | F27: =+F26 -> 0 | G27: =+F27+G26 -> 4.3 | H27: 98 | I27: =NA() ->  | J27: 10 | K27: 20 | L27: 30 | P27: 1574
C28: 41.94 | D28: 4.3 | E28: 4.3 | G28: =+E28 -> 4.3 | H28: 98 | I28: =NA() ->  | J28: 10 | K28: 20 | L28: 30 | O28: 100 | P28: 1575
C29: 41.94 | D29: 4.3 | E29: 0 | F29: =(+E33-E28)/5 -> 0.06 | G29: =+F29+G28 -> 4.36 | H29: 98 | I29: =NA() ->  | J29: 10 | K29: 20 | L29: 30 | P29: 1576
C30: 41.94 | D30: 4.3 | E30: 0 | F30: =+F29 -> 0.06 | G30: =+F30+G29 -> 4.42 | H30: 98 | I30: =NA() ->  | J30: 10 | K30: 20 | L30: 30 | P30: 1577
C31: 41.94 | D31: 4.3 | E31: 0 | F31: =+F30 -> 0.06 | G31: =+F31+G30 -> 4.48 | H31: 98 | I31: =NA() ->  | J31: 10 | K31: 20 | L31: 30 | P31: 1578
C32: 41.94 | D32: 4.3 | E32: 0 | F32: =+F31 -> 0.06 | G32: =+F32+G31 -> 4.54 | H32: 98 | I32: =NA() ->  | J32: 10 | K32: 20 | L32: 30 | P32: 1579
B33: 80 | C33: 48.55 | D33: 4.6 | E33: 4.6 | G33: =+E33 -> 4.6 | H33: 98 | I33: =NA() ->  | J33: 10 | K33: 20 | L33: 30 | O33: 100 | P33: 1580
C34: 48.55 | D34: 4.6 | E34: 0 | F34: =(+E38-E33)/5 -> 0 | G34: =+F34+G33 -> 4.6 | H34: 98 | I34: =NA() ->  | J34: 10 | K34: 20 | L34: 30 | P34: 1581
C35: 48.55 | D35: 4.6 | E35: 0 | F35: =+F34 -> 0 | G35: =+F35+G34 -> 4.6 | H35: 98 | I35: =NA() ->  | J35: 10 | K35: 20 | L35: 30 | P35: 1582
C36: 48.55 | D36: 4.6 | E36: 0 | F36: =+F35 -> 0 | G36: =+F36+G35 -> 4.6 | H36: 98 | I36: =NA() ->  | J36: 10 | K36: 20 | L36: 30 | P36: 1583
C37: 48.55 | D37: 4.6 | E37: 0 | F37: =+F36 -> 0 | G37: =+F37+G36 -> 4.6 | H37: 98 | I37: =NA() ->  | J37: 10 | K37: 20 | L37: 30 | P37: 1584
C38: 41.23 | D38: 4.6 | E38: 4.6 | G38: =+E38 -> 4.6 | H38: 98 | I38: =NA() ->  | J38: 10 | K38: 20 | L38: 30 | O38: 100 | P38: 1585
C39: 41.23 | D39: 4.6 | E39: 0 | F39: =(+E43-E38)/5 -> 0.08 | G39: =+F39+G38 -> 4.68 | H39: 98 | I39: =NA() ->  | J39: 10 | K39: 20 | L39: 30 | P39: 1586
C40: 41.23 | D40: 4.6 | E40: 0 | F40: =+F39 -> 0.08 | G40: =+F40+G39 -> 4.76 | H40: 98 | I40: =NA() ->  | J40: 10 | K40: 20 | L40: 30 | P40: 1587
C41: 41.23 | D41: 4.6 | E41: 0 | F41: =+F40 -> 0.08 | G41: =+F41+G40 -> 4.84 | H41: 98 | I41: =NA() ->  | J41: 10 | K41: 20 | L41: 30 | P41: 1588
C42: 41.23 | D42: 4.6 | E42: 0 | F42: =+F41 -> 0.08 | G42: =+F42+G41 -> 4.92 | H42: 98 | I42: =NA() ->  | J42: 10 | K42: 20 | L42: 30 | P42: 1589
B43: 90 | C43: 46.34 | D43: 5 | E43: 5 | G43: =+E43 -> 5 | H43: 98 | I43: =NA() ->  | J43: 10 | K43: 20 | L43: 30 | O43: 100 | P43: 1590
C44: 46.34 | D44: 5 | E44: 0 | F44: =(+E48-E43)/5 -> 0 | G44: =+F44+G43 -> 5 | H44: 98 | I44: =NA() ->  | J44: 10 | K44: 20 | L44: 30 | P44: 1591
C45: 46.34 | D45: 5 | E45: 0 | F45: =+F44 -> 0 | G45: =+F45+G44 -> 5 | H45: 98 | I45: =NA() ->  | J45: 10 | K45: 20 | L45: 30 | P45: 1592
C46: 46.34 | D46: 5 | E46: 0 | F46: =+F45 -> 0 | G46: =+F46+G45 -> 5 | H46: 98 | I46: =NA() ->  | J46: 10 | K46: 20 | L46: 30 | P46: 1593
C47: 46.34 | D47: 5 | E47: 0 | F47: =+F46 -> 0 | G47: =+F47+G46 -> 5 | H47: 98 | I47: =NA() ->  | J47: 10 | K47: 20 | L47: 30 | P47: 1594
C48: 64.14 | D48: 5 | E48: 5 | G48: =+E48 -> 5 | H48: 98 | I48: =NA() ->  | J48: 10 | K48: 20 | L48: 30 | O48: 100 | P48: 1595
C49: 64.14 | D49: 5 | E49: 0 | F49: =(+E53-E48)/5 -> 0 | G49: =+F49+G48 -> 5 | H49: 98 | I49: =NA() ->  | J49: 10 | K49: 20 | L49: 30 | P49: 1596
C50: 64.14 | D50: 5 | E50: 0 | F50: =+F49 -> 0 | G50: =+F50+G49 -> 5 | H50: 98 | I50: =NA() ->  | J50: 10 | K50: 20 | L50: 30 | P50: 1597
C51: 64.14 | D51: 5 | E51: 0 | F51: =+F50 -> 0 | G51: =+F51+G50 -> 5 | H51: 98 | I51: =NA() ->  | J51: 10 | K51: 20 | L51: 30 | P51: 1598
C52: 64.14 | D52: 5 | E52: 0 | F52: =+F51 -> 0 | G52: =+F52+G51 -> 5 | H52: 98 | I52: =NA() ->  | J52: 10 | K52: 20 | L52: 30 | P52: 1599
B53: 1600 | C53: 27.32 | D53: 5 | E53: 5 | G53: =+E53 -> 5 | H53: 98 | I53: =NA() ->  | J53: 10 | K53: 20 | L53: 30 | M53: 100 | O53: 100 | P53: 1600
C54: 27.32 | D54: 5 | E54: 0 | F54: =(+E58-E53)/5 -> 0.04 | G54: =+F54+G53 -> 5.04 | H54: 98 | I54: =NA() ->  | J54: 10 | K54: 20 | L54: 30 | P54: 1601
C55: 27.32 | D55: 5 | E55: 0 | F55: =+F54 -> 0.04 | G55: =+F55+G54 -> 5.08 | H55: 98 | I55: =NA() ->  | J55: 10 | K55: 20 | L55: 30 | P55: 1602
C56: 27.32 | D56: 5 | E56: 0 | F56: =+F55 -> 0.04 | G56: =+F56+G55 -> 5.12 | H56: 95 | I56: =NA() ->  | J56: 10 | K56: 20 | L56: 30 | P56: 1603
C57: 27.32 | D57: 5 | E57: 0 | F57: =+F56 -> 0.04 | G57: =+F57+G56 -> 5.16 | H57: 95 | I57: =NA() ->  | J57: 10 | K57: 20 | L57: 30 | P57: 1604
C58: 33.45 | D58: 5.2 | E58: 5.2 | G58: =+E58 -> 5.2 | H58: 95 | I58: =NA() ->  | J58: 10 | K58: 20 | L58: 30 | O58: 100 | P58: 1605
C59: 33.45 | D59: 5.2 | E59: 0 | F59: =(+E63-E58)/5 -> -0.02 | G59: =+F59+G58 -> 5.18 | H59: 95 | I59: =NA() ->  | J59: 10 | K59: 20 | L59: 30 | P59: 1606
C60: 33.45 | D60: 5.2 | E60: 0 | F60: =+F59 -> -0.02 | G60: =+F60+G59 -> 5.16 | H60: 95 | I60: =NA() ->  | J60: 10 | K60: 20 | L60: 30 | P60: 1607
C61: 33.45 | D61: 5.2 | E61: 0 | F61: =+F60 -> -0.02 | G61: =+F61+G60 -> 5.14 | H61: 95 | I61: =NA() ->  | J61: 10 | K61: 20 | L61: 30 | P61: 1608
C62: 33.45 | D62: 5.2 | E62: 0 | F62: =+F61 -> -0.02 | G62: =+F62+G61 -> 5.12 | H62: 95 | I62: =NA() ->  | J62: 10 | K62: 20 | L62: 30 | P62: 1609
B63: 10 | C63: 32.57 | D63: 5.1 | E63: 5.1 | G63: =+E63 -> 5.1 | H63: 95 | I63: =NA() ->  | J63: 10 | K63: 20 | L63: 30 | O63: =IF(MOD(P63,5)=0,100,"") -> 100 | P63: 1610
C64: 32.57 | D64: 5.1 | E64: 0 | F64: =(+E68-E63)/5 -> 0.06 | G64: =+F64+G63 -> 5.16 | H64: 95 | I64: =NA() ->  | J64: 10 | K64: 20 | L64: 30 | P64: 1611
C65: 32.57 | D65: 5.1 | E65: 0 | F65: =+F64 -> 0.06 | G65: =+F65+G64 -> 5.22 | H65: 95 | I65: =NA() ->  | J65: 10 | K65: 20 | L65: 30 | P65: 1612
C66: 32.57 | D66: 5.1 | E66: 0 | F66: =+F65 -> 0.06 | G66: =+F66+G65 -> 5.28 | H66: 95 | I66: =NA() ->  | J66: 10 | K66: 20 | L66: 30 | P66: 1613
C67: 32.57 | D67: 5.1 | E67: 0 | F67: =+F66 -> 0.06 | G67: =+F67+G66 -> 5.34 | H67: 95 | I67: =NA() ->  | J67: 10 | K67: 20 | L67: 30 | P67: 1614
C68: 33.36 | D68: 5.4 | E68: 5.4 | G68: =+E68 -> 5.4 | H68: 95 | I68: =NA() ->  | J68: 10 | K68: 20 | L68: 30 | O68: =IF(MOD(P68,5)=0,100,"") -> 100 | P68: 1615
C69: 33.36 | D69: 5.4 | E69: 0 | F69: =(+E73-E68)/5 -> 0.02 | G69: =+F69+G68 -> 5.42 | H69: 95 | I69: =NA() ->  | J69: 10 | K69: 20 | L69: 30 | P69: 1616
C70: 33.36 | D70: 5.4 | E70: 0 | F70: =+F69 -> 0.02 | G70: =+F70+G69 -> 5.44 | H70: 95 | I70: =NA() ->  | J70: 10 | K70: 20 | L70: 30 | P70: 1617
C71: 33.36 | D71: 5.4 | E71: 0 | F71: =+F70 -> 0.02 | G71: =+F71+G70 -> 5.46 | H71: 95 | I71: =NA() ->  | J71: 10 | K71: 20 | L71: 30 | P71: 1618
C72: 33.36 | D72: 5.4 | E72: 0 | F72: =+F71 -> 0.02 | G72: =+F72+G71 -> 5.48 | H72: 95 | I72: =NA() ->  | J72: 10 | K72: 20 | L72: 30 | P72: 1619
B73: 20 | C73: 35.29 | D73: 5.5 | E73: 5.5 | G73: =+E73 -> 5.5 | H73: 95 | I73: =NA() ->  | J73: 10 | K73: 20 | L73: 30 | O73: 100 | P73: 1620
C74: 35.29 | D74: 5.5 | E74: 0 | F74: =(+E78-E73)/5 -> -0.02 | G74: =+F74+G73 -> 5.48 | H74: 95 | I74: =NA() ->  | J74: 10 | K74: 20 | L74: 30 | P74: 1621
C75: 35.29 | D75: 5.5 | E75: 0 | F75: =+F74 -> -0.02 | G75: =+F75+G74 -> 5.46 | H75: 95 | I75: =NA() ->  | J75: 10 | K75: 20 | L75: 30 | P75: 1622
C76: 35.29 | D76: 5.5 | E76: 0 | F76: =+F75 -> -0.02 | G76: =+F76+G75 -> 5.44 | H76: 95 | I76: =NA() ->  | J76: 10 | K76: 20 | L76: 30 | P76: 1623
C77: 35.29 | D77: 5.5 | E77: 0 | F77: =+F76 -> -0.02 | G77: =+F77+G76 -> 5.42 | H77: 95 | I77: =NA() ->  | J77: 10 | K77: 20 | L77: 30 | P77: 1624
C78: 33.1 | D78: 5.4 | E78: 5.4 | G78: =+E78 -> 5.4 | H78: 95 | I78: =NA() ->  | J78: 10 | K78: 20 | L78: 30 | O78: 100 | P78: 1625
C79: 33.1 | D79: 5.4 | E79: 0 | F79: =(+E83-E78)/5 -> 0.04 | G79: =+F79+G78 -> 5.44 | H79: 95 | I79: =NA() ->  | J79: 10 | K79: 20 | L79: 30 | P79: 1626
C80: 33.1 | D80: 5.4 | E80: 0 | F80: =+F79 -> 0.04 | G80: =+F80+G79 -> 5.48 | H80: 95 | I80: =NA() ->  | J80: 10 | K80: 20 | L80: 30 | P80: 1627
C81: 33.1 | D81: 5.4 | E81: 0 | F81: =+F80 -> 0.04 | G81: =+F81+G80 -> 5.52 | H81: 98 | I81: =NA() ->  | J81: 10 | K81: 20 | L81: 30 | P81: 1628
C82: 33.1 | D82: =IF(E82=0,D81,E82) -> 5.4 | E82: 0 | F82: =+F81 -> 0.04 | G82: =+F82+G81 -> 5.56 | H82: 98 | I82: =NA() ->  | J82: 10 | K82: 20 | L82: 30 | P82: 1629
B83: 30 | C83: 45.18 | D83: 5.6 | E83: 5.6 | G83: =+E83 -> 5.6 | H83: 98 | I83: =NA() ->  | J83: 10 | K83: 20 | L83: 30 | O83: =IF(MOD(P83,5)=0,100,"") -> 100 | P83: 1630
C84: 45.18 | D84: 5.6 | E84: 0 | F84: =(+E88-E83)/5 -> 0 | G84: =+F84+G83 -> 5.6 | H84: 98 | I84: =NA() ->  | J84: 10 | K84: 20 | L84: 30 | P84: =+P83+1 -> 1631
C85: 45.18 | D85: 5.6 | E85: 0 | F85: =+F84 -> 0 | G85: =+F85+G84 -> 5.6 | H85: 98 | I85: =NA() ->  | J85: 10 | K85: 20 | L85: 30 | P85: 1632
C86: 45.18 | D86: 5.6 | E86: 0 | F86: =+F85 -> 0 | G86: =+F86+G85 -> 5.6 | H86: 98 | I86: =NA() ->  | J86: 10 | K86: 20 | L86: 30 | P86: 1633
C87: 45.18 | D87: 5.6 | E87: 0 | F87: =+F86 -> 0 | G87: =+F87+G86 -> 5.6 | H87: 98 | I87: =NA() ->  | J87: 10 | K87: 20 | L87: 30 | P87: 1634
C88: 33.1 | D88: 5.6 | E88: 5.6 | G88: =+E88 -> 5.6 | H88: 98 | I88: =NA() ->  | J88: 10 | K88: 20 | L88: 30 | O88: 100 | P88: 1635
C89: 33.1 | D89: 5.6 | E89: 0 | F89: =(+E93-E88)/5 -> 0 | G89: =+F89+G88 -> 5.6 | H89: 98 | I89: =NA() ->  | J89: 10 | K89: 20 | L89: 30 | P89: 1636
C90: 33.1 | D90: 5.6 | E90: 0 | F90: =+F89 -> 0 | G90: =+F90+G89 -> 5.6 | H90: 98 | I90: =NA() ->  | J90: 10 | K90: 20 | L90: 30 | P90: 1637
C91: 33.1 | D91: 5.6 | E91: 0 | F91: =+F90 -> 0 | G91: =+F91+G90 -> 5.6 | H91: 98 | I91: =NA() ->  | J91: 10 | K91: 20 | L91: 30 | P91: 1638
C92: 33.1 | D92: 5.6 | E92: 0 | F92: =+F91 -> 0 | G92: =+F92+G91 -> 5.6 | H92: 98 | I92: =NA() ->  | J92: 10 | K92: 20 | L92: 30 | P92: 1639
B93: 40 | C93: 39.32 | D93: 5.6 | E93: 5.6 | G93: =+E93 -> 5.6 | H93: 98 | I93: =NA() ->  | J93: 10 | K93: 20 | L93: 30 | O93: 100 | P93: 1640
C94: 39.32 | D94: 5.6 | E94: 0 | F94: =(+E98-E93)/5 -> 0 | G94: =+F94+G93 -> 5.6 | H94: 98 | I94: =NA() ->  | J94: 10 | K94: 20 | L94: 30 | P94: 1641
C95: 39.32 | D95: 5.6 | E95: 0 | F95: =+F94 -> 0 | G95: =+F95+G94 -> 5.6 | H95: 98 | I95: =NA() ->  | J95: 10 | K95: 20 | L95: 30 | P95: 1642
C96: 39.32 | D96: 5.6 | E96: 0 | F96: =+F95 -> 0 | G96: =+F96+G95 -> 5.6 | H96: 98 | I96: =NA() ->  | J96: 10 | K96: 20 | L96: 30 | P96: 1643
C97: 39.32 | D97: 5.6 | E97: 0 | F97: =+F96 -> 0 | G97: =+F97+G96 -> 5.6 | H97: 98 | I97: =NA() ->  | J97: 10 | K97: 20 | L97: 30 | P97: 1644
C98: 52.98 | D98: 5.6 | E98: 5.6 | G98: =+E98 -> 5.6 | H98: 98 | I98: =NA() ->  | J98: 10 | K98: 20 | L98: 30 | O98: 100 | P98: 1645
C99: 52.98 | D99: 5.6 | E99: 0 | F99: =(+E103-E98)/5 -> 0.12 | G99: =+F99+G98 -> 5.72 | H99: 98 | I99: =NA() ->  | J99: 10 | K99: 20 | L99: 30 | P99: 1646
C100: 52.98 | D100: 5.6 | E100: 0 | F100: =+F99 -> 0.12 | G100: =+F100+G99 -> 5.84 | H100: 98 | I100: =NA() ->  | J100: 10 | K100: 20 | L100: 30 | P100: 1647
C101: 52.98 | D101: 5.6 | E101: 0 | F101: =+F100 -> 0.12 | G101: =+F101+G100 -> 5.96 | H101: 98 | I101: =NA() ->  | J101: 10 | K101: 20 | L101: 30 | P101: 1648
C102: 52.98 | D102: 5.6 | E102: 0 | F102: =+F101 -> 0.12 | G102: =+F102+G101 -> 6.08 | H102: 98 | I102: =NA() ->  | J102: 10 | K102: 20 | L102: 30 | P102: 1649
B103: 50 | C103: 41.59 | D103: 6.2 | E103: 6.2 | G103: =+E103 -> 6.2 | H103: 98 | I103: =NA() ->  | J103: 10 | K103: 20 | L103: 30 | M103: 100 | O103: 100 | P103: 1650
C104: 41.59 | D104: 6.2 | E104: 0 | F104: =(+E108-E103)/5 -> 0.06 | G104: =+F104+G103 -> 6.26 | H104: 98 | I104: =NA() ->  | J104: 10 | K104: 20 | L104: 30 | P104: 1651
C105: 41.59 | D105: 6.2 | E105: 0 | F105: =+F104 -> 0.06 | G105: =+F105+G104 -> 6.32 | H105: 98 | I105: =NA() ->  | J105: 10 | K105: 20 | L105: 30 | P105: 1652
C106: 41.59 | D106: 6.2 | E106: 0 | F106: =+F105 -> 0.06 | G106: =+F106+G105 -> 6.38 | H106: 98 | I106: =NA() ->  | J106: 10 | K106: 20 | L106: 30 | P106: 1653
C107: 41.59 | D107: 6.2 | E107: 0 | F107: =+F106 -> 0.06 | G107: =+F107+G106 -> 6.44 | H107: 98 | I107: =NA() ->  | J107: 10 | K107: 20 | L107: 30 | P107: 1654
C108: 40.72 | D108: 6.5 | E108: 6.5 | G108: =+E108 -> 6.5 | H108: 98 | I108: =NA() ->  | J108: 10 | K108: 20 | L108: 30 | O108: 100 | P108: 1655
C109: 40.72 | D109: 6.5 | E109: 0 | F109: =(+E113-E108)/5 -> -0.04 | G109: =+F109+G108 -> 6.46 | H109: 98 | I109: =NA() ->  | J109: 10 | K109: 20 | L109: 30 | P109: 1656
C110: 40.72 | D110: 6.5 | E110: 0 | F110: =+F109 -> -0.04 | G110: =+F110+G109 -> 6.42 | H110: 98 | I110: =NA() ->  | J110: 10 | K110: 20 | L110: 30 | P110: 1657
C111: 40.72 | D111: 6.5 | E111: 0 | F111: =+F110 -> -0.04 | G111: =+F111+G110 -> 6.38 | H111: 98 | I111: =NA() ->  | J111: 10 | K111: 20 | L111: 30 | P111: 1658
C112: 40.72 | D112: 6.5 | E112: 0 | F112: =+F111 -> -0.04 | G112: =+F112+G111 -> 6.34 | H112: 98 | I112: =NA() ->  | J112: 10 | K112: 20 | L112: 30 | P112: 1659
B113: 60 | C113: 46.23 | D113: 6.3 | E113: 6.3 | G113: =+E113 -> 6.3 | H113: 98 | I113: =NA() ->  | J113: 10 | K113: 20 | L113: 30 | O113: 100 | P113: 1660
C114: 46.23 | D114: 6.3 | E114: 0 | F114: =(+E118-E113)/5 -> 0.08 | G114: =+F114+G113 -> 6.38 | H114: 98 | I114: =NA() ->  | J114: 10 | K114: 20 | L114: 30 | P114: 1661
C115: 46.23 | D115: 6.3 | E115: 0 | F115: =+F114 -> 0.08 | G115: =+F115+G114 -> 6.46 | H115: 98 | I115: =NA() ->  | J115: 10 | K115: 20 | L115: 30 | P115: 1662
C116: 46.23 | D116: 6.3 | E116: 0 | F116: =+F115 -> 0.08 | G116: =+F116+G115 -> 6.54 | H116: 98 | I116: =NA() ->  | J116: 10 | K116: 20 | L116: 30 | P116: 1663
C117: 46.23 | D117: 6.3 | E117: 0 | F117: =+F116 -> 0.08 | G117: =+F117+G116 -> 6.62 | H117: 98 | I117: =NA() ->  | J117: 10 | K117: 20 | L117: 30 | P117: 1664
C118: 31.61 | D118: 6.7 | E118: 6.7 | G118: =+E118 -> 6.7 | H118: 98 | I118: =NA() ->  | J118: 10 | K118: 20 | L118: 30 | O118: 100 | P118: 1665
C119: 31.61 | D119: 6.7 | E119: 0 | F119: =(+E123-E118)/5 -> 0 | G119: =+F119+G118 -> 6.7 | H119: 98 | I119: =NA() ->  | J119: 10 | K119: 20 | L119: 30 | P119: 1666
C120: 31.61 | D120: 6.7 | E120: 0 | F120: =+F119 -> 0 | G120: =+F120+G119 -> 6.7 | H120: 98 | I120: =NA() ->  | J120: 10 | K120: 20 | L120: 30 | P120: 1667
C121: 31.61 | D121: 6.7 | E121: 0 | F121: =+F120 -> 0 | G121: =+F121+G120 -> 6.7 | H121: 98 | I121: =NA() ->  | J121: 10 | K121: 20 | L121: 30 | P121: 1668
C122: 31.61 | D122: 6.7 | E122: 0 | F122: =+F121 -> 0 | G122: =+F122+G121 -> 6.7 | H122: 98 | I122: =NA() ->  | J122: 10 | K122: 20 | L122: 30 | P122: 1669
B123: 70 | C123: 38.44 | D123: 6.7 | E123: 6.7 | G123: =+E123 -> 6.7 | H123: 98 | I123: =NA() ->  | J123: 10 | K123: 20 | L123: 30 | O123: 100 | P123: 1670
C124: 38.44 | D124: 6.7 | E124: 0 | F124: =(+E128-E123)/5 -> 0.06 | G124: =+F124+G123 -> 6.76 | H124: 98 | I124: =NA() ->  | J124: 10 | K124: 20 | L124: 30 | P124: 1671
C125: 38.44 | D125: 6.7 | E125: 0 | F125: =+F124 -> 0.06 | G125: =+F125+G124 -> 6.82 | H125: 98 | I125: =NA() ->  | J125: 10 | K125: 20 | L125: 30 | P125: 1672
C126: 38.44 | D126: 6.7 | E126: 0 | F126: =+F125 -> 0.06 | G126: =+F126+G125 -> 6.88 | H126: 98 | I126: =NA() ->  | J126: 10 | K126: 20 | L126: 30 | P126: 1673
C127: 38.44 | D127: 6.7 | E127: 0 | F127: =+F126 -> 0.06 | G127: =+F127+G126 -> 6.94 | H127: 98 | I127: =NA() ->  | J127: 10 | K127: 20 | L127: 30 | P127: 1674
C128: 42.21 | D128: 7 | E128: 7 | G128: =+E128 -> 7 | H128: 98 | I128: =NA() ->  | J128: 10 | K128: 20 | L128: 30 | O128: 100 | P128: 1675
C129: 42.21 | D129: 7 | E129: 0 | F129: =(+E133-E128)/5 -> 0.02 | G129: =+F129+G128 -> 7.02 | H129: 98 | I129: =NA() ->  | J129: 10 | K129: 20 | L129: 30 | P129: 1676
C130: 42.21 | D130: 7 | E130: 0 | F130: =+F129 -> 0.02 | G130: =+F130+G129 -> 7.04 | H130: 98 | I130: =NA() ->  | J130: 10 | K130: 20 | L130: 30 | P130: 1677
C131: 42.21 | D131: 7 | E131: 0 | F131: =+F130 -> 0.02 | G131: =+F131+G130 -> 7.06 | H131: 98 | I131: =NA() ->  | J131: 10 | K131: 20 | L131: 30 | P131: 1678
C132: 42.21 | D132: 7 | E132: 0 | F132: =+F131 -> 0.02 | G132: =+F132+G131 -> 7.08 | H132: 98 | I132: =NA() ->  | J132: 10 | K132: 20 | L132: 30 | P132: 1679
B133: 80 | C133: 35.2 | D133: 7.1 | E133: 7.1 | G133: =+E133 -> 7.1 | H133: 98 | I133: =NA() ->  | J133: 10 | K133: 20 | L133: 30 | O133: 100 | P133: 1680
C134: 35.2 | D134: 7.1 | E134: 0 | F134: =(+E138-E133)/5 -> 0.12 | G134: =+F134+G133 -> 7.22 | H134: 98 | I134: =NA() ->  | J134: 10 | K134: 20 | L134: 30 | P134: 1681
C135: 35.2 | D135: 7.1 | E135: 0 | F135: =+F134 -> 0.12 | G135: =+F135+G134 -> 7.34 | H135: 98 | I135: =NA() ->  | J135: 10 | K135: 20 | L135: 30 | P135: 1682
C136: 35.2 | D136: 7.1 | E136: 0 | F136: =+F135 -> 0.12 | G136: =+F136+G135 -> 7.46 | H136: 95 | I136: =NA() ->  | J136: 10 | K136: 20 | L136: 30 | P136: 1683
C137: 35.2 | D137: 7.1 | E137: 0 | F137: =+F136 -> 0.12 | G137: =+F137+G136 -> 7.58 | H137: 95 | I137: =NA() ->  | J137: 10 | K137: 20 | L137: 30 | P137: 1684
C138: 27.85 | D138: 7.7 | E138: 7.7 | G138: =+E138 -> 7.7 | H138: 95 | I138: =NA() ->  | J138: 10 | K138: 20 | L138: 30 | O138: =IF(MOD(P138,5)=0,100,"") -> 100 | P138: 1685
C139: 27.85 | D139: 7.7 | E139: 0 | F139: =(+E143-E138)/5 -> 0 | G139: =+F139+G138 -> 7.7 | H139: 95 | I139: =NA() ->  | J139: 10 | K139: 20 | L139: 30 | P139: 1686
C140: 27.85 | D140: 7.7 | E140: 0 | F140: =+F139 -> 0 | G140: =+F140+G139 -> 7.7 | H140: 95 | I140: =NA() ->  | J140: 10 | K140: 20 | L140: 30 | P140: 1687
C141: 27.85 | D141: 7.7 | E141: 0 | F141: =+F140 -> 0 | G141: =+F141+G140 -> 7.7 | H141: 95 | I141: =NA() ->  | J141: 10 | K141: 20 | L141: 30 | P141: 1688
C142: 27.85 | D142: 7.7 | E142: 0 | F142: =+F141 -> 0 | G142: =+F142+G141 -> 7.7 | H142: 98 | I142: =NA() ->  | J142: 10 | K142: 20 | L142: 30 | P142: 1689
B143: 90 | C143: 40.28 | D143: 7.7 | E143: 7.7 | G143: =+E143 -> 7.7 | H143: 98 | I143: =NA() ->  | J143: 10 | K143: 20 | L143: 30 | O143: =IF(MOD(P143,5)=0,100,"") -> 100 | P143: 1690
C144: 40.28 | D144: 7.7 | E144: 0 | F144: =(+E148-E143)/5 -> 0.12 | G144: =+F144+G143 -> 7.82 | H144: 98 | I144: =NA() ->  | J144: 10 | K144: 20 | L144: 30 | P144: 1691
C145: 40.28 | D145: 7.7 | E145: 0 | F145: =+F144 -> 0.12 | G145: =+F145+G144 -> 7.94 | H145: 98 | I145: =NA() ->  | J145: 10 | K145: 20 | L145: 30 | P145: 1692
C146: 40.28 | D146: =IF(E146=0,D145,E146) -> 7.7 | E146: 0 | F146: =+F145 -> 0.12 | G146: =+F146+G145 -> 8.06 | H146: 98 | I146: =NA() ->  | J146: 10 | K146: 20 | L146: 30 | P146: 1693
C147: 40.28 | D147: 7.7 | E147: 0 | F147: =+F146 -> 0.12 | G147: =+F147+G146 -> 8.18 | H147: 98 | I147: =NA() ->  | J147: 10 | K147: 20 | L147: 30 | P147: 1694
C148: 50.35 | D148: 8.3 | E148: 8.3 | G148: =+E148 -> 8.3 | H148: 98 | I148: =NA() ->  | J148: 10 | K148: 20 | L148: 30 | O148: 100 | P148: =+P147+1 -> 1695
C149: 50.35 | D149: 8.3 | E149: 0 | F149: =(+E153-E148)/5 -> 0.12 | G149: =+F149+G148 -> 8.42 | H149: 98 | I149: =NA() ->  | J149: 10 | K149: 20 | L149: 30 | P149: 1696
C150: 50.35 | D150: 8.3 | E150: 0 | F150: =+F149 -> 0.12 | G150: =+F150+G149 -> 8.54 | H150: 98 | I150: =NA() ->  | J150: 10 | K150: 20 | L150: 30 | P150: 1697
C151: 50.35 | D151: 8.3 | E151: 0 | F151: =+F150 -> 0.12 | G151: =+F151+G150 -> 8.66 | H151: 98 | I151: =NA() ->  | J151: 10 | K151: 20 | L151: 30 | P151: 1698
C152: 50.35 | D152: 8.3 | E152: 0 | F152: =+F151 -> 0.12 | G152: =+F152+G151 -> 8.78 | H152: 98 | I152: =NA() ->  | J152: 10 | K152: 20 | L152: 30 | P152: 1699
B153: 1700 | C153: 30.21 | D153: 8.9 | E153: 8.9 | G153: =+E153 -> 8.9 | H153: 98 | I153: =NA() ->  | J153: 10 | K153: 20 | L153: 30 | M153: 100 | O153: 100 | P153: 1700
C154: 30.21 | D154: 8.9 | E154: 0 | F154: =(+E158-E153)/5 -> 0.16 | G154: =+F154+G153 -> 9.06 | H154: 98 | I154: =NA() ->  | J154: 10 | K154: 20 | L154: 30 | P154: 1701
C155: 30.21 | D155: 8.9 | E155: 0 | F155: =+F154 -> 0.16 | G155: =+F155+G154 -> 9.22 | H155: 98 | I155: =NA() ->  | J155: 10 | K155: 20 | L155: 30 | P155: 1702
C156: 30.21 | D156: 8.9 | E156: 0 | F156: =+F155 -> 0.16 | G156: =+F156+G155 -> 9.38 | H156: 95 | I156: =NA() ->  | J156: 10 | K156: 20 | L156: 30 | P156: 1703
C157: 30.21 | D157: 8.9 | E157: 0 | F157: =+F156 -> 0.16 | G157: =+F157+G156 -> 9.54 | H157: 95 | I157: =NA() ->  | J157: 10 | K157: 20 | L157: 30 | P157: 1704
C158: 32.57 | D158: 9.7 | E158: 9.7 | G158: =+E158 -> 9.7 | H158: 95 | I158: =NA() ->  | J158: 10 | K158: 20 | L158: 30 | O158: 100 | P158: 1705
C159: 32.57 | D159: 9.7 | E159: 0 | F159: =(+E163-E158)/5 -> 0.16 | G159: =+F159+G158 -> 9.86 | H159: 95 | I159: =NA() ->  | J159: 10 | K159: 20 | L159: 30 | P159: 1706
C160: 32.57 | D160: 9.7 | E160: 0 | F160: =+F159 -> 0.16 | G160: =+F160+G159 -> 10.02 | H160: 95 | I160: =NA() ->  | J160: 10 | K160: 20 | L160: 30 | P160: 1707
C161: 32.57 | D161: 9.7 | E161: 0 | F161: =+F160 -> 0.16 | G161: =+F161+G160 -> 10.18 | H161: 95 | I161: =NA() ->  | J161: 10 | K161: 20 | L161: 30 | P161: 1708
C162: 32.57 | D162: 9.7 | E162: 0 | F162: =+F161 -> 0.16 | G162: =+F162+G161 -> 10.34 | H162: 95 | I162: =NA() ->  | J162: 10 | K162: 20 | L162: 30 | P162: 1709
B163: 10 | C163: 44.31 | D163: 10.5 | E163: 10.5 | G163: =+E163 -> 10.5 | H163: 95 | I163: =NA() ->  | J163: 10 | K163: 20 | L163: 30 | O163: 100 | P163: 1710
C164: 44.31 | D164: 10.5 | E164: 0 | F164: =(+E168-E163)/5 -> 0.2 | G164: =+F164+G163 -> 10.7 | H164: 95 | I164: =NA() ->  | J164: 10 | K164: 20 | L164: 30 | P164: 1711
C165: 44.31 | D165: 10.5 | E165: 0 | F165: =+F164 -> 0.2 | G165: =+F165+G164 -> 10.9 | H165: 95 | I165: =NA() ->  | J165: 10 | K165: 20 | L165: 30 | P165: 1712
C166: 44.31 | D166: 10.5 | E166: 0 | F166: =+F165 -> 0.2 | G166: =+F166+G165 -> 11.1 | H166: 95 | I166: =NA() ->  | J166: 10 | K166: 20 | L166: 30 | P166: 1713
C167: 44.31 | D167: 10.5 | E167: 0 | F167: =+F166 -> 0.2 | G167: =+F167+G166 -> 11.3 | H167: 98 | I167: =NA() ->  | J167: 10 | K167: 20 | L167: 30 | P167: 1714
C168: 32.84 | D168: 11.5 | E168: 11.5 | G168: =+E168 -> 11.5 | H168: 98 | I168: =NA() ->  | J168: 10 | K168: 20 | L168: 30 | O168: 100 | P168: 1715
C169: 32.84 | D169: 11.5 | E169: 0 | F169: =(+E173-E168)/5 -> 0.08 | G169: =+F169+G168 -> 11.58 | H169: 98 | I169: =NA() ->  | J169: 10 | K169: 20 | L169: 30 | P169: 1716
C170: 32.84 | D170: 11.5 | E170: 0 | F170: =+F169 -> 0.08 | G170: =+F170+G169 -> 11.66 | H170: 98 | I170: =NA() ->  | J170: 10 | K170: 20 | L170: 30 | P170: 1717
C171: 32.84 | D171: 11.5 | E171: 0 | F171: =+F170 -> 0.08 | G171: =+F171+G170 -> 11.74 | H171: 98 | I171: =NA() ->  | J171: 10 | K171: 20 | L171: 30 | P171: 1718
C172: 32.84 | D172: 11.5 | E172: 0 | F172: =+F171 -> 0.08 | G172: =+F172+G171 -> 11.82 | H172: 98 | I172: =NA() ->  | J172: 10 | K172: 20 | L172: 30 | P172: 1719
B173: 20 | C173: 28.9 | D173: 11.9 | E173: 11.9 | G173: =+E173 -> 11.9 | H173: 98 | I173: =NA() ->  | J173: 10 | K173: 20 | L173: 30 | O173: 100 | P173: 1720
C174: 28.9 | D174: 11.9 | E174: 0 | F174: =(+E178-E173)/5 -> 0.12 | G174: =+F174+G173 -> 12.02 | H174: 98 | I174: =NA() ->  | J174: 10 | K174: 20 | L174: 30 | P174: 1721
C175: 28.9 | D175: 11.9 | E175: 0 | F175: =+F174 -> 0.12 | G175: =+F175+G174 -> 12.14 | H175: 98 | I175: =NA() ->  | J175: 10 | K175: 20 | L175: 30 | P175: 1722
C176: 28.9 | D176: 11.9 | E176: 0 | F176: =+F175 -> 0.12 | G176: =+F176+G175 -> 12.26 | H176: 98 | I176: =NA() ->  | J176: 10 | K176: 20 | L176: 30 | P176: 1723
C177: 28.9 | D177: 11.9 | E177: 0 | F177: =+F176 -> 0.12 | G177: =+F177+G176 -> 12.38 | H177: 98 | I177: =NA() ->  | J177: 10 | K177: 20 | L177: 30 | P177: 1724
C178: 39.23 | D178: 12.5 | E178: 12.5 | G178: =+E178 -> 12.5 | H178: 98 | I178: =NA() ->  | J178: 10 | K178: 20 | L178: 30 | O178: 100 | P178: 1725
C179: 39.23 | D179: 12.5 | E179: 0 | F179: =(+E183-E178)/5 -> 0.04 | G179: =+F179+G178 -> 12.54 | H179: 98 | I179: =NA() ->  | J179: 10 | K179: 20 | L179: 30 | P179: 1726
C180: 39.23 | D180: 12.5 | E180: 0 | F180: =+F179 -> 0.04 | G180: =+F180+G179 -> 12.58 | H180: 98 | I180: =NA() ->  | J180: 10 | K180: 20 | L180: 30 | P180: 1727
C181: 39.23 | D181: 12.5 | E181: 0 | F181: =+F180 -> 0.04 | G181: =+F181+G180 -> 12.62 | H181: 95 | I181: =NA() ->  | J181: 10 | K181: 20 | L181: 30 | P181: 1728
C182: 39.23 | D182: 12.5 | E182: 0 | F182: =+F181 -> 0.04 | G182: =+F182+G181 -> 12.66 | H182: 95 | I182: =NA() ->  | J182: 10 | K182: 20 | L182: 30 | P182: 1729
B183: 30 | C183: 25.74 | D183: 12.7 | E183: 12.7 | G183: =+E183 -> 12.7 | H183: 95 | I183: =NA() ->  | J183: 10 | K183: 20 | L183: 30 | O183: =IF(MOD(P183,5)=0,100,"") -> 100 | P183: 1730
C184: 25.74 | D184: 12.7 | E184: 0 | F184: =(+E188-E183)/5 -> 0.02 | G184: =+F184+G183 -> 12.72 | H184: 95 | I184: =NA() ->  | J184: 10 | K184: 20 | L184: 30 | P184: 1731
C185: 25.74 | D185: 12.7 | E185: 0 | F185: =+F184 -> 0.02 | G185: =+F185+G184 -> 12.74 | H185: 95 | I185: =NA() ->  | J185: 10 | K185: 20 | L185: 30 | P185: 1732
C186: 25.74 | D186: 12.7 | E186: 0 | F186: =+F185 -> 0.02 | G186: =+F186+G185 -> 12.76 | H186: 95 | I186: =NA() ->  | J186: 10 | K186: 20 | L186: 30 | P186: 1733
C187: 25.74 | D187: 12.7 | E187: 0 | F187: =+F186 -> 0.02 | G187: =+F187+G186 -> 12.78 | H187: 95 | I187: =NA() ->  | J187: 10 | K187: 20 | L187: 30 | P187: 1734
C188: 31.52 | D188: 12.8 | E188: 12.8 | G188: =+E188 -> 12.8 | H188: 95 | I188: =NA() ->  | J188: 10 | K188: 20 | L188: 30 | O188: =IF(MOD(P188,5)=0,100,"") -> 100 | P188: 1735
C189: 31.52 | D189: 12.8 | E189: 0 | F189: =(+E193-E188)/5 -> 0.08 | G189: =+F189+G188 -> 12.88 | H189: 95 | I189: =NA() ->  | J189: 10 | K189: 20 | L189: 30 | P189: 1736
C190: 31.52 | D190: 12.8 | E190: 0 | F190: =+F189 -> 0.08 | G190: =+F190+G189 -> 12.96 | H190: 95 | I190: =NA() ->  | J190: 10 | K190: 20 | L190: 30 | P190: 1737
C191: 31.52 | D191: 12.8 | E191: 0 | F191: =+F190 -> 0.08 | G191: =+F191+G190 -> 13.04 | H191: 95 | I191: =NA() ->  | J191: 10 | K191: 20 | L191: 30 | P191: 1738
C192: 31.52 | D192: 12.8 | E192: 0 | F192: =+F191 -> 0.08 | G192: =+F192+G191 -> 13.12 | H192: 95 | I192: =NA() ->  | J192: 10 | K192: 20 | L192: 30 | P192: 1739
B193: 40 | C193: 27.58 | D193: 13.2 | E193: 13.2 | G193: =+E193 -> 13.2 | H193: 95 | I193: =NA() ->  | J193: 10 | K193: 20 | L193: 30 | O193: 100 | P193: 1740
C194: 27.58 | D194: 13.2 | E194: 0 | F194: =(+E198-E193)/5 -> 0.14 | G194: =+F194+G193 -> 13.34 | H194: 95 | I194: =NA() ->  | J194: 10 | K194: 20 | L194: 30 | P194: 1741
C195: 27.58 | D195: 13.2 | E195: 0 | F195: =+F194 -> 0.14 | G195: =+F195+G194 -> 13.48 | H195: 95 | I195: =NA() ->  | J195: 10 | K195: 20 | L195: 30 | P195: 1742
C196: 27.58 | D196: 13.2 | E196: 0 | F196: =+F195 -> 0.14 | G196: =+F196+G195 -> 13.62 | H196: 95 | I196: =NA() ->  | J196: 10 | K196: 20 | L196: 30 | P196: 1743
C197: 27.58 | D197: 13.2 | E197: 0 | F197: =+F196 -> 0.14 | G197: =+F197+G196 -> 13.76 | H197: 95 | I197: =NA() ->  | J197: 10 | K197: 20 | L197: 30 | P197: 1744
C198: 28.28 | D198: 13.9 | E198: 13.9 | G198: =+E198 -> 13.9 | H198: 95 | I198: =NA() ->  | J198: 10 | K198: 20 | L198: 30 | O198: 100 | P198: 1745
C199: 28.28 | D199: 13.9 | E199: 0 | F199: =(+E203-E198)/5 -> 0.1 | G199: =+F199+G198 -> 14 | H199: 95 | I199: =NA() ->  | J199: 10 | K199: 20 | L199: 30 | P199: 1746
C200: 28.28 | D200: 13.9 | E200: 0 | F200: =+F199 -> 0.1 | G200: =+F200+G199 -> 14.1 | H200: 95 | I200: =NA() ->  | J200: 10 | K200: 20 | L200: 30 | P200: 1747
C201: 28.28 | D201: 13.9 | E201: 0 | F201: =+F200 -> 0.1 | G201: =+F201+G200 -> 14.2 | H201: 95 | I201: =NA() ->  | J201: 10 | K201: 20 | L201: 30 | P201: 1748
C202: 28.28 | D202: 13.9 | E202: 0 | F202: =+F201 -> 0.1 | G202: =+F202+G201 -> 14.3 | H202: 95 | I202: =NA() ->  | J202: 10 | K202: 20 | L202: 30 | P202: 1749
B203: 50 | C203: 31 | D203: 14.4 | E203: 14.4 | G203: =+E203 -> 14.4 | H203: 95 | I203: =NA() ->  | J203: 10 | K203: 20 | L203: 30 | M203: 100 | O203: =IF(MOD(P203,5)=0,100,"") -> 100 | P203: 1750
C204: 31 | D204: 14.4 | E204: 0 | F204: =(+E208-E203)/5 -> 0.14 | G204: =+F204+G203 -> 14.54 | H204: 95 | I204: =NA() ->  | J204: 10 | K204: 20 | L204: 30 | P204: 1751
C205: 31 | D205: 14.4 | E205: 0 | F205: =+F204 -> 0.14 | G205: =+F205+G204 -> 14.68 | H205: 95 | I205: =NA() ->  | J205: 10 | K205: 20 | L205: 30 | P205: 1752
C206: 31 | D206: 14.4 | E206: 0 | F206: =+F205 -> 0.14 | G206: =+F206+G205 -> 14.82 | H206: 95 | I206: =NA() ->  | J206: 10 | K206: 20 | L206: 30 | P206: 1753
C207: 31 | D207: 14.4 | E207: 0 | F207: =+F206 -> 0.14 | G207: =+F207+G206 -> 14.96 | H207: 95 | I207: =NA() ->  | J207: 10 | K207: 20 | L207: 30 | P207: 1754
C208: 35.64 | D208: 15.1 | E208: 15.1 | G208: =+E208 -> 15.1 | H208: 95 | I208: =NA() ->  | J208: 10 | K208: 20 | L208: 30 | O208: 100 | P208: 1755
C209: 35.64 | D209: 15.1 | E209: 0 | F209: =(+E213-E208)/5 -> 0.1 | G209: =+F209+G208 -> 15.2 | H209: 95 | I209: =NA() ->  | J209: 10 | K209: 20 | L209: 30 | P209: 1756
C210: 35.64 | D210: =IF(E210=0,D209,E210) -> 15.1 | E210: 0 | F210: =+F209 -> 0.1 | G210: =+F210+G209 -> 15.3 | H210: 95 | I210: =NA() ->  | J210: 10 | K210: 20 | L210: 30 | P210: 1757
C211: 35.64 | D211: 15.1 | E211: 0 | F211: =+F210 -> 0.1 | G211: =+F211+G210 -> 15.4 | H211: 95 | I211: =NA() ->  | J211: 10 | K211: 20 | L211: 30 | P211: 1758
... 72 more rows
